Dept/Family,Entity,Expense Type,Expense Area,Supplier,Payment Date, Amount ,SME,UNSPCC Code,UNSPCC Description
"Department for Levelling Up, Housing and Communities",Homes England,MISC PROFESSIONAL FEES,Sras,HM LAND REGISTRY,13/09/2023," 24,000.00 ",PUB,81151600,Cartography
"Department for Levelling Up, Housing and Communities",Homes England,REV GRNTS TO LOCAL AUTHORITIES,Investment,MANCHESTER CITY COUNCIL,29/09/2023, 710.00 ,PUB,None,Grants
"Department for Levelling Up, Housing and Communities",Homes England,REV GRNTS TO LOCAL AUTHORITIES,Investment,MANCHESTER CITY COUNCIL,29/09/2023, 549.00 ,PUB,None,Grants
"Department for Levelling Up, Housing and Communities",Homes England,REV GRNTS TO LOCAL AUTHORITIES,Investment,MANCHESTER CITY COUNCIL,29/09/2023, 710.00 ,PUB,None,Grants
"Department for Levelling Up, Housing and Communities",Homes England,REV GRNTS TO LOCAL AUTHORITIES,Investment,MANCHESTER CITY COUNCIL,29/09/2023, 710.00 ,PUB,None,Grants
"Department for Levelling Up, Housing and Communities",Homes England,REV GRNTS TO LOCAL AUTHORITIES,Investment,MANCHESTER CITY COUNCIL,29/09/2023, 549.00 ,PUB,None,Grants
"Department for Levelling Up, Housing and Communities",Homes England,REV GRNTS TO LOCAL AUTHORITIES,Investment,MANCHESTER CITY COUNCIL,29/09/2023, 555.00 ,PUB,None,Grants
"Department for Levelling Up, Housing and Communities",Homes England,REV GRNTS TO LOCAL AUTHORITIES,Investment,MANCHESTER CITY COUNCIL,29/09/2023, 555.00 ,PUB,None,Grants
"Department for Levelling Up, Housing and Communities",Homes England,REV GRNTS TO LOCAL AUTHORITIES,Investment,MANCHESTER CITY COUNCIL,29/09/2023, 555.00 ,PUB,None,Grants
"Department for Levelling Up, Housing and Communities",Homes England,REV GRNTS TO LOCAL AUTHORITIES,Investment,MANCHESTER CITY COUNCIL,29/09/2023, 710.00 ,PUB,None,Grants
"Department for Levelling Up, Housing and Communities",Homes England,REV GRNTS TO LOCAL AUTHORITIES,Investment,MANCHESTER CITY COUNCIL,29/09/2023, 710.00 ,PUB,None,Grants
"Department for Levelling Up, Housing and Communities",Homes England,CAP GRNTS TO LOCAL AUTHORITIES,Investment,SALFORD CITY COUNCIL,07/09/2023," 445,500.00 ",PUB,None,Grants
"Department for Levelling Up, Housing and Communities",Homes England,REV GRNTS TO LOCAL AUTHORITIES,Investment,SALFORD CITY COUNCIL,07/09/2023," 541,500.00 ",PUB,None,Grants
"Department for Levelling Up, Housing and Communities",Homes England,REV GRNTS TO LOCAL AUTHORITIES,Investment,WIGAN COUNCIL,28/09/2023," 1,458.00 ",PUB,None,Grants
"Department for Levelling Up, Housing and Communities",Homes England,REV GRNTS TO LOCAL AUTHORITIES,Investment,WIGAN COUNCIL,28/09/2023," 1,458.00 ",PUB,None,Grants
"Department for Levelling Up, Housing and Communities",Homes England,REV GRNTS TO LOCAL AUTHORITIES,Investment,WIGAN COUNCIL,28/09/2023," 1,458.00 ",PUB,None,Grants
"Department for Levelling Up, Housing and Communities",Homes England,REV GRNTS TO LOCAL AUTHORITIES,Investment,WIGAN COUNCIL,28/09/2023," 1,458.00 ",PUB,None,Grants
"Department for Levelling Up, Housing and Communities",Homes England,REV GRNTS TO LOCAL AUTHORITIES,Investment,WIGAN COUNCIL,28/09/2023," 8,750.00 ",PUB,None,Grants
"Department for Levelling Up, Housing and Communities",Homes England,REV GRNTS TO LOCAL AUTHORITIES,Investment,WIGAN COUNCIL,28/09/2023," 1,458.00 ",PUB,None,Grants
"Department for Levelling Up, Housing and Communities",Homes England,REV GRNTS TO LOCAL AUTHORITIES,Investment,WIGAN COUNCIL,28/09/2023," 1,458.00 ",PUB,None,Grants
"Department for Levelling Up, Housing and Communities",Homes England,REV GRNTS TO LOCAL AUTHORITIES,Investment,SHEFFIELD CITY COUNCIL,22/09/2023," 14,465.00 ",PUB,None,Grants
"Department for Levelling Up, Housing and Communities",Homes England,REV GRNTS TO LOCAL AUTHORITIES,Investment,GATESHEAD METROPOLITAN BOROUGH COUNCIL,28/09/2023," 1,167.00 ",PUB,None,Grants
"Department for Levelling Up, Housing and Communities",Homes England,REV GRNTS TO LOCAL AUTHORITIES,Investment,GATESHEAD METROPOLITAN BOROUGH COUNCIL,28/09/2023," 1,167.00 ",PUB,None,Grants
"Department for Levelling Up, Housing and Communities",Homes England,REV GRNTS TO LOCAL AUTHORITIES,Investment,GATESHEAD METROPOLITAN BOROUGH COUNCIL,28/09/2023," 1,166.00 ",PUB,None,Grants
"Department for Levelling Up, Housing and Communities",Homes England,REV GRNTS TO LOCAL AUTHORITIES,Investment,GATESHEAD METROPOLITAN BOROUGH COUNCIL,28/09/2023," 1,167.00 ",PUB,None,Grants
"Department for Levelling Up, Housing and Communities",Homes England,REV GRNTS TO LOCAL AUTHORITIES,Investment,GATESHEAD METROPOLITAN BOROUGH COUNCIL,28/09/2023," 1,167.00 ",PUB,None,Grants
"Department for Levelling Up, Housing and Communities",Homes England,REV GRNTS TO LOCAL AUTHORITIES,Investment,GATESHEAD METROPOLITAN BOROUGH COUNCIL,28/09/2023," 1,167.00 ",PUB,None,Grants
"Department for Levelling Up, Housing and Communities",Homes England,REV GRNTS TO LOCAL AUTHORITIES,Investment,GATESHEAD METROPOLITAN BOROUGH COUNCIL,28/09/2023," 1,166.00 ",PUB,None,Grants
"Department for Levelling Up, Housing and Communities",Homes England,REV GRNTS TO LOCAL AUTHORITIES,Investment,GATESHEAD METROPOLITAN BOROUGH COUNCIL,28/09/2023," 1,167.00 ",PUB,None,Grants
"Department for Levelling Up, Housing and Communities",Homes England,REV GRNTS TO LOCAL AUTHORITIES,Investment,GATESHEAD METROPOLITAN BOROUGH COUNCIL,28/09/2023," 1,166.00 ",PUB,None,Grants
"Department for Levelling Up, Housing and Communities",Homes England,REV GRNTS TO LOCAL AUTHORITIES,Investment,GATESHEAD METROPOLITAN BOROUGH COUNCIL,28/09/2023," 1,167.00 ",PUB,None,Grants
"Department for Levelling Up, Housing and Communities",Homes England,REV GRNTS TO LOCAL AUTHORITIES,Investment,GATESHEAD METROPOLITAN BOROUGH COUNCIL,28/09/2023," 1,166.00 ",PUB,None,Grants
"Department for Levelling Up, Housing and Communities",Homes England,REV GRNTS TO LOCAL AUTHORITIES,Investment,GATESHEAD METROPOLITAN BOROUGH COUNCIL,28/09/2023," 1,167.00 ",PUB,None,Grants
"Department for Levelling Up, Housing and Communities",Homes England,REV GRNTS TO LOCAL AUTHORITIES,Investment,GATESHEAD METROPOLITAN BOROUGH COUNCIL,28/09/2023," 1,167.00 ",PUB,None,Grants
"Department for Levelling Up, Housing and Communities",Homes England,REV GRNTS TO LOCAL AUTHORITIES,Investment,GATESHEAD METROPOLITAN BOROUGH COUNCIL,28/09/2023," 1,166.00 ",PUB,None,Grants
"Department for Levelling Up, Housing and Communities",Homes England,REV GRNTS TO LOCAL AUTHORITIES,Investment,GATESHEAD METROPOLITAN BOROUGH COUNCIL,28/09/2023," 1,167.00 ",PUB,None,Grants
"Department for Levelling Up, Housing and Communities",Homes England,REV GRNTS TO LOCAL AUTHORITIES,Investment,NORTH TYNESIDE COUNCIL,28/09/2023," 1,750.00 ",PUB,None,Grants
"Department for Levelling Up, Housing and Communities",Homes England,REV GRNTS TO LOCAL AUTHORITIES,Investment,NORTH TYNESIDE COUNCIL,28/09/2023," 1,750.00 ",PUB,None,Grants
"Department for Levelling Up, Housing and Communities",Homes England,REV GRNTS TO LOCAL AUTHORITIES,Investment,NORTH TYNESIDE COUNCIL,28/09/2023," 1,750.00 ",PUB,None,Grants
"Department for Levelling Up, Housing and Communities",Homes England,REV GRNTS TO LOCAL AUTHORITIES,Investment,NORTH TYNESIDE COUNCIL,28/09/2023," 1,750.00 ",PUB,None,Grants
"Department for Levelling Up, Housing and Communities",Homes England,REV GRNTS TO LOCAL AUTHORITIES,Investment,NORTH TYNESIDE COUNCIL,28/09/2023," 1,750.00 ",PUB,None,Grants
"Department for Levelling Up, Housing and Communities",Homes England,REV GRNTS TO LOCAL AUTHORITIES,Investment,SOUTH TYNESIDE COUNCIL,04/09/2023," 15,188.00 ",PUB,None,Grants
"Department for Levelling Up, Housing and Communities",Homes England,REV GRNTS TO LOCAL AUTHORITIES,Investment,SOUTH TYNESIDE COUNCIL,22/09/2023," 16,875.00 ",PUB,None,Grants
"Department for Levelling Up, Housing and Communities",Homes England,REV GRNTS TO LOCAL AUTHORITIES,Investment,SOUTH TYNESIDE COUNCIL,28/09/2023," 4,503.00 ",PUB,None,Grants
"Department for Levelling Up, Housing and Communities",Homes England,REV GRNTS TO LOCAL AUTHORITIES,Investment,SOUTH TYNESIDE COUNCIL,28/09/2023," 1,875.00 ",PUB,None,Grants
"Department for Levelling Up, Housing and Communities",Homes England,REV GRNTS TO LOCAL AUTHORITIES,Investment,SOUTH TYNESIDE COUNCIL,28/09/2023," 1,875.00 ",PUB,None,Grants
"Department for Levelling Up, Housing and Communities",Homes England,REV GRNTS TO LOCAL AUTHORITIES,Investment,SOUTH TYNESIDE COUNCIL,28/09/2023," 1,875.00 ",PUB,None,Grants
"Department for Levelling Up, Housing and Communities",Homes England,CAP GRNTS TO LOCAL AUTHORITIES,Investment,DUDLEY METROPOLITAN BOROUGH COUNCIL,01/09/2023," 32,500.00 ",PUB,None,Grants
"Department for Levelling Up, Housing and Communities",Homes England,REV GRNTS TO LOCAL AUTHORITIES,Investment,SOLIHULL METROPOLITAN BOROUGH COUNCIL,29/09/2023," 2,254.00 ",PUB,None,Grants
"Department for Levelling Up, Housing and Communities",Homes England,REV GRNTS TO LOCAL AUTHORITIES,Investment,SOLIHULL METROPOLITAN BOROUGH COUNCIL,29/09/2023," 2,329.00 ",PUB,None,Grants
"Department for Levelling Up, Housing and Communities",Homes England,REV GRNTS TO LOCAL AUTHORITIES,Investment,SOLIHULL METROPOLITAN BOROUGH COUNCIL,29/09/2023," 2,329.00 ",PUB,None,Grants
"Department for Levelling Up, Housing and Communities",Homes England,REV GRNTS TO LOCAL AUTHORITIES,Investment,SOLIHULL METROPOLITAN BOROUGH COUNCIL,29/09/2023," 2,329.00 ",PUB,None,Grants
"Department for Levelling Up, Housing and Communities",Homes England,REV GRNTS TO LOCAL AUTHORITIES,Investment,SOLIHULL METROPOLITAN BOROUGH COUNCIL,29/09/2023," 2,254.00 ",PUB,None,Grants
"Department for Levelling Up, Housing and Communities",Homes England,REV GRNTS TO LOCAL AUTHORITIES,Investment,SOLIHULL METROPOLITAN BOROUGH COUNCIL,29/09/2023," 2,254.00 ",PUB,None,Grants
"Department for Levelling Up, Housing and Communities",Homes England,REV GRNTS TO LOCAL AUTHORITIES,Investment,LEEDS CITY COUNCIL,04/09/2023," 25,000.00 ",PUB,None,Grants
"Department for Levelling Up, Housing and Communities",Homes England,REV GRNTS TO LOCAL AUTHORITIES,Investment,LEEDS CITY COUNCIL,15/09/2023," 2,500.00 ",PUB,None,Grants
"Department for Levelling Up, Housing and Communities",Homes England,CAP GRNTS TO LOCAL AUTHORITIES,Investment,HARTLEPOOL BOROUGH COUNCIL,20/09/2023," 173,250.00 ",PUB,None,Grants
"Department for Levelling Up, Housing and Communities",Homes England,BUILDINGS-VACANT RATES,Development,DARLINGTON BOROUGH COUNCIL,15/09/2023," 5,847.32 ",PUB,80131500,Lease and rental of property or building
"Department for Levelling Up, Housing and Communities",Homes England,BUILDINGS-VACANT RATES,Development,DARLINGTON BOROUGH COUNCIL,15/09/2023," 5,847.32 ",PUB,80131500,Lease and rental of property or building
"Department for Levelling Up, Housing and Communities",Homes England,REV GRNTS TO LOCAL AUTHORITIES,Investment,THE COUNTY COUNCIL OF DURHAM,28/09/2023," 1,752.00 ",PUB,None,Grants
"Department for Levelling Up, Housing and Communities",Homes England,REV GRNTS TO LOCAL AUTHORITIES,Investment,THE COUNTY COUNCIL OF DURHAM,28/09/2023," 10,695.00 ",PUB,None,Grants
"Department for Levelling Up, Housing and Communities",Homes England,REV GRNTS TO LOCAL AUTHORITIES,Investment,THE COUNTY COUNCIL OF DURHAM,28/09/2023," 5,607.00 ",PUB,None,Grants
"Department for Levelling Up, Housing and Communities",Homes England,REV GRNTS TO LOCAL AUTHORITIES,Investment,THE COUNTY COUNCIL OF DURHAM,28/09/2023," 1,752.00 ",PUB,None,Grants
"Department for Levelling Up, Housing and Communities",Homes England,REV GRNTS TO LOCAL AUTHORITIES,Investment,THE COUNTY COUNCIL OF DURHAM,28/09/2023," 1,752.00 ",PUB,None,Grants
"Department for Levelling Up, Housing and Communities",Homes England,REV GRNTS TO LOCAL AUTHORITIES,Investment,THE COUNTY COUNCIL OF DURHAM,28/09/2023," 1,752.00 ",PUB,None,Grants
"Department for Levelling Up, Housing and Communities",Homes England,REV GRNTS TO LOCAL AUTHORITIES,Investment,THE COUNTY COUNCIL OF DURHAM,28/09/2023," 1,752.00 ",PUB,None,Grants
"Department for Levelling Up, Housing and Communities",Homes England,REV GRNTS TO LOCAL AUTHORITIES,Investment,THE COUNTY COUNCIL OF DURHAM,28/09/2023," 1,752.00 ",PUB,None,Grants
"Department for Levelling Up, Housing and Communities",Homes England,REV GRNTS TO LOCAL AUTHORITIES,Investment,THE COUNTY COUNCIL OF DURHAM,28/09/2023," 1,752.00 ",PUB,None,Grants
"Department for Levelling Up, Housing and Communities",Homes England,REV GRNTS TO LOCAL AUTHORITIES,Investment,THE COUNTY COUNCIL OF DURHAM,28/09/2023," 1,752.00 ",PUB,None,Grants
"Department for Levelling Up, Housing and Communities",Homes England,REV GRNTS TO LOCAL AUTHORITIES,Investment,NORTHUMBERLAND COUNTY COUNCIL,28/09/2023," 4,375.00 ",PUB,None,Grants
"Department for Levelling Up, Housing and Communities",Homes England,REV GRNTS TO LOCAL AUTHORITIES,Investment,CHESHIRE WEST AND CHESTER COUNCIL,28/09/2023," 2,009.00 ",PUB,None,Grants
"Department for Levelling Up, Housing and Communities",Homes England,REV GRNTS TO LOCAL AUTHORITIES,Investment,CHESHIRE WEST AND CHESTER COUNCIL,28/09/2023," 2,009.00 ",PUB,None,Grants
"Department for Levelling Up, Housing and Communities",Homes England,REV GRNTS TO LOCAL AUTHORITIES,Investment,CHESHIRE WEST AND CHESTER COUNCIL,28/09/2023," 2,009.00 ",PUB,None,Grants
"Department for Levelling Up, Housing and Communities",Homes England,REV GRNTS TO LOCAL AUTHORITIES,Investment,CHESHIRE WEST AND CHESTER COUNCIL,28/09/2023," 2,009.00 ",PUB,None,Grants
"Department for Levelling Up, Housing and Communities",Homes England,REV GRNTS TO LOCAL AUTHORITIES,Investment,CHESHIRE WEST AND CHESTER COUNCIL,28/09/2023," 2,009.00 ",PUB,None,Grants
"Department for Levelling Up, Housing and Communities",Homes England,REV GRNTS TO LOCAL AUTHORITIES,Investment,CHESHIRE WEST AND CHESTER COUNCIL,28/09/2023," 2,009.00 ",PUB,None,Grants
"Department for Levelling Up, Housing and Communities",Homes England,REV GRNTS TO LOCAL AUTHORITIES,Investment,CHESHIRE WEST AND CHESTER COUNCIL,28/09/2023," 2,009.00 ",PUB,None,Grants
"Department for Levelling Up, Housing and Communities",Homes England,CAP GRNTS TO LOCAL AUTHORITIES,Investment,KINGSTON UPON HULL CITY COUNCIL,07/09/2023," 200,909.00 ",PUB,None,Grants
"Department for Levelling Up, Housing and Communities",Homes England,CAP GRNTS TO LOCAL AUTHORITIES,Investment,EAST RIDING OF YORKSHIRE COUNCIL,28/09/2023," 48,750.00 ",PUB,None,Grants
"Department for Levelling Up, Housing and Communities",Homes England,CAP GRNTS TO LOCAL AUTHORITIES,Investment,CITY OF YORK COUNCIL,01/09/2023," 36,000.00 ",PUB,None,Grants
"Department for Levelling Up, Housing and Communities",Homes England,REV GRNTS TO LOCAL AUTHORITIES,Investment,DERBY CITY COUNCIL,28/09/2023," 1,750.00 ",PUB,None,Grants
"Department for Levelling Up, Housing and Communities",Homes England,REV GRNTS TO LOCAL AUTHORITIES,Investment,DERBY CITY COUNCIL,28/09/2023," 1,750.00 ",PUB,None,Grants
"Department for Levelling Up, Housing and Communities",Homes England,REV GRNTS TO LOCAL AUTHORITIES,Investment,DERBY CITY COUNCIL,28/09/2023," 1,750.00 ",PUB,None,Grants
"Department for Levelling Up, Housing and Communities",Homes England,REV GRNTS TO LOCAL AUTHORITIES,Investment,DERBY CITY COUNCIL,28/09/2023," 1,750.00 ",PUB,None,Grants
"Department for Levelling Up, Housing and Communities",Homes England,REV GRNTS TO LOCAL AUTHORITIES,Investment,DERBY CITY COUNCIL,28/09/2023," 1,750.00 ",PUB,None,Grants
"Department for Levelling Up, Housing and Communities",Homes England,REV GRNTS TO LOCAL AUTHORITIES,Investment,DERBY CITY COUNCIL,28/09/2023," 1,750.00 ",PUB,None,Grants
"Department for Levelling Up, Housing and Communities",Homes England,REV GRNTS TO LOCAL AUTHORITIES,Investment,DERBY CITY COUNCIL,28/09/2023," 1,750.00 ",PUB,None,Grants
"Department for Levelling Up, Housing and Communities",Homes England,REV GRNTS TO LOCAL AUTHORITIES,Investment,DERBY CITY COUNCIL,28/09/2023," 1,750.00 ",PUB,None,Grants
"Department for Levelling Up, Housing and Communities",Homes England,REV GRNTS TO LOCAL AUTHORITIES,Investment,DERBY CITY COUNCIL,28/09/2023," 1,750.00 ",PUB,None,Grants
"Department for Levelling Up, Housing and Communities",Homes England,REV GRNTS TO LOCAL AUTHORITIES,Investment,DERBY CITY COUNCIL,28/09/2023," 1,750.00 ",PUB,None,Grants
"Department for Levelling Up, Housing and Communities",Homes England,REV GRNTS TO LOCAL AUTHORITIES,Investment,DERBY CITY COUNCIL,28/09/2023," 1,750.00 ",PUB,None,Grants
"Department for Levelling Up, Housing and Communities",Homes England,REV GRNTS TO LOCAL AUTHORITIES,Investment,DERBY CITY COUNCIL,28/09/2023," 1,750.00 ",PUB,None,Grants
"Department for Levelling Up, Housing and Communities",Homes England,REV GRNTS TO LOCAL AUTHORITIES,Investment,DERBY CITY COUNCIL,28/09/2023," 1,750.00 ",PUB,None,Grants
"Department for Levelling Up, Housing and Communities",Homes England,REV GRNTS TO LOCAL AUTHORITIES,Investment,DERBY CITY COUNCIL,28/09/2023," 1,750.00 ",PUB,None,Grants
"Department for Levelling Up, Housing and Communities",Homes England,REV GRNTS TO LOCAL AUTHORITIES,Investment,DERBY CITY COUNCIL,28/09/2023," 1,750.00 ",PUB,None,Grants
"Department for Levelling Up, Housing and Communities",Homes England,REV GRNTS TO LOCAL AUTHORITIES,Investment,DERBY CITY COUNCIL,28/09/2023," 1,750.00 ",PUB,None,Grants
"Department for Levelling Up, Housing and Communities",Homes England,REV GRNTS TO LOCAL AUTHORITIES,Investment,DERBY CITY COUNCIL,28/09/2023," 1,750.00 ",PUB,None,Grants
"Department for Levelling Up, Housing and Communities",Homes England,REV GRNTS TO LOCAL AUTHORITIES,Investment,DERBY CITY COUNCIL,28/09/2023," 1,750.00 ",PUB,None,Grants
"Department for Levelling Up, Housing and Communities",Homes England,REV GRNTS TO LOCAL AUTHORITIES,Investment,DERBY CITY COUNCIL,28/09/2023," 1,750.00 ",PUB,None,Grants
"Department for Levelling Up, Housing and Communities",Homes England,REV GRNTS TO LOCAL AUTHORITIES,Investment,DERBY CITY COUNCIL,28/09/2023," 1,750.00 ",PUB,None,Grants
"Department for Levelling Up, Housing and Communities",Homes England,REV GRNTS TO LOCAL AUTHORITIES,Investment,DERBY CITY COUNCIL,28/09/2023," 1,750.00 ",PUB,None,Grants
"Department for Levelling Up, Housing and Communities",Homes England,REV GRNTS TO LOCAL AUTHORITIES,Investment,DERBY CITY COUNCIL,28/09/2023," 1,750.00 ",PUB,None,Grants
"Department for Levelling Up, Housing and Communities",Homes England,REV GRNTS TO LOCAL AUTHORITIES,Investment,DERBY CITY COUNCIL,28/09/2023," 1,750.00 ",PUB,None,Grants
"Department for Levelling Up, Housing and Communities",Homes England,REV GRNTS TO LOCAL AUTHORITIES,Investment,DERBY CITY COUNCIL,28/09/2023," 1,750.00 ",PUB,None,Grants
"Department for Levelling Up, Housing and Communities",Homes England,REV GRNTS TO LOCAL AUTHORITIES,Investment,DERBY CITY COUNCIL,28/09/2023," 1,750.00 ",PUB,None,Grants
"Department for Levelling Up, Housing and Communities",Homes England,REV GRNTS TO LOCAL AUTHORITIES,Investment,DERBY CITY COUNCIL,28/09/2023," 1,750.00 ",PUB,None,Grants
"Department for Levelling Up, Housing and Communities",Homes England,REV GRNTS TO LOCAL AUTHORITIES,Investment,DERBY CITY COUNCIL,28/09/2023," 1,750.00 ",PUB,None,Grants
"Department for Levelling Up, Housing and Communities",Homes England,REV GRNTS TO LOCAL AUTHORITIES,Investment,DERBY CITY COUNCIL,28/09/2023," 1,750.00 ",PUB,None,Grants
"Department for Levelling Up, Housing and Communities",Homes England,REV GRNTS TO LOCAL AUTHORITIES,Investment,DERBY CITY COUNCIL,28/09/2023," 1,750.00 ",PUB,None,Grants
"Department for Levelling Up, Housing and Communities",Homes England,REV GRNTS TO LOCAL AUTHORITIES,Investment,DERBY CITY COUNCIL,28/09/2023," 1,750.00 ",PUB,None,Grants
"Department for Levelling Up, Housing and Communities",Homes England,REV GRNTS TO LOCAL AUTHORITIES,Investment,NOTTINGHAM CITY COUNCIL,28/09/2023," 1,709.00 ",PUB,None,Grants
"Department for Levelling Up, Housing and Communities",Homes England,REV GRNTS TO LOCAL AUTHORITIES,Investment,NOTTINGHAM CITY COUNCIL,28/09/2023," 1,709.00 ",PUB,None,Grants
"Department for Levelling Up, Housing and Communities",Homes England,REV GRNTS TO LOCAL AUTHORITIES,Investment,NOTTINGHAM CITY COUNCIL,28/09/2023," 1,647.00 ",PUB,None,Grants
"Department for Levelling Up, Housing and Communities",Homes England,REV GRNTS TO LOCAL AUTHORITIES,Investment,NOTTINGHAM CITY COUNCIL,28/09/2023," 1,647.00 ",PUB,None,Grants
"Department for Levelling Up, Housing and Communities",Homes England,REV GRNTS TO LOCAL AUTHORITIES,Investment,NOTTINGHAM CITY COUNCIL,28/09/2023," 1,678.00 ",PUB,None,Grants
"Department for Levelling Up, Housing and Communities",Homes England,REV GRNTS TO LOCAL AUTHORITIES,Investment,NOTTINGHAM CITY COUNCIL,28/09/2023," 1,678.00 ",PUB,None,Grants
"Department for Levelling Up, Housing and Communities",Homes England,REV GRNTS TO LOCAL AUTHORITIES,Investment,NOTTINGHAM CITY COUNCIL,28/09/2023," 1,678.00 ",PUB,None,Grants
"Department for Levelling Up, Housing and Communities",Homes England,REV GRNTS TO LOCAL AUTHORITIES,Investment,NOTTINGHAM CITY COUNCIL,28/09/2023," 1,709.00 ",PUB,None,Grants
"Department for Levelling Up, Housing and Communities",Homes England,REV GRNTS TO LOCAL AUTHORITIES,Investment,NOTTINGHAM CITY COUNCIL,28/09/2023," 1,678.00 ",PUB,None,Grants
"Department for Levelling Up, Housing and Communities",Homes England,REV GRNTS TO LOCAL AUTHORITIES,Investment,NOTTINGHAM CITY COUNCIL,28/09/2023," 1,678.00 ",PUB,None,Grants
"Department for Levelling Up, Housing and Communities",Homes England,REV GRNTS TO LOCAL AUTHORITIES,Investment,NOTTINGHAM CITY COUNCIL,28/09/2023," 1,647.00 ",PUB,None,Grants
"Department for Levelling Up, Housing and Communities",Homes England,CAP GRNTS TO LOCAL AUTHORITIES,Investment,BRISTOL CITY COUNCIL,14/09/2023," 525,000.00 ",PUB,None,Grants
"Department for Levelling Up, Housing and Communities",Homes England,CAP GRNTS TO LOCAL AUTHORITIES,Investment,BRISTOL CITY COUNCIL,14/09/2023," 35,000.00 ",PUB,None,Grants
"Department for Levelling Up, Housing and Communities",Homes England,REV GRNTS TO LOCAL AUTHORITIES,Investment,SWINDON BOROUGH COUNCIL,13/09/2023," 3,125.00 ",PUB,None,Grants
"Department for Levelling Up, Housing and Communities",Homes England,REV GRNTS TO LOCAL AUTHORITIES,Investment,SWINDON BOROUGH COUNCIL,28/09/2023," 1,150.00 ",PUB,None,Grants
"Department for Levelling Up, Housing and Communities",Homes England,REV GRNTS TO LOCAL AUTHORITIES,Investment,SWINDON BOROUGH COUNCIL,28/09/2023, 575.00 ,PUB,None,Grants
"Department for Levelling Up, Housing and Communities",Homes England,REV GRNTS TO LOCAL AUTHORITIES,Investment,SWINDON BOROUGH COUNCIL,28/09/2023," 1,150.00 ",PUB,None,Grants
"Department for Levelling Up, Housing and Communities",Homes England,REV GRNTS TO LOCAL AUTHORITIES,Investment,WILTSHIRE COUNCIL,28/09/2023, 937.00 ,PUB,None,Grants
"Department for Levelling Up, Housing and Communities",Homes England,REV GRNTS TO LOCAL AUTHORITIES,Investment,WILTSHIRE COUNCIL,28/09/2023," 7,500.00 ",PUB,None,Grants
"Department for Levelling Up, Housing and Communities",Homes England,REV GRNTS TO LOCAL AUTHORITIES,Investment,WILTSHIRE COUNCIL,28/09/2023, 937.00 ,PUB,None,Grants
"Department for Levelling Up, Housing and Communities",Homes England,REV GRNTS TO LOCAL AUTHORITIES,Investment,WILTSHIRE COUNCIL,28/09/2023, 937.00 ,PUB,None,Grants
"Department for Levelling Up, Housing and Communities",Homes England,REV GRNTS TO LOCAL AUTHORITIES,Investment,WILTSHIRE COUNCIL,28/09/2023, 937.00 ,PUB,None,Grants
"Department for Levelling Up, Housing and Communities",Homes England,REV GRNTS TO LOCAL AUTHORITIES,Investment,LUTON BOROUGH COUNCIL,29/09/2023, 621.00 ,PUB,None,Grants
"Department for Levelling Up, Housing and Communities",Homes England,REV GRNTS TO LOCAL AUTHORITIES,Investment,LUTON BOROUGH COUNCIL,29/09/2023, 920.00 ,PUB,None,Grants
"Department for Levelling Up, Housing and Communities",Homes England,REV GRNTS TO LOCAL AUTHORITIES,Investment,LUTON BOROUGH COUNCIL,29/09/2023, 695.00 ,PUB,None,Grants
"Department for Levelling Up, Housing and Communities",Homes England,REV GRNTS TO LOCAL AUTHORITIES,Investment,LUTON BOROUGH COUNCIL,29/09/2023, 887.00 ,PUB,None,Grants
"Department for Levelling Up, Housing and Communities",Homes England,REV GRNTS TO LOCAL AUTHORITIES,Investment,LUTON BOROUGH COUNCIL,29/09/2023, 783.00 ,PUB,None,Grants
"Department for Levelling Up, Housing and Communities",Homes England,REV GRNTS TO LOCAL AUTHORITIES,Investment,LUTON BOROUGH COUNCIL,29/09/2023, 291.00 ,PUB,None,Grants
"Department for Levelling Up, Housing and Communities",Homes England,REV GRNTS TO LOCAL AUTHORITIES,Investment,CENTRAL BEDFORDSHIRE COUNCIL,01/09/2023," 25,000.00 ",PUB,None,Grants
"Department for Levelling Up, Housing and Communities",Homes England,REV GRNTS TO LOCAL AUTHORITIES,Investment,CENTRAL BEDFORDSHIRE COUNCIL,05/09/2023," 22,500.00 ",PUB,None,Grants
"Department for Levelling Up, Housing and Communities",Homes England,REV GRNTS TO LOCAL AUTHORITIES,Investment,CENTRAL BEDFORDSHIRE COUNCIL,14/09/2023," 2,500.00 ",PUB,None,Grants
"Department for Levelling Up, Housing and Communities",Homes England,REV GRNTS TO LOCAL AUTHORITIES,Investment,CENTRAL BEDFORDSHIRE COUNCIL,28/09/2023," 1,892.00 ",PUB,None,Grants
"Department for Levelling Up, Housing and Communities",Homes England,REV GRNTS TO LOCAL AUTHORITIES,Investment,CENTRAL BEDFORDSHIRE COUNCIL,28/09/2023," 1,892.00 ",PUB,None,Grants
"Department for Levelling Up, Housing and Communities",Homes England,REV GRNTS TO LOCAL AUTHORITIES,Investment,CENTRAL BEDFORDSHIRE COUNCIL,28/09/2023," 1,893.00 ",PUB,None,Grants
"Department for Levelling Up, Housing and Communities",Homes England,REV GRNTS TO LOCAL AUTHORITIES,Investment,CENTRAL BEDFORDSHIRE COUNCIL,28/09/2023," 1,713.00 ",PUB,None,Grants
"Department for Levelling Up, Housing and Communities",Homes England,REV GRNTS TO LOCAL AUTHORITIES,Investment,CENTRAL BEDFORDSHIRE COUNCIL,28/09/2023," 1,893.00 ",PUB,None,Grants
"Department for Levelling Up, Housing and Communities",Homes England,REV GRNTS TO LOCAL AUTHORITIES,Investment,SOUTHEND ON SEA CITY COUNCIL,18/09/2023," 7,190.00 ",PUB,None,Grants
"Department for Levelling Up, Housing and Communities",Homes England,REV GRNTS TO LOCAL AUTHORITIES,Investment,SOUTHEND ON SEA CITY COUNCIL,28/09/2023," 1,797.00 ",PUB,None,Grants
"Department for Levelling Up, Housing and Communities",Homes England,REV GRNTS TO LOCAL AUTHORITIES,Investment,SOUTHEND ON SEA CITY COUNCIL,28/09/2023," 1,797.00 ",PUB,None,Grants
"Department for Levelling Up, Housing and Communities",Homes England,REV GRNTS TO LOCAL AUTHORITIES,Investment,SOUTHEND ON SEA CITY COUNCIL,28/09/2023," 1,797.00 ",PUB,None,Grants
"Department for Levelling Up, Housing and Communities",Homes England,REV GRNTS TO LOCAL AUTHORITIES,Investment,SOUTHEND ON SEA CITY COUNCIL,28/09/2023," 1,797.00 ",PUB,None,Grants
"Department for Levelling Up, Housing and Communities",Homes England,REV GRNTS TO LOCAL AUTHORITIES,Investment,SOUTHEND ON SEA CITY COUNCIL,28/09/2023," 1,797.00 ",PUB,None,Grants
"Department for Levelling Up, Housing and Communities",Homes England,REV GRNTS TO LOCAL AUTHORITIES,Investment,SOUTHEND ON SEA CITY COUNCIL,28/09/2023," 1,797.00 ",PUB,None,Grants
"Department for Levelling Up, Housing and Communities",Homes England,REV GRNTS TO LOCAL AUTHORITIES,Investment,SOUTHEND ON SEA CITY COUNCIL,28/09/2023," 1,797.00 ",PUB,None,Grants
"Department for Levelling Up, Housing and Communities",Homes England,REV GRNTS TO LOCAL AUTHORITIES,Investment,SOUTHEND ON SEA CITY COUNCIL,28/09/2023," 1,797.00 ",PUB,None,Grants
"Department for Levelling Up, Housing and Communities",Homes England,REV GRNTS TO LOCAL AUTHORITIES,Investment,SOUTHEND ON SEA CITY COUNCIL,28/09/2023," 1,797.00 ",PUB,None,Grants
"Department for Levelling Up, Housing and Communities",Homes England,REV GRNTS TO LOCAL AUTHORITIES,Investment,SOUTHEND ON SEA CITY COUNCIL,28/09/2023," 1,797.00 ",PUB,None,Grants
"Department for Levelling Up, Housing and Communities",Homes England,REV GRNTS TO LOCAL AUTHORITIES,Investment,SOUTHEND ON SEA CITY COUNCIL,28/09/2023," 1,797.00 ",PUB,None,Grants
"Department for Levelling Up, Housing and Communities",Homes England,REV GRNTS TO LOCAL AUTHORITIES,Investment,SOUTHEND ON SEA CITY COUNCIL,28/09/2023," 1,797.00 ",PUB,None,Grants
"Department for Levelling Up, Housing and Communities",Homes England,REV GRNTS TO LOCAL AUTHORITIES,Investment,SOUTHEND ON SEA CITY COUNCIL,28/09/2023," 1,797.00 ",PUB,None,Grants
"Department for Levelling Up, Housing and Communities",Homes England,REV GRNTS TO LOCAL AUTHORITIES,"Markets, Partners & Places",SOUTHEND ON SEA CITY COUNCIL,26/09/2023," 24,000.00 ",PUB,None,Grants
"Department for Levelling Up, Housing and Communities",Homes England,REV GRNTS TO LOCAL AUTHORITIES,Investment,MEDWAY COUNCIL,28/09/2023," 5,435.00 ",PUB,None,Grants
"Department for Levelling Up, Housing and Communities",Homes England,REV GRNTS TO LOCAL AUTHORITIES,Investment,MEDWAY COUNCIL,28/09/2023," 3,333.00 ",PUB,None,Grants
"Department for Levelling Up, Housing and Communities",Homes England,REV GRNTS TO LOCAL AUTHORITIES,Investment,MEDWAY COUNCIL,28/09/2023," 5,435.00 ",PUB,None,Grants
"Department for Levelling Up, Housing and Communities",Homes England,REV GRNTS TO LOCAL AUTHORITIES,Investment,MEDWAY COUNCIL,28/09/2023," 3,333.00 ",PUB,None,Grants
"Department for Levelling Up, Housing and Communities",Homes England,REV GRNTS TO LOCAL AUTHORITIES,Investment,MEDWAY COUNCIL,28/09/2023," 6,669.00 ",PUB,None,Grants
"Department for Levelling Up, Housing and Communities",Homes England,REV GRNTS TO LOCAL AUTHORITIES,Investment,MILTON KEYNES COUNCIL,28/09/2023," 1,739.00 ",PUB,None,Grants
"Department for Levelling Up, Housing and Communities",Homes England,REV GRNTS TO LOCAL AUTHORITIES,Investment,MILTON KEYNES COUNCIL,28/09/2023," 1,737.00 ",PUB,None,Grants
"Department for Levelling Up, Housing and Communities",Homes England,REV GRNTS TO LOCAL AUTHORITIES,Investment,MILTON KEYNES COUNCIL,28/09/2023," 1,737.00 ",PUB,None,Grants
"Department for Levelling Up, Housing and Communities",Homes England,REV GRNTS TO LOCAL AUTHORITIES,Investment,MILTON KEYNES COUNCIL,28/09/2023," 1,737.00 ",PUB,None,Grants
"Department for Levelling Up, Housing and Communities",Homes England,REV GRNTS TO LOCAL AUTHORITIES,Investment,MILTON KEYNES COUNCIL,28/09/2023," 1,472.00 ",PUB,None,Grants
"Department for Levelling Up, Housing and Communities",Homes England,REV GRNTS TO LOCAL AUTHORITIES,Investment,MILTON KEYNES COUNCIL,28/09/2023," 1,762.00 ",PUB,None,Grants
"Department for Levelling Up, Housing and Communities",Homes England,REV GRNTS TO LOCAL AUTHORITIES,Investment,MILTON KEYNES COUNCIL,28/09/2023," 1,737.00 ",PUB,None,Grants
"Department for Levelling Up, Housing and Communities",Homes England,REV GRNTS TO LOCAL AUTHORITIES,Investment,MILTON KEYNES COUNCIL,28/09/2023," 1,757.00 ",PUB,None,Grants
"Department for Levelling Up, Housing and Communities",Homes England,REV GRNTS TO LOCAL AUTHORITIES,Investment,MILTON KEYNES COUNCIL,28/09/2023," 1,737.00 ",PUB,None,Grants
"Department for Levelling Up, Housing and Communities",Homes England,REV GRNTS TO LOCAL AUTHORITIES,Investment,MILTON KEYNES COUNCIL,28/09/2023," 1,737.00 ",PUB,None,Grants
"Department for Levelling Up, Housing and Communities",Homes England,REV GRNTS TO LOCAL AUTHORITIES,Investment,MILTON KEYNES COUNCIL,28/09/2023," 1,309.00 ",PUB,None,Grants
"Department for Levelling Up, Housing and Communities",Homes England,REV GRNTS TO LOCAL AUTHORITIES,Investment,MILTON KEYNES COUNCIL,28/09/2023," 1,765.00 ",PUB,None,Grants
"Department for Levelling Up, Housing and Communities",Homes England,REV GRNTS TO LOCAL AUTHORITIES,Investment,MILTON KEYNES COUNCIL,28/09/2023," 1,737.00 ",PUB,None,Grants
"Department for Levelling Up, Housing and Communities",Homes England,REV GRNTS TO LOCAL AUTHORITIES,Investment,MILTON KEYNES COUNCIL,28/09/2023," 1,836.00 ",PUB,None,Grants
"Department for Levelling Up, Housing and Communities",Homes England,REV GRNTS TO LOCAL AUTHORITIES,Investment,MILTON KEYNES COUNCIL,28/09/2023," 1,935.00 ",PUB,None,Grants
"Department for Levelling Up, Housing and Communities",Homes England,REV GRNTS TO LOCAL AUTHORITIES,Investment,MILTON KEYNES COUNCIL,28/09/2023," 1,960.00 ",PUB,None,Grants
"Department for Levelling Up, Housing and Communities",Homes England,REV GRNTS TO LOCAL AUTHORITIES,Investment,MILTON KEYNES COUNCIL,28/09/2023," 1,737.00 ",PUB,None,Grants
"Department for Levelling Up, Housing and Communities",Homes England,REV GRNTS TO LOCAL AUTHORITIES,Investment,MILTON KEYNES COUNCIL,28/09/2023," 1,737.00 ",PUB,None,Grants
"Department for Levelling Up, Housing and Communities",Homes England,REV GRNTS TO LOCAL AUTHORITIES,Investment,MILTON KEYNES COUNCIL,28/09/2023," 3,970.00 ",PUB,None,Grants
"Department for Levelling Up, Housing and Communities",Homes England,REV GRNTS TO LOCAL AUTHORITIES,Investment,MILTON KEYNES COUNCIL,28/09/2023," 1,737.00 ",PUB,None,Grants
"Department for Levelling Up, Housing and Communities",Homes England,REV GRNTS TO LOCAL AUTHORITIES,Investment,MILTON KEYNES COUNCIL,28/09/2023," 1,538.00 ",PUB,None,Grants
"Department for Levelling Up, Housing and Communities",Homes England,REV GRNTS TO LOCAL AUTHORITIES,Investment,MILTON KEYNES COUNCIL,28/09/2023," 1,755.00 ",PUB,None,Grants
"Department for Levelling Up, Housing and Communities",Homes England,REV GRNTS TO LOCAL AUTHORITIES,Investment,MILTON KEYNES COUNCIL,28/09/2023," 1,737.00 ",PUB,None,Grants
"Department for Levelling Up, Housing and Communities",Homes England,REV GRNTS TO LOCAL AUTHORITIES,Investment,MILTON KEYNES COUNCIL,28/09/2023," 1,737.00 ",PUB,None,Grants
"Department for Levelling Up, Housing and Communities",Homes England,REV GRNTS TO LOCAL AUTHORITIES,Investment,MILTON KEYNES COUNCIL,28/09/2023," 1,737.00 ",PUB,None,Grants
"Department for Levelling Up, Housing and Communities",Homes England,REV GRNTS TO LOCAL AUTHORITIES,Investment,MILTON KEYNES COUNCIL,28/09/2023," 1,737.00 ",PUB,None,Grants
"Department for Levelling Up, Housing and Communities",Homes England,REV GRNTS TO LOCAL AUTHORITIES,Investment,MILTON KEYNES COUNCIL,28/09/2023," 1,919.00 ",PUB,None,Grants
"Department for Levelling Up, Housing and Communities",Homes England,REV GRNTS TO LOCAL AUTHORITIES,Investment,BRIGHTON & HOVE CITY COUNCIL,28/09/2023," 1,575.00 ",PUB,None,Grants
"Department for Levelling Up, Housing and Communities",Homes England,REV GRNTS TO LOCAL AUTHORITIES,Investment,BRIGHTON & HOVE CITY COUNCIL,28/09/2023," 1,575.00 ",PUB,None,Grants
"Department for Levelling Up, Housing and Communities",Homes England,REV GRNTS TO LOCAL AUTHORITIES,Investment,BRIGHTON & HOVE CITY COUNCIL,28/09/2023," 1,934.00 ",PUB,None,Grants
"Department for Levelling Up, Housing and Communities",Homes England,REV GRNTS TO LOCAL AUTHORITIES,Investment,BRIGHTON & HOVE CITY COUNCIL,28/09/2023," 1,575.00 ",PUB,None,Grants
"Department for Levelling Up, Housing and Communities",Homes England,REV GRNTS TO LOCAL AUTHORITIES,Investment,BRIGHTON & HOVE CITY COUNCIL,28/09/2023," 1,934.00 ",PUB,None,Grants
"Department for Levelling Up, Housing and Communities",Homes England,REV GRNTS TO LOCAL AUTHORITIES,Investment,BRIGHTON & HOVE CITY COUNCIL,28/09/2023," 1,934.00 ",PUB,None,Grants
"Department for Levelling Up, Housing and Communities",Homes England,REV GRNTS TO LOCAL AUTHORITIES,Investment,BRIGHTON & HOVE CITY COUNCIL,28/09/2023," 1,934.00 ",PUB,None,Grants
"Department for Levelling Up, Housing and Communities",Homes England,REV GRNTS TO LOCAL AUTHORITIES,Investment,BRIGHTON & HOVE CITY COUNCIL,28/09/2023," 1,892.00 ",PUB,None,Grants
"Department for Levelling Up, Housing and Communities",Homes England,REV GRNTS TO LOCAL AUTHORITIES,Investment,BRIGHTON & HOVE CITY COUNCIL,28/09/2023," 1,575.00 ",PUB,None,Grants
"Department for Levelling Up, Housing and Communities",Homes England,REV GRNTS TO LOCAL AUTHORITIES,Investment,BRIGHTON & HOVE CITY COUNCIL,28/09/2023," 1,934.00 ",PUB,None,Grants
"Department for Levelling Up, Housing and Communities",Homes England,REV GRNTS TO LOCAL AUTHORITIES,Investment,BRIGHTON & HOVE CITY COUNCIL,28/09/2023," 1,934.00 ",PUB,None,Grants
"Department for Levelling Up, Housing and Communities",Homes England,REV GRNTS TO LOCAL AUTHORITIES,Investment,BRIGHTON & HOVE CITY COUNCIL,28/09/2023," 1,575.00 ",PUB,None,Grants
"Department for Levelling Up, Housing and Communities",Homes England,REV GRNTS TO LOCAL AUTHORITIES,Investment,BRIGHTON & HOVE CITY COUNCIL,28/09/2023," 1,454.00 ",PUB,None,Grants
"Department for Levelling Up, Housing and Communities",Homes England,REV GRNTS TO LOCAL AUTHORITIES,Investment,BRIGHTON & HOVE CITY COUNCIL,28/09/2023," 1,454.00 ",PUB,None,Grants
"Department for Levelling Up, Housing and Communities",Homes England,REV GRNTS TO LOCAL AUTHORITIES,Investment,BRIGHTON & HOVE CITY COUNCIL,28/09/2023," 1,454.00 ",PUB,None,Grants
"Department for Levelling Up, Housing and Communities",Homes England,REV GRNTS TO LOCAL AUTHORITIES,Investment,BRIGHTON & HOVE CITY COUNCIL,28/09/2023," 1,575.00 ",PUB,None,Grants
"Department for Levelling Up, Housing and Communities",Homes England,REV GRNTS TO LOCAL AUTHORITIES,Investment,BRIGHTON & HOVE CITY COUNCIL,28/09/2023," 1,575.00 ",PUB,None,Grants
"Department for Levelling Up, Housing and Communities",Homes England,REV GRNTS TO LOCAL AUTHORITIES,Investment,BRIGHTON & HOVE CITY COUNCIL,28/09/2023," 1,454.00 ",PUB,None,Grants
"Department for Levelling Up, Housing and Communities",Homes England,REV GRNTS TO LOCAL AUTHORITIES,Investment,BRIGHTON & HOVE CITY COUNCIL,28/09/2023," 1,454.00 ",PUB,None,Grants
"Department for Levelling Up, Housing and Communities",Homes England,REV GRNTS TO LOCAL AUTHORITIES,Investment,BRIGHTON & HOVE CITY COUNCIL,28/09/2023," 1,575.00 ",PUB,None,Grants
"Department for Levelling Up, Housing and Communities",Homes England,REV GRNTS TO LOCAL AUTHORITIES,Investment,BRIGHTON & HOVE CITY COUNCIL,28/09/2023," 1,575.00 ",PUB,None,Grants
"Department for Levelling Up, Housing and Communities",Homes England,REV GRNTS TO LOCAL AUTHORITIES,Investment,BRIGHTON & HOVE CITY COUNCIL,28/09/2023," 1,934.00 ",PUB,None,Grants
"Department for Levelling Up, Housing and Communities",Homes England,REV GRNTS TO LOCAL AUTHORITIES,Investment,BRIGHTON & HOVE CITY COUNCIL,28/09/2023," 1,934.00 ",PUB,None,Grants
"Department for Levelling Up, Housing and Communities",Homes England,REV GRNTS TO LOCAL AUTHORITIES,Investment,BRIGHTON & HOVE CITY COUNCIL,28/09/2023," 1,454.00 ",PUB,None,Grants
"Department for Levelling Up, Housing and Communities",Homes England,REV GRNTS TO LOCAL AUTHORITIES,Investment,BRIGHTON & HOVE CITY COUNCIL,28/09/2023," 1,892.00 ",PUB,None,Grants
"Department for Levelling Up, Housing and Communities",Homes England,REV GRNTS TO LOCAL AUTHORITIES,Investment,BRIGHTON & HOVE CITY COUNCIL,28/09/2023," 1,575.00 ",PUB,None,Grants
"Department for Levelling Up, Housing and Communities",Homes England,REV GRNTS TO LOCAL AUTHORITIES,Investment,BRIGHTON & HOVE CITY COUNCIL,28/09/2023," 1,575.00 ",PUB,None,Grants
"Department for Levelling Up, Housing and Communities",Homes England,REV GRNTS TO LOCAL AUTHORITIES,Investment,BRIGHTON & HOVE CITY COUNCIL,28/09/2023," 1,934.00 ",PUB,None,Grants
"Department for Levelling Up, Housing and Communities",Homes England,REV GRNTS TO LOCAL AUTHORITIES,Investment,BRIGHTON & HOVE CITY COUNCIL,28/09/2023," 1,575.00 ",PUB,None,Grants
"Department for Levelling Up, Housing and Communities",Homes England,REV GRNTS TO LOCAL AUTHORITIES,Investment,BRIGHTON & HOVE CITY COUNCIL,28/09/2023," 1,934.00 ",PUB,None,Grants
"Department for Levelling Up, Housing and Communities",Homes England,REV GRNTS TO LOCAL AUTHORITIES,Investment,BRIGHTON & HOVE CITY COUNCIL,28/09/2023," 1,454.00 ",PUB,None,Grants
"Department for Levelling Up, Housing and Communities",Homes England,REV GRNTS TO LOCAL AUTHORITIES,Investment,BRIGHTON & HOVE CITY COUNCIL,28/09/2023," 1,575.00 ",PUB,None,Grants
"Department for Levelling Up, Housing and Communities",Homes England,REV GRNTS TO LOCAL AUTHORITIES,Investment,BRIGHTON & HOVE CITY COUNCIL,28/09/2023," 1,934.00 ",PUB,None,Grants
"Department for Levelling Up, Housing and Communities",Homes England,REV GRNTS TO LOCAL AUTHORITIES,Investment,BRIGHTON & HOVE CITY COUNCIL,28/09/2023," 1,934.00 ",PUB,None,Grants
"Department for Levelling Up, Housing and Communities",Homes England,REV GRNTS TO LOCAL AUTHORITIES,Investment,BRIGHTON & HOVE CITY COUNCIL,28/09/2023," 1,575.00 ",PUB,None,Grants
"Department for Levelling Up, Housing and Communities",Homes England,REV GRNTS TO LOCAL AUTHORITIES,Investment,BRIGHTON & HOVE CITY COUNCIL,28/09/2023," 1,454.00 ",PUB,None,Grants
"Department for Levelling Up, Housing and Communities",Homes England,REV GRNTS TO LOCAL AUTHORITIES,Investment,BRIGHTON & HOVE CITY COUNCIL,28/09/2023," 1,575.00 ",PUB,None,Grants
"Department for Levelling Up, Housing and Communities",Homes England,REV GRNTS TO LOCAL AUTHORITIES,Investment,BRIGHTON & HOVE CITY COUNCIL,28/09/2023," 1,454.00 ",PUB,None,Grants
"Department for Levelling Up, Housing and Communities",Homes England,REV GRNTS TO LOCAL AUTHORITIES,Investment,BRIGHTON & HOVE CITY COUNCIL,28/09/2023," 1,454.00 ",PUB,None,Grants
"Department for Levelling Up, Housing and Communities",Homes England,REV GRNTS TO LOCAL AUTHORITIES,Investment,BRIGHTON & HOVE CITY COUNCIL,28/09/2023," 1,454.00 ",PUB,None,Grants
"Department for Levelling Up, Housing and Communities",Homes England,REV GRNTS TO LOCAL AUTHORITIES,Investment,BRIGHTON & HOVE CITY COUNCIL,28/09/2023," 1,575.00 ",PUB,None,Grants
"Department for Levelling Up, Housing and Communities",Homes England,REV GRNTS TO LOCAL AUTHORITIES,Investment,BRIGHTON & HOVE CITY COUNCIL,28/09/2023," 1,454.00 ",PUB,None,Grants
"Department for Levelling Up, Housing and Communities",Homes England,REV GRNTS TO LOCAL AUTHORITIES,Investment,BRIGHTON & HOVE CITY COUNCIL,28/09/2023," 1,454.00 ",PUB,None,Grants
"Department for Levelling Up, Housing and Communities",Homes England,REV GRNTS TO LOCAL AUTHORITIES,Investment,BRIGHTON & HOVE CITY COUNCIL,28/09/2023," 1,575.00 ",PUB,None,Grants
"Department for Levelling Up, Housing and Communities",Homes England,REV GRNTS TO LOCAL AUTHORITIES,Investment,BRIGHTON & HOVE CITY COUNCIL,28/09/2023," 1,934.00 ",PUB,None,Grants
"Department for Levelling Up, Housing and Communities",Homes England,REV GRNTS TO LOCAL AUTHORITIES,Investment,BRIGHTON & HOVE CITY COUNCIL,28/09/2023," 1,934.00 ",PUB,None,Grants
"Department for Levelling Up, Housing and Communities",Homes England,REV GRNTS TO LOCAL AUTHORITIES,Investment,BRIGHTON & HOVE CITY COUNCIL,28/09/2023," 1,454.00 ",PUB,None,Grants
"Department for Levelling Up, Housing and Communities",Homes England,REV GRNTS TO LOCAL AUTHORITIES,Investment,BRIGHTON & HOVE CITY COUNCIL,28/09/2023," 1,892.00 ",PUB,None,Grants
"Department for Levelling Up, Housing and Communities",Homes England,REV GRNTS TO LOCAL AUTHORITIES,Investment,BRIGHTON & HOVE CITY COUNCIL,28/09/2023," 1,575.00 ",PUB,None,Grants
"Department for Levelling Up, Housing and Communities",Homes England,REV GRNTS TO LOCAL AUTHORITIES,Investment,BRIGHTON & HOVE CITY COUNCIL,28/09/2023," 1,575.00 ",PUB,None,Grants
"Department for Levelling Up, Housing and Communities",Homes England,REV GRNTS TO LOCAL AUTHORITIES,Investment,BRIGHTON & HOVE CITY COUNCIL,28/09/2023," 1,575.00 ",PUB,None,Grants
"Department for Levelling Up, Housing and Communities",Homes England,REV GRNTS TO LOCAL AUTHORITIES,Investment,BRIGHTON & HOVE CITY COUNCIL,28/09/2023," 1,934.00 ",PUB,None,Grants
"Department for Levelling Up, Housing and Communities",Homes England,REV GRNTS TO LOCAL AUTHORITIES,Investment,BRIGHTON & HOVE CITY COUNCIL,28/09/2023," 1,575.00 ",PUB,None,Grants
"Department for Levelling Up, Housing and Communities",Homes England,REV GRNTS TO LOCAL AUTHORITIES,Investment,BRIGHTON & HOVE CITY COUNCIL,28/09/2023," 1,934.00 ",PUB,None,Grants
"Department for Levelling Up, Housing and Communities",Homes England,REV GRNTS TO LOCAL AUTHORITIES,Investment,BRIGHTON & HOVE CITY COUNCIL,28/09/2023," 1,454.00 ",PUB,None,Grants
"Department for Levelling Up, Housing and Communities",Homes England,REV GRNTS TO LOCAL AUTHORITIES,Investment,BRIGHTON & HOVE CITY COUNCIL,28/09/2023," 1,934.00 ",PUB,None,Grants
"Department for Levelling Up, Housing and Communities",Homes England,REV GRNTS TO LOCAL AUTHORITIES,Investment,BRIGHTON & HOVE CITY COUNCIL,28/09/2023," 1,934.00 ",PUB,None,Grants
"Department for Levelling Up, Housing and Communities",Homes England,REV GRNTS TO LOCAL AUTHORITIES,Investment,BRIGHTON & HOVE CITY COUNCIL,28/09/2023," 1,454.00 ",PUB,None,Grants
"Department for Levelling Up, Housing and Communities",Homes England,REV GRNTS TO LOCAL AUTHORITIES,Investment,BRIGHTON & HOVE CITY COUNCIL,28/09/2023," 1,934.00 ",PUB,None,Grants
"Department for Levelling Up, Housing and Communities",Homes England,REV GRNTS TO LOCAL AUTHORITIES,Investment,BRIGHTON & HOVE CITY COUNCIL,28/09/2023," 1,934.00 ",PUB,None,Grants
"Department for Levelling Up, Housing and Communities",Homes England,REV GRNTS TO LOCAL AUTHORITIES,Investment,BRIGHTON & HOVE CITY COUNCIL,28/09/2023," 1,454.00 ",PUB,None,Grants
"Department for Levelling Up, Housing and Communities",Homes England,REV GRNTS TO LOCAL AUTHORITIES,Investment,BRIGHTON & HOVE CITY COUNCIL,28/09/2023," 1,454.00 ",PUB,None,Grants
"Department for Levelling Up, Housing and Communities",Homes England,REV GRNTS TO LOCAL AUTHORITIES,Investment,BRIGHTON & HOVE CITY COUNCIL,28/09/2023," 1,575.00 ",PUB,None,Grants
"Department for Levelling Up, Housing and Communities",Homes England,REV GRNTS TO LOCAL AUTHORITIES,Investment,BRIGHTON & HOVE CITY COUNCIL,28/09/2023," 1,934.00 ",PUB,None,Grants
"Department for Levelling Up, Housing and Communities",Homes England,REV GRNTS TO LOCAL AUTHORITIES,Investment,BRIGHTON & HOVE CITY COUNCIL,28/09/2023," 1,454.00 ",PUB,None,Grants
"Department for Levelling Up, Housing and Communities",Homes England,REV GRNTS TO LOCAL AUTHORITIES,Investment,BRIGHTON & HOVE CITY COUNCIL,28/09/2023," 1,454.00 ",PUB,None,Grants
"Department for Levelling Up, Housing and Communities",Homes England,REV GRNTS TO LOCAL AUTHORITIES,Investment,BRIGHTON & HOVE CITY COUNCIL,28/09/2023," 1,454.00 ",PUB,None,Grants
"Department for Levelling Up, Housing and Communities",Homes England,REV GRNTS TO LOCAL AUTHORITIES,Investment,BRIGHTON & HOVE CITY COUNCIL,28/09/2023," 1,575.00 ",PUB,None,Grants
"Department for Levelling Up, Housing and Communities",Homes England,REV GRNTS TO LOCAL AUTHORITIES,Investment,BRIGHTON & HOVE CITY COUNCIL,28/09/2023," 1,575.00 ",PUB,None,Grants
"Department for Levelling Up, Housing and Communities",Homes England,REV GRNTS TO LOCAL AUTHORITIES,Investment,BRIGHTON & HOVE CITY COUNCIL,28/09/2023," 1,934.00 ",PUB,None,Grants
"Department for Levelling Up, Housing and Communities",Homes England,REV GRNTS TO LOCAL AUTHORITIES,Investment,BRIGHTON & HOVE CITY COUNCIL,28/09/2023," 1,454.00 ",PUB,None,Grants
"Department for Levelling Up, Housing and Communities",Homes England,REV GRNTS TO LOCAL AUTHORITIES,Investment,BRIGHTON & HOVE CITY COUNCIL,28/09/2023," 1,575.00 ",PUB,None,Grants
"Department for Levelling Up, Housing and Communities",Homes England,REV GRNTS TO LOCAL AUTHORITIES,Investment,BRIGHTON & HOVE CITY COUNCIL,28/09/2023," 1,934.00 ",PUB,None,Grants
"Department for Levelling Up, Housing and Communities",Homes England,REV GRNTS TO LOCAL AUTHORITIES,Investment,BRIGHTON & HOVE CITY COUNCIL,28/09/2023," 1,934.00 ",PUB,None,Grants
"Department for Levelling Up, Housing and Communities",Homes England,REV GRNTS TO LOCAL AUTHORITIES,Investment,BRIGHTON & HOVE CITY COUNCIL,28/09/2023," 1,892.00 ",PUB,None,Grants
"Department for Levelling Up, Housing and Communities",Homes England,REV GRNTS TO LOCAL AUTHORITIES,Investment,BRIGHTON & HOVE CITY COUNCIL,28/09/2023," 1,575.00 ",PUB,None,Grants
"Department for Levelling Up, Housing and Communities",Homes England,REV GRNTS TO LOCAL AUTHORITIES,Investment,BRIGHTON & HOVE CITY COUNCIL,28/09/2023," 1,934.00 ",PUB,None,Grants
"Department for Levelling Up, Housing and Communities",Homes England,REV GRNTS TO LOCAL AUTHORITIES,Investment,BRIGHTON & HOVE CITY COUNCIL,28/09/2023," 1,575.00 ",PUB,None,Grants
"Department for Levelling Up, Housing and Communities",Homes England,REV GRNTS TO LOCAL AUTHORITIES,Investment,BRIGHTON & HOVE CITY COUNCIL,28/09/2023," 1,934.00 ",PUB,None,Grants
"Department for Levelling Up, Housing and Communities",Homes England,REV GRNTS TO LOCAL AUTHORITIES,Investment,BRIGHTON & HOVE CITY COUNCIL,28/09/2023," 1,454.00 ",PUB,None,Grants
"Department for Levelling Up, Housing and Communities",Homes England,REV GRNTS TO LOCAL AUTHORITIES,Investment,BRIGHTON & HOVE CITY COUNCIL,28/09/2023," 1,934.00 ",PUB,None,Grants
"Department for Levelling Up, Housing and Communities",Homes England,REV GRNTS TO LOCAL AUTHORITIES,Investment,BRIGHTON & HOVE CITY COUNCIL,28/09/2023," 1,454.00 ",PUB,None,Grants
"Department for Levelling Up, Housing and Communities",Homes England,REV GRNTS TO LOCAL AUTHORITIES,Investment,BRIGHTON & HOVE CITY COUNCIL,28/09/2023," 1,454.00 ",PUB,None,Grants
"Department for Levelling Up, Housing and Communities",Homes England,REV GRNTS TO LOCAL AUTHORITIES,Investment,BRIGHTON & HOVE CITY COUNCIL,28/09/2023," 1,575.00 ",PUB,None,Grants
"Department for Levelling Up, Housing and Communities",Homes England,REV GRNTS TO LOCAL AUTHORITIES,Investment,BRIGHTON & HOVE CITY COUNCIL,28/09/2023," 1,575.00 ",PUB,None,Grants
"Department for Levelling Up, Housing and Communities",Homes England,REV GRNTS TO LOCAL AUTHORITIES,Investment,BRIGHTON & HOVE CITY COUNCIL,28/09/2023," 1,454.00 ",PUB,None,Grants
"Department for Levelling Up, Housing and Communities",Homes England,REV GRNTS TO LOCAL AUTHORITIES,Investment,BRIGHTON & HOVE CITY COUNCIL,28/09/2023," 1,454.00 ",PUB,None,Grants
"Department for Levelling Up, Housing and Communities",Homes England,REV GRNTS TO LOCAL AUTHORITIES,Investment,BRIGHTON & HOVE CITY COUNCIL,28/09/2023," 1,861.00 ",PUB,None,Grants
"Department for Levelling Up, Housing and Communities",Homes England,REV GRNTS TO LOCAL AUTHORITIES,Investment,BRIGHTON & HOVE CITY COUNCIL,28/09/2023," 1,575.00 ",PUB,None,Grants
"Department for Levelling Up, Housing and Communities",Homes England,REV GRNTS TO LOCAL AUTHORITIES,Investment,BRIGHTON & HOVE CITY COUNCIL,28/09/2023," 1,934.00 ",PUB,None,Grants
"Department for Levelling Up, Housing and Communities",Homes England,REV GRNTS TO LOCAL AUTHORITIES,Investment,BRIGHTON & HOVE CITY COUNCIL,28/09/2023," 1,934.00 ",PUB,None,Grants
"Department for Levelling Up, Housing and Communities",Homes England,REV GRNTS TO LOCAL AUTHORITIES,Investment,BRIGHTON & HOVE CITY COUNCIL,28/09/2023," 1,454.00 ",PUB,None,Grants
"Department for Levelling Up, Housing and Communities",Homes England,REV GRNTS TO LOCAL AUTHORITIES,Investment,BRIGHTON & HOVE CITY COUNCIL,28/09/2023," 1,454.00 ",PUB,None,Grants
"Department for Levelling Up, Housing and Communities",Homes England,REV GRNTS TO LOCAL AUTHORITIES,Investment,BRIGHTON & HOVE CITY COUNCIL,28/09/2023," 1,454.00 ",PUB,None,Grants
"Department for Levelling Up, Housing and Communities",Homes England,REV GRNTS TO LOCAL AUTHORITIES,Investment,PORTSMOUTH CITY COUNCIL,28/09/2023," 69,905.00 ",PUB,None,Grants
"Department for Levelling Up, Housing and Communities",Homes England,REV GRNTS TO LOCAL AUTHORITIES,Investment,PORTSMOUTH CITY COUNCIL,28/09/2023," 110,093.00 ",PUB,None,Grants
"Department for Levelling Up, Housing and Communities",Homes England,REV GRNTS TO LOCAL AUTHORITIES,Investment,PORTSMOUTH CITY COUNCIL,28/09/2023," 16,505.00 ",PUB,None,Grants
"Department for Levelling Up, Housing and Communities",Homes England,SERVICE CHARGE,Development,ASDA STORES LTD,26/09/2023, 811.54 ,LAR,80131500,Lease and rental of property or building
"Department for Levelling Up, Housing and Communities",Homes England,SERVICE CHARGE,Development,ASDA STORES LTD,26/09/2023," 1,790.62 ",LAR,80131500,Lease and rental of property or building
"Department for Levelling Up, Housing and Communities",Homes England,CAP GRNTS TO LOCAL AUTHORITIES,Investment,DOVER DISTRICT COUNCIL,27/09/2023," 598,718.81 ",PUB,None,Grants
"Department for Levelling Up, Housing and Communities",Homes England,INSURANCES,Chief Operating Officer,COVENTRY CITY COUNCIL,20/09/2023," 24,803.64 ",PUB,80131500,Lease and rental of property or building
"Department for Levelling Up, Housing and Communities",Homes England,REV GRNTS TO LOCAL AUTHORITIES,Investment,CAMBRIDGE CITY COUNCIL,06/09/2023," 55,610.00 ",PUB,None,Grants
"Department for Levelling Up, Housing and Communities",Homes England,CAP GRNTS TO LOCAL AUTHORITIES,Investment,CAMBRIDGE CITY COUNCIL,13/09/2023," 309,750.00 ",PUB,None,Grants
"Department for Levelling Up, Housing and Communities",Homes England,CAP GRNTS TO LOCAL AUTHORITIES,Investment,CAMBRIDGE CITY COUNCIL,13/09/2023," 309,750.00 ",PUB,None,Grants
"Department for Levelling Up, Housing and Communities",Homes England,REV GRNTS TO LOCAL AUTHORITIES,Investment,CAMBRIDGE CITY COUNCIL,14/09/2023," 61,788.00 ",PUB,None,Grants
"Department for Levelling Up, Housing and Communities",Homes England,REV GRNTS TO LOCAL AUTHORITIES,Investment,CAMBRIDGE CITY COUNCIL,28/09/2023," 1,072.00 ",PUB,None,Grants
"Department for Levelling Up, Housing and Communities",Homes England,REV GRNTS TO LOCAL AUTHORITIES,Investment,CAMBRIDGE CITY COUNCIL,28/09/2023," 1,071.00 ",PUB,None,Grants
"Department for Levelling Up, Housing and Communities",Homes England,REV GRNTS TO LOCAL AUTHORITIES,Investment,CAMBRIDGE CITY COUNCIL,28/09/2023," 1,071.00 ",PUB,None,Grants
"Department for Levelling Up, Housing and Communities",Homes England,REV GRNTS TO LOCAL AUTHORITIES,Investment,CAMBRIDGE CITY COUNCIL,28/09/2023," 1,072.00 ",PUB,None,Grants
"Department for Levelling Up, Housing and Communities",Homes England,REV GRNTS TO LOCAL AUTHORITIES,Investment,CAMBRIDGE CITY COUNCIL,28/09/2023," 1,071.00 ",PUB,None,Grants
"Department for Levelling Up, Housing and Communities",Homes England,REV GRNTS TO LOCAL AUTHORITIES,Investment,CAMBRIDGE CITY COUNCIL,28/09/2023," 1,071.00 ",PUB,None,Grants
"Department for Levelling Up, Housing and Communities",Homes England,REV GRNTS TO LOCAL AUTHORITIES,Investment,CAMBRIDGE CITY COUNCIL,28/09/2023," 1,072.00 ",PUB,None,Grants
"Department for Levelling Up, Housing and Communities",Homes England,REV GRNTS TO LOCAL AUTHORITIES,Investment,CAMBRIDGE CITY COUNCIL,28/09/2023," 1,072.00 ",PUB,None,Grants
"Department for Levelling Up, Housing and Communities",Homes England,REV GRNTS TO LOCAL AUTHORITIES,Investment,CAMBRIDGE CITY COUNCIL,28/09/2023," 1,070.00 ",PUB,None,Grants
"Department for Levelling Up, Housing and Communities",Homes England,REV GRNTS TO LOCAL AUTHORITIES,Investment,CAMBRIDGE CITY COUNCIL,28/09/2023," 1,071.00 ",PUB,None,Grants
"Department for Levelling Up, Housing and Communities",Homes England,REV GRNTS TO LOCAL AUTHORITIES,Investment,CAMBRIDGE CITY COUNCIL,28/09/2023," 1,072.00 ",PUB,None,Grants
"Department for Levelling Up, Housing and Communities",Homes England,REV GRNTS TO LOCAL AUTHORITIES,Investment,CAMBRIDGE CITY COUNCIL,28/09/2023," 1,071.00 ",PUB,None,Grants
"Department for Levelling Up, Housing and Communities",Homes England,REV GRNTS TO LOCAL AUTHORITIES,Investment,CAMBRIDGE CITY COUNCIL,28/09/2023," 1,071.00 ",PUB,None,Grants
"Department for Levelling Up, Housing and Communities",Homes England,REV GRNTS TO LOCAL AUTHORITIES,Investment,EXETER CITY COUNCIL,19/09/2023," 4,174.00 ",PUB,None,Grants
"Department for Levelling Up, Housing and Communities",Homes England,REV GRNTS TO LOCAL AUTHORITIES,Investment,EXETER CITY COUNCIL,28/09/2023," 1,425.00 ",PUB,None,Grants
"Department for Levelling Up, Housing and Communities",Homes England,REV GRNTS TO LOCAL AUTHORITIES,Investment,EXETER CITY COUNCIL,28/09/2023," 1,425.00 ",PUB,None,Grants
"Department for Levelling Up, Housing and Communities",Homes England,REV GRNTS TO LOCAL AUTHORITIES,Investment,EXETER CITY COUNCIL,28/09/2023," 1,425.00 ",PUB,None,Grants
"Department for Levelling Up, Housing and Communities",Homes England,REV GRNTS TO LOCAL AUTHORITIES,Investment,EXETER CITY COUNCIL,28/09/2023," 9,500.00 ",PUB,None,Grants
"Department for Levelling Up, Housing and Communities",Homes England,REV GRNTS TO LOCAL AUTHORITIES,Investment,EXETER CITY COUNCIL,28/09/2023," 1,425.00 ",PUB,None,Grants
"Department for Levelling Up, Housing and Communities",Homes England,REV GRNTS TO LOCAL AUTHORITIES,Investment,EXETER CITY COUNCIL,28/09/2023," 1,425.00 ",PUB,None,Grants
"Department for Levelling Up, Housing and Communities",Homes England,REV GRNTS TO LOCAL AUTHORITIES,Investment,EXETER CITY COUNCIL,28/09/2023," 1,425.00 ",PUB,None,Grants
"Department for Levelling Up, Housing and Communities",Homes England,REV GRNTS TO LOCAL AUTHORITIES,Investment,EXETER CITY COUNCIL,28/09/2023," 1,425.00 ",PUB,None,Grants
"Department for Levelling Up, Housing and Communities",Homes England,REV GRNTS TO LOCAL AUTHORITIES,Investment,EXETER CITY COUNCIL,28/09/2023," 1,425.00 ",PUB,None,Grants
"Department for Levelling Up, Housing and Communities",Homes England,REV GRNTS TO LOCAL AUTHORITIES,Investment,EXETER CITY COUNCIL,28/09/2023," 1,425.00 ",PUB,None,Grants
"Department for Levelling Up, Housing and Communities",Homes England,REV GRNTS TO LOCAL AUTHORITIES,Investment,EXETER CITY COUNCIL,28/09/2023," 9,500.00 ",PUB,None,Grants
"Department for Levelling Up, Housing and Communities",Homes England,REV GRNTS TO LOCAL AUTHORITIES,Investment,EXETER CITY COUNCIL,28/09/2023," 1,425.00 ",PUB,None,Grants
"Department for Levelling Up, Housing and Communities",Homes England,REV GRNTS TO LOCAL AUTHORITIES,Investment,EXETER CITY COUNCIL,28/09/2023," 1,425.00 ",PUB,None,Grants
"Department for Levelling Up, Housing and Communities",Homes England,REV GRNTS TO LOCAL AUTHORITIES,Investment,EXETER CITY COUNCIL,28/09/2023, 950.00 ,PUB,None,Grants
"Department for Levelling Up, Housing and Communities",Homes England,REV GRNTS TO LOCAL AUTHORITIES,Investment,EXETER CITY COUNCIL,28/09/2023," 1,425.00 ",PUB,None,Grants
"Department for Levelling Up, Housing and Communities",Homes England,REV GRNTS TO LOCAL AUTHORITIES,Investment,EXETER CITY COUNCIL,28/09/2023," 1,425.00 ",PUB,None,Grants
"Department for Levelling Up, Housing and Communities",Homes England,REV GRNTS TO LOCAL AUTHORITIES,Investment,EXETER CITY COUNCIL,28/09/2023, 950.00 ,PUB,None,Grants
"Department for Levelling Up, Housing and Communities",Homes England,REV GRNTS TO LOCAL AUTHORITIES,Investment,TEIGNBRIDGE DISTRICT COUNCIL,01/09/2023," 3,370.00 ",PUB,None,Grants
"Department for Levelling Up, Housing and Communities",Homes England,REV GRNTS TO LOCAL AUTHORITIES,Investment,TEIGNBRIDGE DISTRICT COUNCIL,28/09/2023," 1,800.00 ",PUB,None,Grants
"Department for Levelling Up, Housing and Communities",Homes England,REV GRNTS TO LOCAL AUTHORITIES,Investment,TEIGNBRIDGE DISTRICT COUNCIL,28/09/2023," 1,800.00 ",PUB,None,Grants
"Department for Levelling Up, Housing and Communities",Homes England,STAFF RECRUITMENT COSTS,Chief Operating Officer,LPFA,07/09/2023," 7,500.71 ",SMA,80111700,Personnel Recruitment
"Department for Levelling Up, Housing and Communities",Homes England,REV GRNTS TO LOCAL AUTHORITIES,Investment,EASTBOURNE BOROUGH COUNCIL,05/09/2023," 33,750.00 ",PUB,None,Grants
"Department for Levelling Up, Housing and Communities",Homes England,REV GRNTS TO LOCAL AUTHORITIES,Investment,EASTBOURNE BOROUGH COUNCIL,06/09/2023," 33,750.00 ",PUB,None,Grants
"Department for Levelling Up, Housing and Communities",Homes England,REV GRNTS TO LOCAL AUTHORITIES,Investment,EASTBOURNE BOROUGH COUNCIL,28/09/2023," 1,575.00 ",PUB,None,Grants
"Department for Levelling Up, Housing and Communities",Homes England,REV GRNTS TO LOCAL AUTHORITIES,Investment,EASTBOURNE BOROUGH COUNCIL,28/09/2023," 1,575.00 ",PUB,None,Grants
"Department for Levelling Up, Housing and Communities",Homes England,REV GRNTS TO LOCAL AUTHORITIES,Investment,EASTBOURNE BOROUGH COUNCIL,28/09/2023," 1,575.00 ",PUB,None,Grants
"Department for Levelling Up, Housing and Communities",Homes England,REV GRNTS TO LOCAL AUTHORITIES,Investment,EASTBOURNE BOROUGH COUNCIL,28/09/2023," 1,344.00 ",PUB,None,Grants
"Department for Levelling Up, Housing and Communities",Homes England,REV GRNTS TO LOCAL AUTHORITIES,Investment,EASTBOURNE BOROUGH COUNCIL,28/09/2023," 1,575.00 ",PUB,None,Grants
"Department for Levelling Up, Housing and Communities",Homes England,REV GRNTS TO LOCAL AUTHORITIES,Investment,EASTBOURNE BOROUGH COUNCIL,28/09/2023," 1,575.00 ",PUB,None,Grants
"Department for Levelling Up, Housing and Communities",Homes England,REV GRNTS TO LOCAL AUTHORITIES,Investment,EASTBOURNE BOROUGH COUNCIL,28/09/2023," 1,344.00 ",PUB,None,Grants
"Department for Levelling Up, Housing and Communities",Homes England,REV GRNTS TO LOCAL AUTHORITIES,Investment,EASTBOURNE BOROUGH COUNCIL,28/09/2023," 1,575.00 ",PUB,None,Grants
"Department for Levelling Up, Housing and Communities",Homes England,REV GRNTS TO LOCAL AUTHORITIES,Investment,EASTBOURNE BOROUGH COUNCIL,28/09/2023," 1,575.00 ",PUB,None,Grants
"Department for Levelling Up, Housing and Communities",Homes England,REV GRNTS TO LOCAL AUTHORITIES,Investment,EASTBOURNE BOROUGH COUNCIL,28/09/2023," 1,344.00 ",PUB,None,Grants
"Department for Levelling Up, Housing and Communities",Homes England,REV GRNTS TO LOCAL AUTHORITIES,Investment,EASTBOURNE BOROUGH COUNCIL,28/09/2023," 1,575.00 ",PUB,None,Grants
"Department for Levelling Up, Housing and Communities",Homes England,REV GRNTS TO LOCAL AUTHORITIES,Investment,WEALDEN DISTRICT COUNCIL,28/09/2023," 2,100.00 ",PUB,None,Grants
"Department for Levelling Up, Housing and Communities",Homes England,REV GRNTS TO LOCAL AUTHORITIES,Investment,WEALDEN DISTRICT COUNCIL,28/09/2023," 2,100.00 ",PUB,None,Grants
"Department for Levelling Up, Housing and Communities",Homes England,REV GRNTS TO LOCAL AUTHORITIES,Investment,WEALDEN DISTRICT COUNCIL,28/09/2023," 10,750.00 ",PUB,None,Grants
"Department for Levelling Up, Housing and Communities",Homes England,REV GRNTS TO LOCAL AUTHORITIES,Investment,WEALDEN DISTRICT COUNCIL,28/09/2023," 2,100.00 ",PUB,None,Grants
"Department for Levelling Up, Housing and Communities",Homes England,REV GRNTS TO LOCAL AUTHORITIES,Investment,WEALDEN DISTRICT COUNCIL,28/09/2023," 2,100.00 ",PUB,None,Grants
"Department for Levelling Up, Housing and Communities",Homes England,REV GRNTS TO LOCAL AUTHORITIES,Investment,COLCHESTER CITY COUNCIL,28/09/2023," 1,511.00 ",PUB,None,Grants
"Department for Levelling Up, Housing and Communities",Homes England,REV GRNTS TO LOCAL AUTHORITIES,Investment,COLCHESTER CITY COUNCIL,28/09/2023," 1,511.00 ",PUB,None,Grants
"Department for Levelling Up, Housing and Communities",Homes England,REV GRNTS TO LOCAL AUTHORITIES,Investment,COLCHESTER CITY COUNCIL,28/09/2023," 1,511.00 ",PUB,None,Grants
"Department for Levelling Up, Housing and Communities",Homes England,REV GRNTS TO LOCAL AUTHORITIES,Investment,COLCHESTER CITY COUNCIL,28/09/2023," 1,511.00 ",PUB,None,Grants
"Department for Levelling Up, Housing and Communities",Homes England,REV GRNTS TO LOCAL AUTHORITIES,Investment,COLCHESTER CITY COUNCIL,28/09/2023," 1,511.00 ",PUB,None,Grants
"Department for Levelling Up, Housing and Communities",Homes England,REV GRNTS TO LOCAL AUTHORITIES,Investment,COLCHESTER CITY COUNCIL,28/09/2023," 1,511.00 ",PUB,None,Grants
"Department for Levelling Up, Housing and Communities",Homes England,MANAGEMENT COSTS,Development,ENVIRONMENT AGENCY,13/09/2023," 1,447.80 ",PUB,80131800,Real estate management services
"Department for Levelling Up, Housing and Communities",Homes England,LANDSCAPE MAINT-BUILT ESTATE,"Markets, Partners & Places",LOWTHER FORESTRY GROUP,11/09/2023, 668.50 ,SMA,72102900,Facility maintenance and repair services
"Department for Levelling Up, Housing and Communities",Homes England,CAP GRNTS TO LOCAL AUTHORITIES,Investment,DACORUM BOROUGH COUNCIL,06/09/2023," 101,576.00 ",PUB,None,Grants
"Department for Levelling Up, Housing and Communities",Homes England,CAP GRNTS TO LOCAL AUTHORITIES,Investment,DACORUM BOROUGH COUNCIL,29/09/2023," 76,182.00 ",PUB,None,Grants
"Department for Levelling Up, Housing and Communities",Homes England,REV GRNTS TO LOCAL AUTHORITIES,Investment,EAST HERTFORDSHIRE DISTRICT COUNCIL,28/09/2023," 9,020.00 ",PUB,None,Grants
"Department for Levelling Up, Housing and Communities",Homes England,REV GRNTS TO LOCAL AUTHORITIES,Investment,STEVENGE BOROUGH COUNCIL,28/09/2023," 9,100.00 ",PUB,None,Grants
"Department for Levelling Up, Housing and Communities",Homes England,REV GRNTS TO LOCAL AUTHORITIES,Investment,STEVENGE BOROUGH COUNCIL,28/09/2023," 12,512.00 ",PUB,None,Grants
"Department for Levelling Up, Housing and Communities",Homes England,REV GRNTS TO LOCAL AUTHORITIES,Investment,STEVENGE BOROUGH COUNCIL,28/09/2023," 5,687.00 ",PUB,None,Grants
"Department for Levelling Up, Housing and Communities",Homes England,REV GRNTS TO LOCAL AUTHORITIES,Investment,STEVENGE BOROUGH COUNCIL,28/09/2023," 29,750.00 ",PUB,None,Grants
"Department for Levelling Up, Housing and Communities",Homes England,REV GRNTS TO LOCAL AUTHORITIES,Investment,DOVER DISTRICT COUNCIL,28/09/2023," 1,376.00 ",PUB,None,Grants
"Department for Levelling Up, Housing and Communities",Homes England,REV GRNTS TO LOCAL AUTHORITIES,Investment,DOVER DISTRICT COUNCIL,28/09/2023," 1,377.00 ",PUB,None,Grants
"Department for Levelling Up, Housing and Communities",Homes England,REV GRNTS TO LOCAL AUTHORITIES,Investment,DOVER DISTRICT COUNCIL,28/09/2023," 4,130.00 ",PUB,None,Grants
"Department for Levelling Up, Housing and Communities",Homes England,REV GRNTS TO LOCAL AUTHORITIES,Investment,DOVER DISTRICT COUNCIL,28/09/2023," 1,376.00 ",PUB,None,Grants
"Department for Levelling Up, Housing and Communities",Homes England,CAP GRNTS TO LOCAL AUTHORITIES,Investment,GRAVESHAM BOROUGH COUNCIL,19/09/2023," 125,000.00 ",PUB,None,Grants
"Department for Levelling Up, Housing and Communities",Homes England,REV GRNTS TO LOCAL AUTHORITIES,Investment,FOLKESTONE & HYTHE DISTRICT COUNCIL,28/09/2023," 2,478.00 ",PUB,None,Grants
"Department for Levelling Up, Housing and Communities",Homes England,REV GRNTS TO LOCAL AUTHORITIES,Investment,FOLKESTONE & HYTHE DISTRICT COUNCIL,28/09/2023," 2,478.00 ",PUB,None,Grants
"Department for Levelling Up, Housing and Communities",Homes England,REV GRNTS TO LOCAL AUTHORITIES,Investment,FOLKESTONE & HYTHE DISTRICT COUNCIL,28/09/2023," 2,478.00 ",PUB,None,Grants
"Department for Levelling Up, Housing and Communities",Homes England,REV GRNTS TO LOCAL AUTHORITIES,Investment,LANCASTER CITY COUNCIL,29/09/2023," 20,000.00 ",PUB,None,Grants
"Department for Levelling Up, Housing and Communities",Homes England,CONTRACT WORKS,Investment,NETWORK RAIL INFRASTRUCTURE LTD,08/09/2023," 79,117.90 ",LAR,72103300,Infrastructure maintenance and repair services
"Department for Levelling Up, Housing and Communities",Homes England,BESPOKE DEVELOPMENT SUPPORT,Corporate Resources,RSM UK AUDIT LLP,25/09/2023," 5,220.00 ",LAR,80131600,Sale of property and building
"Department for Levelling Up, Housing and Communities",Homes England,ROADS AND CAR PARKS,Development,GROUND CONTROL LIMITED,21/09/2023, 544.52 ,LAR,72101500,Building maintenance and repair services
"Department for Levelling Up, Housing and Communities",Homes England,ROADS AND CAR PARKS,Development,GROUND CONTROL LIMITED,21/09/2023, 544.52 ,LAR,72101500,Building maintenance and repair services
"Department for Levelling Up, Housing and Communities",Homes England,REV GRNTS TO LOCAL AUTHORITIES,Investment,CITY OF LINCOLN COUNCIL,20/09/2023," 1,448.00 ",PUB,None,Grants
"Department for Levelling Up, Housing and Communities",Homes England,REV GRNTS TO LOCAL AUTHORITIES,Investment,CITY OF LINCOLN COUNCIL,20/09/2023," 12,887.00 ",PUB,None,Grants
"Department for Levelling Up, Housing and Communities",Homes England,REV GRNTS TO LOCAL AUTHORITIES,Investment,CITY OF LINCOLN COUNCIL,20/09/2023," 1,448.00 ",PUB,None,Grants
"Department for Levelling Up, Housing and Communities",Homes England,REV GRNTS TO LOCAL AUTHORITIES,Investment,CITY OF LINCOLN COUNCIL,20/09/2023," 1,447.00 ",PUB,None,Grants
"Department for Levelling Up, Housing and Communities",Homes England,REV GRNTS TO LOCAL AUTHORITIES,Investment,GREAT YARMOUTH BOROUGH COUNCIL,28/09/2023," 3,452.00 ",PUB,None,Grants
"Department for Levelling Up, Housing and Communities",Homes England,REV GRNTS TO LOCAL AUTHORITIES,Investment,WEST NORTHAMPTONSHIRE COUNCIL,29/09/2023, 700.00 ,PUB,None,Grants
"Department for Levelling Up, Housing and Communities",Homes England,REV GRNTS TO LOCAL AUTHORITIES,Investment,WEST NORTHAMPTONSHIRE COUNCIL,29/09/2023, 700.00 ,PUB,None,Grants
"Department for Levelling Up, Housing and Communities",Homes England,REV GRNTS TO LOCAL AUTHORITIES,Investment,WEST NORTHAMPTONSHIRE COUNCIL,29/09/2023, 700.00 ,PUB,None,Grants
"Department for Levelling Up, Housing and Communities",Homes England,REV GRNTS TO LOCAL AUTHORITIES,Investment,WEST NORTHAMPTONSHIRE COUNCIL,29/09/2023, 700.00 ,PUB,None,Grants
"Department for Levelling Up, Housing and Communities",Homes England,REV GRNTS TO LOCAL AUTHORITIES,Investment,WEST NORTHAMPTONSHIRE COUNCIL,29/09/2023, 700.00 ,PUB,None,Grants
"Department for Levelling Up, Housing and Communities",Homes England,REV GRNTS TO LOCAL AUTHORITIES,Investment,WEST NORTHAMPTONSHIRE COUNCIL,29/09/2023, 700.00 ,PUB,None,Grants
"Department for Levelling Up, Housing and Communities",Homes England,REV GRNTS TO LOCAL AUTHORITIES,Investment,WEST NORTHAMPTONSHIRE COUNCIL,29/09/2023, 700.00 ,PUB,None,Grants
"Department for Levelling Up, Housing and Communities",Homes England,REV GRNTS TO LOCAL AUTHORITIES,Investment,WEST NORTHAMPTONSHIRE COUNCIL,29/09/2023, 700.00 ,PUB,None,Grants
"Department for Levelling Up, Housing and Communities",Homes England,REV GRNTS TO LOCAL AUTHORITIES,Investment,WEST NORTHAMPTONSHIRE COUNCIL,29/09/2023, 700.00 ,PUB,None,Grants
"Department for Levelling Up, Housing and Communities",Homes England,REV GRNTS TO LOCAL AUTHORITIES,Investment,WEST NORTHAMPTONSHIRE COUNCIL,29/09/2023, 700.00 ,PUB,None,Grants
"Department for Levelling Up, Housing and Communities",Homes England,REV GRNTS TO LOCAL AUTHORITIES,Investment,WEST NORTHAMPTONSHIRE COUNCIL,29/09/2023, 700.00 ,PUB,None,Grants
"Department for Levelling Up, Housing and Communities",Homes England,REV GRNTS TO LOCAL AUTHORITIES,Investment,WEST NORTHAMPTONSHIRE COUNCIL,29/09/2023, 700.00 ,PUB,None,Grants
"Department for Levelling Up, Housing and Communities",Homes England,REV GRNTS TO LOCAL AUTHORITIES,Investment,WEST NORTHAMPTONSHIRE COUNCIL,29/09/2023, 700.00 ,PUB,None,Grants
"Department for Levelling Up, Housing and Communities",Homes England,REV GRNTS TO LOCAL AUTHORITIES,Investment,WEST NORTHAMPTONSHIRE COUNCIL,29/09/2023, 700.00 ,PUB,None,Grants
"Department for Levelling Up, Housing and Communities",Homes England,REV GRNTS TO LOCAL AUTHORITIES,Investment,WEST NORTHAMPTONSHIRE COUNCIL,29/09/2023, 700.00 ,PUB,None,Grants
"Department for Levelling Up, Housing and Communities",Homes England,CAP GRNTS TO LOCAL AUTHORITIES,Investment,THE COUNCIL OF THE  BOROUGH OF HARROGATE,20/09/2023," 14,250.00 ",PUB,None,Grants
"Department for Levelling Up, Housing and Communities",Homes England,REV GRNTS TO LOCAL AUTHORITIES,Investment,THE COUNCIL OF THE  BOROUGH OF HARROGATE,28/09/2023," 2,635.00 ",PUB,None,Grants
"Department for Levelling Up, Housing and Communities",Homes England,REV GRNTS TO LOCAL AUTHORITIES,Investment,THE COUNCIL OF THE  BOROUGH OF HARROGATE,28/09/2023," 2,635.00 ",PUB,None,Grants
"Department for Levelling Up, Housing and Communities",Homes England,REV GRNTS TO LOCAL AUTHORITIES,Investment,THE COUNCIL OF THE  BOROUGH OF HARROGATE,28/09/2023," 2,635.00 ",PUB,None,Grants
"Department for Levelling Up, Housing and Communities",Homes England,REV GRNTS TO LOCAL AUTHORITIES,Investment,RYEDALE DISTRICT COUNCIL,28/09/2023," 3,912.00 ",PUB,None,Grants
"Department for Levelling Up, Housing and Communities",Homes England,REV GRNTS TO LOCAL AUTHORITIES,"Markets, Partners & Places",CHESHIRE WEST & CHESTER COUNCIL,29/09/2023," 50,000.00 ",PUB,None,Grants
"Department for Levelling Up, Housing and Communities",Homes England,CAP GRNTS TO LOCAL AUTHORITIES,Investment,MEDWAY COUNCIL,11/09/2023," 1,982,505.68 ",PUB,None,Grants
"Department for Levelling Up, Housing and Communities",Homes England,CAP GRNTS TO LOCAL AUTHORITIES,Investment,DEVON COUNTY COUNCIL,05/09/2023," 531,224.77 ",PUB,None,Grants
"Department for Levelling Up, Housing and Communities",Homes England,CAP GRNTS TO LOCAL AUTHORITIES,Investment,DEVON COUNTY COUNCIL,19/09/2023," 1,219,868.47 ",PUB,None,Grants
"Department for Levelling Up, Housing and Communities",Homes England,CAP GRNTS TO LOCAL AUTHORITIES,Investment,HAMPSHIRE COUNTY COUNCIL,13/09/2023," 388,980.75 ",PUB,None,Grants
"Department for Levelling Up, Housing and Communities",Homes England,CAP GRNTS TO LOCAL AUTHORITIES,Investment,HAMPSHIRE COUNTY COUNCIL,28/09/2023," 697,877.12 ",PUB,None,Grants
"Department for Levelling Up, Housing and Communities",Homes England,REV GRNTS TO LOCAL AUTHORITIES,Investment,RUNNYMEDE BOROUGH COUNCIL,28/09/2023," 1,667.00 ",PUB,None,Grants
"Department for Levelling Up, Housing and Communities",Homes England,REV GRNTS TO LOCAL AUTHORITIES,Investment,RUNNYMEDE BOROUGH COUNCIL,28/09/2023," 1,667.00 ",PUB,None,Grants
"Department for Levelling Up, Housing and Communities",Homes England,REV GRNTS TO LOCAL AUTHORITIES,Investment,RUNNYMEDE BOROUGH COUNCIL,28/09/2023," 1,666.00 ",PUB,None,Grants
"Department for Levelling Up, Housing and Communities",Homes England,CAPITAL GRANTS TO RPs,Investment,BOLTON AT HOME LIMITED,20/09/2023," 9,000.00 ",LAR,None,Grants
"Department for Levelling Up, Housing and Communities",Homes England,CAPITAL GRANTS TO RPs,Investment,BOLTON AT HOME LIMITED,20/09/2023," 9,000.00 ",LAR,None,Grants
"Department for Levelling Up, Housing and Communities",Homes England,CAPITAL GRANTS TO RPs,Investment,BOLTON AT HOME LIMITED,20/09/2023," 9,000.00 ",LAR,None,Grants
"Department for Levelling Up, Housing and Communities",Homes England,CAPITAL GRANTS TO RPs,Investment,BOLTON AT HOME LIMITED,20/09/2023," 9,000.00 ",LAR,None,Grants
"Department for Levelling Up, Housing and Communities",Homes England,CAPITAL GRANTS TO RPs,Investment,BOLTON AT HOME LIMITED,20/09/2023," 9,000.00 ",LAR,None,Grants
"Department for Levelling Up, Housing and Communities",Homes England,CAPITAL GRANTS TO RPs,Investment,BOLTON AT HOME LIMITED,20/09/2023," 9,000.00 ",LAR,None,Grants
"Department for Levelling Up, Housing and Communities",Homes England,CAPITAL GRANTS TO RPs,Investment,BOLTON AT HOME LIMITED,20/09/2023," 9,000.00 ",LAR,None,Grants
"Department for Levelling Up, Housing and Communities",Homes England,CAPITAL GRANTS TO RPs,Investment,FIRST CHOICE HOMES OLDHAM LIMITED,29/09/2023," 9,000.00 ",LAR,None,Grants
"Department for Levelling Up, Housing and Communities",Homes England,CAPITAL GRANTS TO RPs,Investment,FIRST CHOICE HOMES OLDHAM LIMITED,29/09/2023," 119,250.00 ",LAR,None,Grants
"Department for Levelling Up, Housing and Communities",Homes England,CAPITAL GRANTS TO RPs,Investment,FIRST CHOICE HOMES OLDHAM LIMITED,29/09/2023," 9,000.00 ",LAR,None,Grants
"Department for Levelling Up, Housing and Communities",Homes England,CAPITAL GRANTS TO RPs,Investment,FIRST CHOICE HOMES OLDHAM LIMITED,29/09/2023," 9,000.00 ",LAR,None,Grants
"Department for Levelling Up, Housing and Communities",Homes England,CAPITAL GRANTS TO RPs,Investment,FIRST CHOICE HOMES OLDHAM LIMITED,29/09/2023," 9,000.00 ",LAR,None,Grants
"Department for Levelling Up, Housing and Communities",Homes England,CAPITAL GRANTS TO RPs,Investment,REGENDA LIMITED,29/09/2023," 136,500.00 ",LAR,None,Grants
"Department for Levelling Up, Housing and Communities",Homes England,REV GRNTS TO LOCAL AUTHORITIES,Investment,ACTION HOUSING AND SUPPORT,01/09/2023," 4,959.00 ",MED,None,Grants
"Department for Levelling Up, Housing and Communities",Homes England,CAPITAL GRANTS TO RPs,Investment,ASTER COMMUNITIES,15/09/2023," 8,156,850.00 ",LAR,None,Grants
"Department for Levelling Up, Housing and Communities",Homes England,REV GRNTS TO LOCAL AUTHORITIES,Investment,HUMANKIND CHARITY,28/09/2023," 1,947.00 ",LAR,None,Grants
"Department for Levelling Up, Housing and Communities",Homes England,REV GRNTS TO LOCAL AUTHORITIES,Investment,HUMANKIND CHARITY,28/09/2023," 1,948.00 ",LAR,None,Grants
"Department for Levelling Up, Housing and Communities",Homes England,REV GRNTS TO LOCAL AUTHORITIES,Investment,HUMANKIND CHARITY,28/09/2023," 1,947.00 ",LAR,None,Grants
"Department for Levelling Up, Housing and Communities",Homes England,REV GRNTS TO LOCAL AUTHORITIES,Investment,HUMANKIND CHARITY,28/09/2023," 3,895.00 ",LAR,None,Grants
"Department for Levelling Up, Housing and Communities",Homes England,REV GRNTS TO LOCAL AUTHORITIES,Investment,KEYSTAGE C.I.C.,28/09/2023," 1,352.00 ",MIC,None,Grants
"Department for Levelling Up, Housing and Communities",Homes England,REV GRNTS TO LOCAL AUTHORITIES,Investment,KEYSTAGE C.I.C.,28/09/2023," 1,578.00 ",MIC,None,Grants
"Department for Levelling Up, Housing and Communities",Homes England,REV GRNTS TO LOCAL AUTHORITIES,Investment,KEYSTAGE C.I.C.,28/09/2023," 1,352.00 ",MIC,None,Grants
"Department for Levelling Up, Housing and Communities",Homes England,REV GRNTS TO LOCAL AUTHORITIES,Investment,KEYSTAGE C.I.C.,28/09/2023," 1,352.00 ",MIC,None,Grants
"Department for Levelling Up, Housing and Communities",Homes England,REV GRNTS TO LOCAL AUTHORITIES,Investment,KEYSTAGE C.I.C.,28/09/2023," 1,577.00 ",MIC,None,Grants
"Department for Levelling Up, Housing and Communities",Homes England,REV GRNTS TO LOCAL AUTHORITIES,Investment,KEYSTAGE C.I.C.,28/09/2023," 1,578.00 ",MIC,None,Grants
"Department for Levelling Up, Housing and Communities",Homes England,REV GRNTS TO LOCAL AUTHORITIES,Investment,KEYSTAGE C.I.C.,28/09/2023," 1,578.00 ",MIC,None,Grants
"Department for Levelling Up, Housing and Communities",Homes England,REV GRNTS TO LOCAL AUTHORITIES,Investment,KEYSTAGE C.I.C.,28/09/2023," 8,530.00 ",MIC,None,Grants
"Department for Levelling Up, Housing and Communities",Homes England,REV GRNTS TO LOCAL AUTHORITIES,Investment,KEYSTAGE C.I.C.,28/09/2023," 1,578.00 ",MIC,None,Grants
"Department for Levelling Up, Housing and Communities",Homes England,REV GRNTS TO LOCAL AUTHORITIES,Investment,KEYSTAGE C.I.C.,28/09/2023," 1,578.00 ",MIC,None,Grants
"Department for Levelling Up, Housing and Communities",Homes England,CAPITAL GRANTS TO RPs,Investment,THE GUINNESS PARTNERSHIP LIMITED,05/09/2023," 64,000.00 ",LAR,None,Grants
"Department for Levelling Up, Housing and Communities",Homes England,CAPITAL GRANTS TO RPs,Investment,THE GUINNESS PARTNERSHIP LIMITED,05/09/2023," 96,000.00 ",LAR,None,Grants
"Department for Levelling Up, Housing and Communities",Homes England,CAPITAL GRANTS TO RPs,Investment,THE GUINNESS PARTNERSHIP LIMITED,05/09/2023," 352,000.00 ",LAR,None,Grants
"Department for Levelling Up, Housing and Communities",Homes England,CAPITAL GRANTS TO RPs,Investment,J & M RESIDENTIAL LETTINGS LIMITED,07/09/2023," 9,380.00 ",SMA,None,Grants
"Department for Levelling Up, Housing and Communities",Homes England,CAPITAL GRANTS TO RPs,Investment,J & M RESIDENTIAL LETTINGS LIMITED,07/09/2023," 9,380.00 ",SMA,None,Grants
"Department for Levelling Up, Housing and Communities",Homes England,REV GRNTS TO LOCAL AUTHORITIES,Investment,ST RICHARD OF CHICHESTER CHRSTIAN CARE,28/09/2023," 5,017.00 ",MED,None,Grants
"Department for Levelling Up, Housing and Communities",Homes England,REV GRNTS TO LOCAL AUTHORITIES,Investment,ST RICHARD OF CHICHESTER CHRSTIAN CARE,28/09/2023," 2,508.00 ",MED,None,Grants
"Department for Levelling Up, Housing and Communities",Homes England,REV GRNTS TO LOCAL AUTHORITIES,Investment,EMH HOUSING & REGENERATION LTD,29/09/2023," 2,123.00 ",MED,None,Grants
"Department for Levelling Up, Housing and Communities",Homes England,REV GRNTS TO LOCAL AUTHORITIES,Investment,EMH HOUSING & REGENERATION LTD,29/09/2023," 2,123.00 ",MED,None,Grants
"Department for Levelling Up, Housing and Communities",Homes England,REV GRNTS TO LOCAL AUTHORITIES,Investment,EMH HOUSING & REGENERATION LTD,29/09/2023," 2,123.00 ",MED,None,Grants
"Department for Levelling Up, Housing and Communities",Homes England,REV GRNTS TO LOCAL AUTHORITIES,Investment,EMH HOUSING & REGENERATION LTD,29/09/2023," 2,123.00 ",MED,None,Grants
"Department for Levelling Up, Housing and Communities",Homes England,REV GRNTS TO LOCAL AUTHORITIES,Investment,EMH HOUSING & REGENERATION LTD,29/09/2023," 2,123.00 ",MED,None,Grants
"Department for Levelling Up, Housing and Communities",Homes England,REV GRNTS TO LOCAL AUTHORITIES,Investment,EMH HOUSING & REGENERATION LTD,29/09/2023," 2,123.00 ",MED,None,Grants
"Department for Levelling Up, Housing and Communities",Homes England,REV GRNTS TO LOCAL AUTHORITIES,Investment,DEPAUL HOUSING SERVICES,28/09/2023," 1,203.00 ",SMA,None,Grants
"Department for Levelling Up, Housing and Communities",Homes England,REV GRNTS TO LOCAL AUTHORITIES,Investment,DEPAUL HOUSING SERVICES,28/09/2023," 1,203.00 ",SMA,None,Grants
"Department for Levelling Up, Housing and Communities",Homes England,REV GRNTS TO LOCAL AUTHORITIES,Investment,DEPAUL HOUSING SERVICES,28/09/2023," 1,203.00 ",SMA,None,Grants
"Department for Levelling Up, Housing and Communities",Homes England,REV GRNTS TO LOCAL AUTHORITIES,Investment,DEPAUL HOUSING SERVICES,28/09/2023," 1,203.00 ",SMA,None,Grants
"Department for Levelling Up, Housing and Communities",Homes England,REV GRNTS TO LOCAL AUTHORITIES,Investment,HAVEN FIRST,28/09/2023," 1,668.00 ",MED,None,Grants
"Department for Levelling Up, Housing and Communities",Homes England,REV GRNTS TO LOCAL AUTHORITIES,Investment,HAVEN FIRST,28/09/2023," 1,668.00 ",MED,None,Grants
"Department for Levelling Up, Housing and Communities",Homes England,CAPITAL GRANTS TO RPs,Investment,BROMFORD HOUSING ASSOCIATION LTD,07/09/2023," 7,531,439.00 ",LAR,None,Grants
"Department for Levelling Up, Housing and Communities",Homes England,CAPITAL GRANTS TO RPs,Investment,BROMFORD HOUSING ASSOCIATION LTD,07/09/2023," 13,500.00 ",LAR,None,Grants
"Department for Levelling Up, Housing and Communities",Homes England,CAPITAL GRANTS TO RPs,Investment,Westward Housing Group Ltd,20/09/2023," 9,000.00 ",LAR,None,Grants
"Department for Levelling Up, Housing and Communities",Homes England,CAPITAL GRANTS TO RPs,Investment,SOVEREIGN HOUSING ASSOCIATION LTD,07/09/2023," 80,000.00 ",LAR,None,Grants
"Department for Levelling Up, Housing and Communities",Homes England,CAPITAL GRANTS TO RPs,Investment,SOVEREIGN HOUSING ASSOCIATION LTD,07/09/2023," 76,000.00 ",LAR,None,Grants
"Department for Levelling Up, Housing and Communities",Homes England,CAPITAL GRANTS TO RPs,Investment,SOVEREIGN HOUSING ASSOCIATION LTD,12/09/2023," 1,350,000.00 ",LAR,None,Grants
"Department for Levelling Up, Housing and Communities",Homes England,CAPITAL GRANTS TO RPs,Investment,SOVEREIGN HOUSING ASSOCIATION LTD,18/09/2023," 90,000.00 ",LAR,None,Grants
"Department for Levelling Up, Housing and Communities",Homes England,CAPITAL GRANTS TO RPs,Investment,SOVEREIGN HOUSING ASSOCIATION LTD,19/09/2023," 87,000.00 ",LAR,None,Grants
"Department for Levelling Up, Housing and Communities",Homes England,CAPITAL GRANTS TO RPs,Investment,VIVID HOUSING LTD,08/09/2023," 11,000.00 ",LAR,None,Grants
"Department for Levelling Up, Housing and Communities",Homes England,CAPITAL GRANTS TO RPs,Investment,VIVID HOUSING LTD,08/09/2023," 11,000.00 ",LAR,None,Grants
"Department for Levelling Up, Housing and Communities",Homes England,CAPITAL GRANTS TO RPs,Investment,CLARION HOUSING ASSOCIATION LIMITED,01/09/2023," 9,000.00 ",LAR,None,Grants
"Department for Levelling Up, Housing and Communities",Homes England,CAPITAL GRANTS TO RPs,Investment,CLARION HOUSING ASSOCIATION LIMITED,01/09/2023," 13,500.00 ",LAR,None,Grants
"Department for Levelling Up, Housing and Communities",Homes England,CAPITAL GRANTS TO RPs,Investment,CLARION HOUSING ASSOCIATION LIMITED,08/09/2023," 5,000,000.00 ",LAR,None,Grants
"Department for Levelling Up, Housing and Communities",Homes England,CAPITAL GRANTS TO RPs,Investment,BERNICIA GROUP,04/09/2023," 4,500.00 ",LAR,None,Grants
"Department for Levelling Up, Housing and Communities",Homes England,CAPITAL GRANTS TO RPs,Investment,BERNICIA GROUP,04/09/2023," 10,500.00 ",LAR,None,Grants
"Department for Levelling Up, Housing and Communities",Homes England,CAPITAL GRANTS TO RPs,Investment,BERNICIA GROUP,13/09/2023," 9,000.00 ",LAR,None,Grants
"Department for Levelling Up, Housing and Communities",Homes England,CAPITAL GRANTS TO RPs,Investment,LIVEWEST HOMES LIMITED,04/09/2023," 100,000.00 ",LAR,None,Grants
"Department for Levelling Up, Housing and Communities",Homes England,REV GRNTS TO LOCAL AUTHORITIES,Investment,P3 HOUSING LTD,28/09/2023," 1,708.00 ",LAR,None,Grants
"Department for Levelling Up, Housing and Communities",Homes England,REV GRNTS TO LOCAL AUTHORITIES,Investment,P3 HOUSING LTD,28/09/2023," 1,708.00 ",LAR,None,Grants
"Department for Levelling Up, Housing and Communities",Homes England,REV GRNTS TO LOCAL AUTHORITIES,Investment,P3 HOUSING LTD,28/09/2023," 44,875.00 ",LAR,None,Grants
"Department for Levelling Up, Housing and Communities",Homes England,REV GRNTS TO LOCAL AUTHORITIES,Investment,P3 HOUSING LTD,28/09/2023," 1,708.00 ",LAR,None,Grants
"Department for Levelling Up, Housing and Communities",Homes England,REV GRNTS TO LOCAL AUTHORITIES,Investment,P3 HOUSING LTD,28/09/2023," 1,708.00 ",LAR,None,Grants
"Department for Levelling Up, Housing and Communities",Homes England,REV GRNTS TO LOCAL AUTHORITIES,Investment,P3 HOUSING LTD,28/09/2023," 1,708.00 ",LAR,None,Grants
"Department for Levelling Up, Housing and Communities",Homes England,REV GRNTS TO LOCAL AUTHORITIES,Investment,P3 HOUSING LTD,28/09/2023," 10,250.00 ",LAR,None,Grants
"Department for Levelling Up, Housing and Communities",Homes England,REV GRNTS TO LOCAL AUTHORITIES,Investment,P3 HOUSING LTD,28/09/2023," 1,709.00 ",LAR,None,Grants
"Department for Levelling Up, Housing and Communities",Homes England,CAPITAL GRANTS TO RPs,Investment,GRAND UNION HOUSING GROUP LIMITED,20/09/2023," 213,750.00 ",LAR,None,Grants
"Department for Levelling Up, Housing and Communities",Homes England,CAPITAL GRANTS TO RPs,Investment,GRAND UNION HOUSING GROUP LIMITED,27/09/2023," 97,500.00 ",LAR,None,Grants
"Department for Levelling Up, Housing and Communities",Homes England,CAPITAL GRANTS TO RPs,Investment,GRAND UNION HOUSING GROUP LIMITED,27/09/2023," 171,000.00 ",LAR,None,Grants
"Department for Levelling Up, Housing and Communities",Homes England,CAPITAL GRANTS TO RPs,Investment,LEGAL & GENERAL AFFORDABLE HOMES LTD,07/09/2023," 8,956,418.00 ",LAR,None,Grants
"Department for Levelling Up, Housing and Communities",Homes England,CAPITAL GRANTS TO RPs,Investment,TORUS62 LIMITED,07/09/2023," 9,000.00 ",LAR,None,Grants
"Department for Levelling Up, Housing and Communities",Homes England,CAPITAL GRANTS TO RPs,Investment,TORUS62 LIMITED,07/09/2023," 9,000.00 ",LAR,None,Grants
"Department for Levelling Up, Housing and Communities",Homes England,REV GRNTS TO LOCAL AUTHORITIES,Investment,BCP COUNCIL,22/09/2023," 36,817.00 ",PUB,None,Grants
"Department for Levelling Up, Housing and Communities",Homes England,REV GRNTS TO LOCAL AUTHORITIES,Investment,BCP COUNCIL,22/09/2023," 4,583.00 ",PUB,None,Grants
"Department for Levelling Up, Housing and Communities",Homes England,REV GRNTS TO LOCAL AUTHORITIES,Investment,BCP COUNCIL,29/09/2023," 1,411.00 ",PUB,None,Grants
"Department for Levelling Up, Housing and Communities",Homes England,REV GRNTS TO LOCAL AUTHORITIES,Investment,BCP COUNCIL,29/09/2023," 1,411.00 ",PUB,None,Grants
"Department for Levelling Up, Housing and Communities",Homes England,REV GRNTS TO LOCAL AUTHORITIES,Investment,BCP COUNCIL,29/09/2023," 1,411.00 ",PUB,None,Grants
"Department for Levelling Up, Housing and Communities",Homes England,REV GRNTS TO LOCAL AUTHORITIES,Investment,BCP COUNCIL,29/09/2023," 1,411.00 ",PUB,None,Grants
"Department for Levelling Up, Housing and Communities",Homes England,REV GRNTS TO LOCAL AUTHORITIES,Investment,BCP COUNCIL,29/09/2023," 1,411.00 ",PUB,None,Grants
"Department for Levelling Up, Housing and Communities",Homes England,REV GRNTS TO LOCAL AUTHORITIES,Investment,BCP COUNCIL,29/09/2023," 1,411.00 ",PUB,None,Grants
"Department for Levelling Up, Housing and Communities",Homes England,REV GRNTS TO LOCAL AUTHORITIES,Investment,BCP COUNCIL,29/09/2023," 1,411.00 ",PUB,None,Grants
"Department for Levelling Up, Housing and Communities",Homes England,REV GRNTS TO LOCAL AUTHORITIES,Investment,BCP COUNCIL,29/09/2023," 1,411.00 ",PUB,None,Grants
"Department for Levelling Up, Housing and Communities",Homes England,REV GRNTS TO LOCAL AUTHORITIES,Investment,BCP COUNCIL,29/09/2023," 1,411.00 ",PUB,None,Grants
"Department for Levelling Up, Housing and Communities",Homes England,REV GRNTS TO LOCAL AUTHORITIES,Investment,BCP COUNCIL,29/09/2023," 1,411.00 ",PUB,None,Grants
"Department for Levelling Up, Housing and Communities",Homes England,REV GRNTS TO LOCAL AUTHORITIES,Investment,BCP COUNCIL,29/09/2023," 1,155.00 ",PUB,None,Grants
"Department for Levelling Up, Housing and Communities",Homes England,REV GRNTS TO LOCAL AUTHORITIES,Investment,BCP COUNCIL,29/09/2023," 1,411.00 ",PUB,None,Grants
"Department for Levelling Up, Housing and Communities",Homes England,REV GRNTS TO LOCAL AUTHORITIES,Investment,BCP COUNCIL,29/09/2023," 1,155.00 ",PUB,None,Grants
"Department for Levelling Up, Housing and Communities",Homes England,REV GRNTS TO LOCAL AUTHORITIES,Investment,BCP COUNCIL,29/09/2023," 1,411.00 ",PUB,None,Grants
"Department for Levelling Up, Housing and Communities",Homes England,REV GRNTS TO LOCAL AUTHORITIES,Investment,BCP COUNCIL,29/09/2023," 1,155.00 ",PUB,None,Grants
"Department for Levelling Up, Housing and Communities",Homes England,REV GRNTS TO LOCAL AUTHORITIES,Investment,BCP COUNCIL,29/09/2023," 1,155.00 ",PUB,None,Grants
"Department for Levelling Up, Housing and Communities",Homes England,REV GRNTS TO LOCAL AUTHORITIES,Investment,BCP COUNCIL,29/09/2023," 2,822.00 ",PUB,None,Grants
"Department for Levelling Up, Housing and Communities",Homes England,REV GRNTS TO LOCAL AUTHORITIES,Investment,BCP COUNCIL,29/09/2023," 1,411.00 ",PUB,None,Grants
"Department for Levelling Up, Housing and Communities",Homes England,REV GRNTS TO LOCAL AUTHORITIES,Investment,BCP COUNCIL,29/09/2023," 1,155.00 ",PUB,None,Grants
"Department for Levelling Up, Housing and Communities",Homes England,REV GRNTS TO LOCAL AUTHORITIES,Investment,BCP COUNCIL,29/09/2023," 1,411.00 ",PUB,None,Grants
"Department for Levelling Up, Housing and Communities",Homes England,REV GRNTS TO LOCAL AUTHORITIES,Investment,BCP COUNCIL,29/09/2023," 1,155.00 ",PUB,None,Grants
"Department for Levelling Up, Housing and Communities",Homes England,REV GRNTS TO LOCAL AUTHORITIES,Investment,BCP COUNCIL,29/09/2023," 1,155.00 ",PUB,None,Grants
"Department for Levelling Up, Housing and Communities",Homes England,REV GRNTS TO LOCAL AUTHORITIES,Investment,BCP COUNCIL,29/09/2023," 1,155.00 ",PUB,None,Grants
"Department for Levelling Up, Housing and Communities",Homes England,REV GRNTS TO LOCAL AUTHORITIES,Investment,BCP COUNCIL,29/09/2023," 1,411.00 ",PUB,None,Grants
"Department for Levelling Up, Housing and Communities",Homes England,REV GRNTS TO LOCAL AUTHORITIES,Investment,BCP COUNCIL,29/09/2023," 1,411.00 ",PUB,None,Grants
"Department for Levelling Up, Housing and Communities",Homes England,REV GRNTS TO LOCAL AUTHORITIES,Investment,BCP COUNCIL,29/09/2023," 1,155.00 ",PUB,None,Grants
"Department for Levelling Up, Housing and Communities",Homes England,REV GRNTS TO LOCAL AUTHORITIES,Investment,BCP COUNCIL,29/09/2023," 1,411.00 ",PUB,None,Grants
"Department for Levelling Up, Housing and Communities",Homes England,REV GRNTS TO LOCAL AUTHORITIES,Investment,BCP COUNCIL,29/09/2023," 1,411.00 ",PUB,None,Grants
"Department for Levelling Up, Housing and Communities",Homes England,REV GRNTS TO LOCAL AUTHORITIES,Investment,BCP COUNCIL,29/09/2023," 1,411.00 ",PUB,None,Grants
"Department for Levelling Up, Housing and Communities",Homes England,REV GRNTS TO LOCAL AUTHORITIES,Investment,BCP COUNCIL,29/09/2023," 1,411.00 ",PUB,None,Grants
"Department for Levelling Up, Housing and Communities",Homes England,REV GRNTS TO LOCAL AUTHORITIES,Investment,BCP COUNCIL,29/09/2023," 1,155.00 ",PUB,None,Grants
"Department for Levelling Up, Housing and Communities",Homes England,REV GRNTS TO LOCAL AUTHORITIES,Investment,BCP COUNCIL,29/09/2023," 1,411.00 ",PUB,None,Grants
"Department for Levelling Up, Housing and Communities",Homes England,REV GRNTS TO LOCAL AUTHORITIES,Investment,BCP COUNCIL,29/09/2023," 1,411.00 ",PUB,None,Grants
"Department for Levelling Up, Housing and Communities",Homes England,REV GRNTS TO LOCAL AUTHORITIES,Investment,BCP COUNCIL,29/09/2023," 1,411.00 ",PUB,None,Grants
"Department for Levelling Up, Housing and Communities",Homes England,REV GRNTS TO LOCAL AUTHORITIES,Investment,BCP COUNCIL,29/09/2023," 1,411.00 ",PUB,None,Grants
"Department for Levelling Up, Housing and Communities",Homes England,REV GRNTS TO LOCAL AUTHORITIES,Investment,BCP COUNCIL,29/09/2023," 1,411.00 ",PUB,None,Grants
"Department for Levelling Up, Housing and Communities",Homes England,REV GRNTS TO LOCAL AUTHORITIES,Investment,BCP COUNCIL,29/09/2023," 1,411.00 ",PUB,None,Grants
"Department for Levelling Up, Housing and Communities",Homes England,CAPITAL GRANTS TO RPs,Investment,BELIEVE HOUSING LIMITED,04/09/2023," 24,500.00 ",LAR,None,Grants
"Department for Levelling Up, Housing and Communities",Homes England,CAPITAL GRANTS TO RPs,Investment,BELIEVE HOUSING LIMITED,04/09/2023," 61,250.00 ",LAR,None,Grants
"Department for Levelling Up, Housing and Communities",Homes England,CAPITAL GRANTS TO RPs,Investment,BELIEVE HOUSING LIMITED,06/09/2023," 196,000.00 ",LAR,None,Grants
"Department for Levelling Up, Housing and Communities",Homes England,CAPITAL GRANTS TO RPs,Investment,BELIEVE HOUSING LIMITED,27/09/2023," 61,250.00 ",LAR,None,Grants
"Department for Levelling Up, Housing and Communities",Homes England,CAPITAL GRANTS TO RPs,Investment,BELIEVE HOUSING LIMITED,27/09/2023," 25,000.00 ",LAR,None,Grants
"Department for Levelling Up, Housing and Communities",Homes England,CAPITAL GRANTS TO RPs,Investment,The Joseph Rowntree Foundation,27/09/2023," 275,000.00 ",LAR,None,Grants
"Department for Levelling Up, Housing and Communities",Homes England,CAPITAL GRANTS TO RPs,Investment,The Joseph Rowntree Foundation,27/09/2023," 250,000.00 ",LAR,None,Grants
"Department for Levelling Up, Housing and Communities",Homes England,CAP GRNTS TO LOCAL AUTHORITIES,Investment,SUNDERLAND CITY COUNCIL,22/09/2023," 11,000.00 ",PUB,None,Grants
"Department for Levelling Up, Housing and Communities",Homes England,REV GRNTS TO LOCAL AUTHORITIES,Investment,SUNDERLAND CITY COUNCIL,28/09/2023," 1,708.00 ",PUB,None,Grants
"Department for Levelling Up, Housing and Communities",Homes England,REV GRNTS TO LOCAL AUTHORITIES,Investment,SUNDERLAND CITY COUNCIL,28/09/2023, 893.00 ,PUB,None,Grants
"Department for Levelling Up, Housing and Communities",Homes England,REV GRNTS TO LOCAL AUTHORITIES,Investment,SUNDERLAND CITY COUNCIL,28/09/2023," 1,708.00 ",PUB,None,Grants
"Department for Levelling Up, Housing and Communities",Homes England,REV GRNTS TO LOCAL AUTHORITIES,Investment,SUNDERLAND CITY COUNCIL,28/09/2023," 1,708.00 ",PUB,None,Grants
"Department for Levelling Up, Housing and Communities",Homes England,REV GRNTS TO LOCAL AUTHORITIES,Investment,SUNDERLAND CITY COUNCIL,28/09/2023," 3,575.00 ",PUB,None,Grants
"Department for Levelling Up, Housing and Communities",Homes England,REV GRNTS TO LOCAL AUTHORITIES,Investment,SUNDERLAND CITY COUNCIL,28/09/2023," 1,708.00 ",PUB,None,Grants
"Department for Levelling Up, Housing and Communities",Homes England,REV GRNTS TO LOCAL AUTHORITIES,Investment,SUNDERLAND CITY COUNCIL,28/09/2023, 893.00 ,PUB,None,Grants
"Department for Levelling Up, Housing and Communities",Homes England,REV GRNTS TO LOCAL AUTHORITIES,Investment,SUNDERLAND CITY COUNCIL,28/09/2023," 1,708.00 ",PUB,None,Grants
"Department for Levelling Up, Housing and Communities",Homes England,CAP GRNTS TO LOCAL AUTHORITIES,Investment,SOUTH RIBBLE BOROUGH COUNCIL,25/09/2023," 4,500,000.00 ",PUB,None,Grants
"Department for Levelling Up, Housing and Communities",Homes England,REV GRNTS TO LOCAL AUTHORITIES,Investment,DORSET COUNCIL,12/09/2023," 3,250.00 ",PUB,None,Grants
"Department for Levelling Up, Housing and Communities",Homes England,REV GRNTS TO LOCAL AUTHORITIES,Investment,DORSET COUNCIL,28/09/2023," 1,995.00 ",PUB,None,Grants
"Department for Levelling Up, Housing and Communities",Homes England,REV GRNTS TO LOCAL AUTHORITIES,Investment,DORSET COUNCIL,28/09/2023," 1,647.00 ",PUB,None,Grants
"Department for Levelling Up, Housing and Communities",Homes England,REV GRNTS TO LOCAL AUTHORITIES,Investment,DORSET COUNCIL,28/09/2023," 1,996.00 ",PUB,None,Grants
"Department for Levelling Up, Housing and Communities",Homes England,REV GRNTS TO LOCAL AUTHORITIES,Investment,DORSET COUNCIL,28/09/2023," 1,766.00 ",PUB,None,Grants
"Department for Levelling Up, Housing and Communities",Homes England,REV GRNTS TO LOCAL AUTHORITIES,Investment,DORSET COUNCIL,28/09/2023," 1,995.00 ",PUB,None,Grants
"Department for Levelling Up, Housing and Communities",Homes England,REV GRNTS TO LOCAL AUTHORITIES,Investment,DORSET COUNCIL,28/09/2023," 1,766.00 ",PUB,None,Grants
"Department for Levelling Up, Housing and Communities",Homes England,REV GRNTS TO LOCAL AUTHORITIES,Investment,DORSET COUNCIL,28/09/2023," 1,996.00 ",PUB,None,Grants
"Department for Levelling Up, Housing and Communities",Homes England,REV GRNTS TO LOCAL AUTHORITIES,Investment,DORSET COUNCIL,28/09/2023," 1,996.00 ",PUB,None,Grants
"Department for Levelling Up, Housing and Communities",Homes England,REV GRNTS TO LOCAL AUTHORITIES,Investment,DORSET COUNCIL,28/09/2023," 1,766.00 ",PUB,None,Grants
"Department for Levelling Up, Housing and Communities",Homes England,REV GRNTS TO LOCAL AUTHORITIES,Investment,DORSET COUNCIL,28/09/2023," 1,995.00 ",PUB,None,Grants
"Department for Levelling Up, Housing and Communities",Homes England,REV GRNTS TO LOCAL AUTHORITIES,Investment,DORSET COUNCIL,28/09/2023," 1,766.00 ",PUB,None,Grants
"Department for Levelling Up, Housing and Communities",Homes England,REV GRNTS TO LOCAL AUTHORITIES,Investment,DORSET COUNCIL,28/09/2023," 1,647.00 ",PUB,None,Grants
"Department for Levelling Up, Housing and Communities",Homes England,REV GRNTS TO LOCAL AUTHORITIES,Investment,DORSET COUNCIL,28/09/2023," 1,996.00 ",PUB,None,Grants
"Department for Levelling Up, Housing and Communities",Homes England,REV GRNTS TO LOCAL AUTHORITIES,Investment,DORSET COUNCIL,28/09/2023," 1,766.00 ",PUB,None,Grants
"Department for Levelling Up, Housing and Communities",Homes England,REV GRNTS TO LOCAL AUTHORITIES,Investment,DORSET COUNCIL,28/09/2023," 1,647.00 ",PUB,None,Grants
"Department for Levelling Up, Housing and Communities",Homes England,REV GRNTS TO LOCAL AUTHORITIES,Investment,DORSET COUNCIL,28/09/2023," 1,766.00 ",PUB,None,Grants
"Department for Levelling Up, Housing and Communities",Homes England,REV GRNTS TO LOCAL AUTHORITIES,Investment,DORSET COUNCIL,28/09/2023," 1,995.00 ",PUB,None,Grants
"Department for Levelling Up, Housing and Communities",Homes England,REV GRNTS TO LOCAL AUTHORITIES,Investment,DORSET COUNCIL,28/09/2023," 1,766.00 ",PUB,None,Grants
"Department for Levelling Up, Housing and Communities",Homes England,REV GRNTS TO LOCAL AUTHORITIES,Investment,DORSET COUNCIL,28/09/2023," 1,647.00 ",PUB,None,Grants
"Department for Levelling Up, Housing and Communities",Homes England,REV GRNTS TO LOCAL AUTHORITIES,Investment,DORSET COUNCIL,28/09/2023," 1,996.00 ",PUB,None,Grants
"Department for Levelling Up, Housing and Communities",Homes England,REV GRNTS TO LOCAL AUTHORITIES,Investment,DORSET COUNCIL,28/09/2023," 1,766.00 ",PUB,None,Grants
"Department for Levelling Up, Housing and Communities",Homes England,REV GRNTS TO LOCAL AUTHORITIES,Investment,DORSET COUNCIL,28/09/2023," 15,112.00 ",PUB,None,Grants
"Department for Levelling Up, Housing and Communities",Homes England,REV GRNTS TO LOCAL AUTHORITIES,Investment,DORSET COUNCIL,28/09/2023," 1,766.00 ",PUB,None,Grants
"Department for Levelling Up, Housing and Communities",Homes England,REV GRNTS TO LOCAL AUTHORITIES,Investment,DORSET COUNCIL,28/09/2023," 1,996.00 ",PUB,None,Grants
"Department for Levelling Up, Housing and Communities",Homes England,CAPITAL GRANTS TO RPs,Investment,LUMEN HOUSING LIMITED,07/09/2023," 8,750.00 ",SMA,None,Grants
"Department for Levelling Up, Housing and Communities",Homes England,CAPITAL GRANTS TO RPs,Investment,LUMEN HOUSING LIMITED,28/09/2023," 28,500.00 ",SMA,None,Grants
"Department for Levelling Up, Housing and Communities",Homes England,CAPITAL GRANTS TO RPs,Investment,LUMEN HOUSING LIMITED,28/09/2023," 14,000.00 ",SMA,None,Grants
"Department for Levelling Up, Housing and Communities",Homes England,REV GRNTS TO LOCAL AUTHORITIES,Investment,STRATFORD ON AVON DISTRICT COUNCIL,28/09/2023," 1,000.00 ",PUB,None,Grants
"Department for Levelling Up, Housing and Communities",Homes England,REV GRNTS TO LOCAL AUTHORITIES,Investment,STRATFORD ON AVON DISTRICT COUNCIL,28/09/2023," 1,000.00 ",PUB,None,Grants
"Department for Levelling Up, Housing and Communities",Homes England,REV GRNTS TO LOCAL AUTHORITIES,Investment,STRATFORD ON AVON DISTRICT COUNCIL,28/09/2023," 1,000.00 ",PUB,None,Grants
"Department for Levelling Up, Housing and Communities",Homes England,REV GRNTS TO LOCAL AUTHORITIES,Investment,STRATFORD ON AVON DISTRICT COUNCIL,28/09/2023," 1,000.00 ",PUB,None,Grants
"Department for Levelling Up, Housing and Communities",Homes England,REV GRNTS TO LOCAL AUTHORITIES,Investment,PETERBOROUGH CITY COUNCIL,28/09/2023," 10,353.00 ",PUB,None,Grants
"Department for Levelling Up, Housing and Communities",Homes England,REV GRNTS TO LOCAL AUTHORITIES,Investment,BEDFORD BOROUGH COUNCIL,28/09/2023," 80,750.00 ",PUB,None,Grants
"Department for Levelling Up, Housing and Communities",Homes England,REV GRNTS TO LOCAL AUTHORITIES,Investment,TUNBRIDGE WELLS BOROUGH COUNCIL,28/09/2023," 10,947.00 ",PUB,None,Grants
"Department for Levelling Up, Housing and Communities",Homes England,REV GRNTS TO LOCAL AUTHORITIES,Investment,ROTHER DISTRICT COUNCIL,07/09/2023," 48,881.00 ",PUB,None,Grants
"Department for Levelling Up, Housing and Communities",Homes England,REV GRNTS TO LOCAL AUTHORITIES,Investment,ROTHER DISTRICT COUNCIL,11/09/2023, 734.00 ,PUB,None,Grants
"Department for Levelling Up, Housing and Communities",Homes England,REV GRNTS TO LOCAL AUTHORITIES,Investment,ROTHER DISTRICT COUNCIL,28/09/2023," 2,100.00 ",PUB,None,Grants
"Department for Levelling Up, Housing and Communities",Homes England,REV GRNTS TO LOCAL AUTHORITIES,Investment,ROTHER DISTRICT COUNCIL,28/09/2023," 2,100.00 ",PUB,None,Grants
"Department for Levelling Up, Housing and Communities",Homes England,REV GRNTS TO LOCAL AUTHORITIES,Investment,ROTHER DISTRICT COUNCIL,28/09/2023," 10,750.00 ",PUB,None,Grants
"Department for Levelling Up, Housing and Communities",Homes England,REV GRNTS TO LOCAL AUTHORITIES,Investment,ROTHER DISTRICT COUNCIL,28/09/2023," 2,100.00 ",PUB,None,Grants
"Department for Levelling Up, Housing and Communities",Homes England,REV GRNTS TO LOCAL AUTHORITIES,Investment,ROTHER DISTRICT COUNCIL,28/09/2023," 2,100.00 ",PUB,None,Grants
"Department for Levelling Up, Housing and Communities",Homes England,REV GRNTS TO LOCAL AUTHORITIES,Investment,ROTHER DISTRICT COUNCIL,29/09/2023, 734.00 ,PUB,None,Grants
"Department for Levelling Up, Housing and Communities",Homes England,REV GRNTS TO LOCAL AUTHORITIES,Investment,ROTHER DISTRICT COUNCIL,29/09/2023, 937.00 ,PUB,None,Grants
"Department for Levelling Up, Housing and Communities",Homes England,REV GRNTS TO LOCAL AUTHORITIES,Investment,ROTHER DISTRICT COUNCIL,29/09/2023, 937.00 ,PUB,None,Grants
"Department for Levelling Up, Housing and Communities",Homes England,REV GRNTS TO LOCAL AUTHORITIES,Investment,TORVISTA HOMES LIMITED,28/09/2023," 1,250.00 ",LAR,None,Grants
"Department for Levelling Up, Housing and Communities",Homes England,REV GRNTS TO LOCAL AUTHORITIES,Investment,TORVISTA HOMES LIMITED,28/09/2023," 1,250.00 ",LAR,None,Grants
"Department for Levelling Up, Housing and Communities",Homes England,REV GRNTS TO LOCAL AUTHORITIES,Investment,TORVISTA HOMES LIMITED,28/09/2023," 1,250.00 ",LAR,None,Grants
"Department for Levelling Up, Housing and Communities",Homes England,REV GRNTS TO LOCAL AUTHORITIES,Investment,TORVISTA HOMES LIMITED,28/09/2023," 1,250.00 ",LAR,None,Grants
"Department for Levelling Up, Housing and Communities",Homes England,REV GRNTS TO LOCAL AUTHORITIES,Investment,TORVISTA HOMES LIMITED,28/09/2023," 1,250.00 ",LAR,None,Grants
"Department for Levelling Up, Housing and Communities",Homes England,REV GRNTS TO LOCAL AUTHORITIES,Investment,TORVISTA HOMES LIMITED,28/09/2023," 1,250.00 ",LAR,None,Grants
"Department for Levelling Up, Housing and Communities",Homes England,REV GRNTS TO LOCAL AUTHORITIES,Investment,TORVISTA HOMES LIMITED,28/09/2023," 1,250.00 ",LAR,None,Grants
"Department for Levelling Up, Housing and Communities",Homes England,REV GRNTS TO LOCAL AUTHORITIES,Investment,TORVISTA HOMES LIMITED,28/09/2023," 1,250.00 ",LAR,None,Grants
"Department for Levelling Up, Housing and Communities",Homes England,REV GRNTS TO LOCAL AUTHORITIES,Investment,TORVISTA HOMES LIMITED,28/09/2023," 1,250.00 ",LAR,None,Grants
"Department for Levelling Up, Housing and Communities",Homes England,REV GRNTS TO LOCAL AUTHORITIES,Investment,TORVISTA HOMES LIMITED,28/09/2023," 1,250.00 ",LAR,None,Grants
"Department for Levelling Up, Housing and Communities",Homes England,REV GRNTS TO LOCAL AUTHORITIES,Investment,TORVISTA HOMES LIMITED,28/09/2023," 1,250.00 ",LAR,None,Grants
"Department for Levelling Up, Housing and Communities",Homes England,REV GRNTS TO LOCAL AUTHORITIES,Investment,TORVISTA HOMES LIMITED,28/09/2023," 1,250.00 ",LAR,None,Grants
"Department for Levelling Up, Housing and Communities",Homes England,REV GRNTS TO LOCAL AUTHORITIES,Investment,TORVISTA HOMES LIMITED,28/09/2023," 1,250.00 ",LAR,None,Grants
"Department for Levelling Up, Housing and Communities",Homes England,REV GRNTS TO LOCAL AUTHORITIES,Investment,TORVISTA HOMES LIMITED,28/09/2023," 1,250.00 ",LAR,None,Grants
"Department for Levelling Up, Housing and Communities",Homes England,CAP GRNTS TO LOCAL AUTHORITIES,Investment,REIGATE & BANSTEAD BOROUGH COUNCIL,07/09/2023," 16,000.00 ",PUB,None,Grants
"Department for Levelling Up, Housing and Communities",Homes England,REV GRNTS TO LOCAL AUTHORITIES,Investment,REIGATE & BANSTEAD BOROUGH COUNCIL,28/09/2023," 5,700.00 ",PUB,None,Grants
"Department for Levelling Up, Housing and Communities",Homes England,CAPITAL GRANTS TO RPs,Investment,HABITARE HOMES LIMITED,29/09/2023," 123,775.00 ",SMA,None,Grants
"Department for Levelling Up, Housing and Communities",Homes England,REV GRNTS TO LOCAL AUTHORITIES,Investment,NORTH NORTHAMPTONSHIRE COUNCIL,14/09/2023," 26,111.00 ",PUB,None,Grants
"Department for Levelling Up, Housing and Communities",Homes England,REV GRNTS TO LOCAL AUTHORITIES,Investment,NORTH NORTHAMPTONSHIRE COUNCIL,14/09/2023," 2,901.00 ",PUB,None,Grants
"Department for Levelling Up, Housing and Communities",Homes England,REV GRNTS TO LOCAL AUTHORITIES,Investment,NORTH NORTHAMPTONSHIRE COUNCIL,14/09/2023," 2,901.00 ",PUB,None,Grants
"Department for Levelling Up, Housing and Communities",Homes England,REV GRNTS TO LOCAL AUTHORITIES,Investment,WEST NORTHAMPTONSHIRE COUNCIL,29/09/2023," 1,050.00 ",PUB,None,Grants
"Department for Levelling Up, Housing and Communities",Homes England,REV GRNTS TO LOCAL AUTHORITIES,Investment,WEST NORTHAMPTONSHIRE COUNCIL,29/09/2023," 1,050.00 ",PUB,None,Grants
"Department for Levelling Up, Housing and Communities",Homes England,REV GRNTS TO LOCAL AUTHORITIES,Investment,WEST NORTHAMPTONSHIRE COUNCIL,29/09/2023," 1,050.00 ",PUB,None,Grants
"Department for Levelling Up, Housing and Communities",Homes England,REV GRNTS TO LOCAL AUTHORITIES,Investment,WEST NORTHAMPTONSHIRE COUNCIL,29/09/2023," 1,050.00 ",PUB,None,Grants
"Department for Levelling Up, Housing and Communities",Homes England,REV GRNTS TO LOCAL AUTHORITIES,Investment,WEST NORTHAMPTONSHIRE COUNCIL,29/09/2023," 1,050.00 ",PUB,None,Grants
"Department for Levelling Up, Housing and Communities",Homes England,REV GRNTS TO LOCAL AUTHORITIES,Investment,WEST NORTHAMPTONSHIRE COUNCIL,29/09/2023," 1,050.00 ",PUB,None,Grants
"Department for Levelling Up, Housing and Communities",Homes England,REV GRNTS TO LOCAL AUTHORITIES,Investment,WEST NORTHAMPTONSHIRE COUNCIL,29/09/2023," 1,050.00 ",PUB,None,Grants
"Department for Levelling Up, Housing and Communities",Homes England,REV GRNTS TO LOCAL AUTHORITIES,Investment,WEST NORTHAMPTONSHIRE COUNCIL,29/09/2023," 1,050.00 ",PUB,None,Grants
"Department for Levelling Up, Housing and Communities",Homes England,REV GRNTS TO LOCAL AUTHORITIES,Investment,WEST NORTHAMPTONSHIRE COUNCIL,29/09/2023," 1,050.00 ",PUB,None,Grants
"Department for Levelling Up, Housing and Communities",Homes England,REV GRNTS TO LOCAL AUTHORITIES,Investment,WEST NORTHAMPTONSHIRE COUNCIL,29/09/2023," 1,050.00 ",PUB,None,Grants
"Department for Levelling Up, Housing and Communities",Homes England,REV GRNTS TO LOCAL AUTHORITIES,Investment,LICHFIELD DISTRICT COUNCIL,28/09/2023, 661.00 ,PUB,None,Grants
"Department for Levelling Up, Housing and Communities",Homes England,REV GRNTS TO LOCAL AUTHORITIES,Investment,LICHFIELD DISTRICT COUNCIL,28/09/2023, 661.00 ,PUB,None,Grants
"Department for Levelling Up, Housing and Communities",Homes England,REV GRNTS TO LOCAL AUTHORITIES,Investment,LICHFIELD DISTRICT COUNCIL,28/09/2023, 661.00 ,PUB,None,Grants
"Department for Levelling Up, Housing and Communities",Homes England,REV GRNTS TO LOCAL AUTHORITIES,Investment,LICHFIELD DISTRICT COUNCIL,28/09/2023, 662.00 ,PUB,None,Grants
"Department for Levelling Up, Housing and Communities",Homes England,REV GRNTS TO LOCAL AUTHORITIES,Investment,ISLE OF WIGHT COUNCIL,28/09/2023," 1,650.00 ",PUB,None,Grants
"Department for Levelling Up, Housing and Communities",Homes England,REV GRNTS TO LOCAL AUTHORITIES,Investment,ISLE OF WIGHT COUNCIL,28/09/2023," 1,650.00 ",PUB,None,Grants
"Department for Levelling Up, Housing and Communities",Homes England,REV GRNTS TO LOCAL AUTHORITIES,Investment,ISLE OF WIGHT COUNCIL,28/09/2023," 1,650.00 ",PUB,None,Grants
"Department for Levelling Up, Housing and Communities",Homes England,REV GRNTS TO LOCAL AUTHORITIES,Investment,ISLE OF WIGHT COUNCIL,28/09/2023," 1,650.00 ",PUB,None,Grants
"Department for Levelling Up, Housing and Communities",Homes England,REV GRNTS TO LOCAL AUTHORITIES,Investment,ISLE OF WIGHT COUNCIL,28/09/2023," 1,650.00 ",PUB,None,Grants
"Department for Levelling Up, Housing and Communities",Homes England,REV GRNTS TO LOCAL AUTHORITIES,Investment,BURNLEY BOROUGH COUNCIL,28/09/2023," 1,326.00 ",PUB,None,Grants
"Department for Levelling Up, Housing and Communities",Homes England,REV GRNTS TO LOCAL AUTHORITIES,Investment,BURNLEY BOROUGH COUNCIL,28/09/2023," 1,325.00 ",PUB,None,Grants
"Department for Levelling Up, Housing and Communities",Homes England,REV GRNTS TO LOCAL AUTHORITIES,Investment,BURNLEY BOROUGH COUNCIL,28/09/2023," 1,325.00 ",PUB,None,Grants
"Department for Levelling Up, Housing and Communities",Homes England,REV GRNTS TO LOCAL AUTHORITIES,Investment,BURNLEY BOROUGH COUNCIL,28/09/2023," 1,325.00 ",PUB,None,Grants
"Department for Levelling Up, Housing and Communities",Homes England,REV GRNTS TO LOCAL AUTHORITIES,Investment,BURNLEY BOROUGH COUNCIL,28/09/2023," 1,325.00 ",PUB,None,Grants
"Department for Levelling Up, Housing and Communities",Homes England,REV GRNTS TO LOCAL AUTHORITIES,Investment,BURNLEY BOROUGH COUNCIL,28/09/2023," 6,272.00 ",PUB,None,Grants
"Department for Levelling Up, Housing and Communities",Homes England,SECONDED STAFF COSTS,Sras,MHCLG,06/09/2023," 35,938.32 ",PUB,80111600,Temporary personnel services
"Department for Levelling Up, Housing and Communities",Homes England,ENGINEERING FEES,Development,ATKINS LTD,04/09/2023," 28,814.40 ",LAR,81101500,Civil Engineering
"Department for Levelling Up, Housing and Communities",Homes England,ENGINEERING FEES,Development,ATKINS LTD,13/09/2023," 30,000.00 ",LAR,81101500,Civil Engineering
"Department for Levelling Up, Housing and Communities",Homes England,MISC PROFESSIONAL FEES,"Markets, Partners & Places",ATKINS LTD,18/09/2023," 22,521.60 ",LAR,81101500,Civil Engineering
"Department for Levelling Up, Housing and Communities",Homes England,HEALTH & SAFETY SURVEYS,Development,ATKINS LTD,27/09/2023," 1,453.87 ",LAR,72101500,Building maintenance and repair services
"Department for Levelling Up, Housing and Communities",Homes England,ENGINEERING CONSULTANTS,Development,ATKINS LTD,28/09/2023," 3,735.60 ",LAR,81101500,Civil Engineering
"Department for Levelling Up, Housing and Communities",Homes England,HEALTH & SAFETY SURVEYS,Development,ATKINS LTD,29/09/2023," 4,800.00 ",LAR,72101500,Building maintenance and repair services
"Department for Levelling Up, Housing and Communities",Homes England,ENGINEERING FEES,Development,ATKINS LTD,29/09/2023," 16,230.00 ",LAR,81101500,Civil Engineering
"Department for Levelling Up, Housing and Communities",Homes England,ESTATE GENERAL MAINTENANCE,"Markets, Partners & Places",Agriscapes Ltd,04/09/2023," 2,340.60 ",MIC,72101500,Building maintenance and repair services
"Department for Levelling Up, Housing and Communities",Homes England,CAR LEASING - HIRE CHARGES,Corporate Allocations,LEASEPLAN UK LIMITED,04/09/2023, 424.24 ,LAR,25101500,Passenger motor vehicles
"Department for Levelling Up, Housing and Communities",Homes England,CAR LEASING - HIRE CHARGES,Corporate Allocations,LEASEPLAN UK LIMITED,04/09/2023," 1,412.30 ",LAR,25101500,Passenger motor vehicles
"Department for Levelling Up, Housing and Communities",Homes England,CAR LEASING - OTHER COSTS,Corporate Allocations,LEASEPLAN UK LIMITED,04/09/2023, 483.00 ,LAR,78180100,Vehicle maintenance and repairs services
"Department for Levelling Up, Housing and Communities",Homes England,CAR LEASING - OTHER COSTS,Corporate Allocations,LEASEPLAN UK LIMITED,14/09/2023, 503.00 ,LAR,78180100,Vehicle maintenance and repairs services
"Department for Levelling Up, Housing and Communities",Homes England,CAR LEASING - HIRE CHARGES,Corporate Allocations,LEASEPLAN UK LIMITED,28/09/2023," 1,998.86 ",LAR,25101500,Passenger motor vehicles
"Department for Levelling Up, Housing and Communities",Homes England,CAR LEASING - HIRE CHARGES,Corporate Allocations,LEASEPLAN UK LIMITED,28/09/2023," 3,997.79 ",LAR,25101500,Passenger motor vehicles
"Department for Levelling Up, Housing and Communities",Homes England,CAR LEASING - HIRE CHARGES,Corporate Allocations,ALPHABET (GB) LTD,05/09/2023, 474.67 ,LAR,25101500,Passenger motor vehicles
"Department for Levelling Up, Housing and Communities",Homes England,CAR LEASING - HIRE CHARGES,Corporate Allocations,ALPHABET (GB) LTD,14/09/2023," 2,643.52 ",LAR,25101500,Passenger motor vehicles
"Department for Levelling Up, Housing and Communities",Homes England,CAR LEASING - HIRE CHARGES,Corporate Allocations,ALPHABET (GB) LTD,14/09/2023," 3,363.77 ",LAR,25101500,Passenger motor vehicles
"Department for Levelling Up, Housing and Communities",Homes England,PRINTING & STATIONERY,Chief Operating Officer,AMBER SCREEN AND DISPLAY,28/09/2023, 432.00 ,SMA,44121600,Desk supplies
"Department for Levelling Up, Housing and Communities",Homes England,AGENCY STAFF,Chief Operating Officer,ALEXANDER MANN SOLUTIONS LIMITED,04/09/2023," 3,150.30 ",LAR,80111600,Temporary personnel services
"Department for Levelling Up, Housing and Communities",Homes England,AGENCY STAFF,Chief Operating Officer,ALEXANDER MANN SOLUTIONS LIMITED,04/09/2023," 7,132.44 ",LAR,80111600,Temporary personnel services
"Department for Levelling Up, Housing and Communities",Homes England,AGENCY STAFF,Cido,ALEXANDER MANN SOLUTIONS LIMITED,04/09/2023," 3,459.00 ",LAR,80111600,Temporary personnel services
"Department for Levelling Up, Housing and Communities",Homes England,AGENCY STAFF,Cido,ALEXANDER MANN SOLUTIONS LIMITED,04/09/2023," 3,597.66 ",LAR,80111600,Temporary personnel services
"Department for Levelling Up, Housing and Communities",Homes England,AGENCY STAFF,Cido,ALEXANDER MANN SOLUTIONS LIMITED,04/09/2023," 4,788.46 ",LAR,80111600,Temporary personnel services
"Department for Levelling Up, Housing and Communities",Homes England,AGENCY STAFF,Cido,ALEXANDER MANN SOLUTIONS LIMITED,04/09/2023," 4,090.44 ",LAR,80111600,Temporary personnel services
"Department for Levelling Up, Housing and Communities",Homes England,AGENCY STAFF,Chief Risk Officer,ALEXANDER MANN SOLUTIONS LIMITED,04/09/2023," 9,930.42 ",LAR,80111600,Temporary personnel services
"Department for Levelling Up, Housing and Communities",Homes England,AGENCY STAFF,Cido,ALEXANDER MANN SOLUTIONS LIMITED,04/09/2023," 2,590.61 ",LAR,80111600,Temporary personnel services
"Department for Levelling Up, Housing and Communities",Homes England,AGENCY STAFF,Chief Operating Officer,ALEXANDER MANN SOLUTIONS LIMITED,04/09/2023," 3,150.30 ",LAR,80111600,Temporary personnel services
"Department for Levelling Up, Housing and Communities",Homes England,AGENCY STAFF,Chief Operating Officer,ALEXANDER MANN SOLUTIONS LIMITED,04/09/2023," 7,132.44 ",LAR,80111600,Temporary personnel services
"Department for Levelling Up, Housing and Communities",Homes England,AGENCY STAFF,Cido,ALEXANDER MANN SOLUTIONS LIMITED,04/09/2023," 8,862.72 ",LAR,80111600,Temporary personnel services
"Department for Levelling Up, Housing and Communities",Homes England,AGENCY STAFF,Cido,ALEXANDER MANN SOLUTIONS LIMITED,04/09/2023," 3,749.58 ",LAR,80111600,Temporary personnel services
"Department for Levelling Up, Housing and Communities",Homes England,AGENCY STAFF,Chief Customer Office,ALEXANDER MANN SOLUTIONS LIMITED,04/09/2023," 3,780.36 ",LAR,80111600,Temporary personnel services
"Department for Levelling Up, Housing and Communities",Homes England,AGENCY STAFF,Cido,ALEXANDER MANN SOLUTIONS LIMITED,04/09/2023," 2,249.75 ",LAR,80111600,Temporary personnel services
"Department for Levelling Up, Housing and Communities",Homes England,AGENCY STAFF,Cido,ALEXANDER MANN SOLUTIONS LIMITED,04/09/2023," 3,459.00 ",LAR,80111600,Temporary personnel services
"Department for Levelling Up, Housing and Communities",Homes England,AGENCY STAFF,Cido,ALEXANDER MANN SOLUTIONS LIMITED,04/09/2023," 3,597.66 ",LAR,80111600,Temporary personnel services
"Department for Levelling Up, Housing and Communities",Homes England,AGENCY STAFF,Cido,ALEXANDER MANN SOLUTIONS LIMITED,04/09/2023," 1,260.12 ",LAR,80111600,Temporary personnel services
"Department for Levelling Up, Housing and Communities",Homes England,AGENCY STAFF,"Markets, Partners & Places",ALEXANDER MANN SOLUTIONS LIMITED,04/09/2023," 2,829.97 ",LAR,80111600,Temporary personnel services
"Department for Levelling Up, Housing and Communities",Homes England,AGENCY STAFF,Chief Customer Office,ALEXANDER MANN SOLUTIONS LIMITED,04/09/2023," 2,322.18 ",LAR,80111600,Temporary personnel services
"Department for Levelling Up, Housing and Communities",Homes England,AGENCY STAFF,Chief Customer Office,ALEXANDER MANN SOLUTIONS LIMITED,04/09/2023," 3,433.80 ",LAR,80111600,Temporary personnel services
"Department for Levelling Up, Housing and Communities",Homes England,AGENCY STAFF,Cido,ALEXANDER MANN SOLUTIONS LIMITED,04/09/2023," 6,918.00 ",LAR,80111600,Temporary personnel services
"Department for Levelling Up, Housing and Communities",Homes England,AGENCY STAFF,Cido,ALEXANDER MANN SOLUTIONS LIMITED,04/09/2023," 4,090.44 ",LAR,80111600,Temporary personnel services
"Department for Levelling Up, Housing and Communities",Homes England,AGENCY STAFF,Cido,ALEXANDER MANN SOLUTIONS LIMITED,04/09/2023," 2,322.18 ",LAR,80111600,Temporary personnel services
"Department for Levelling Up, Housing and Communities",Homes England,AGENCY STAFF,Cido,ALEXANDER MANN SOLUTIONS LIMITED,04/09/2023," 3,150.30 ",LAR,80111600,Temporary personnel services
"Department for Levelling Up, Housing and Communities",Homes England,AGENCY STAFF,Cido,ALEXANDER MANN SOLUTIONS LIMITED,05/09/2023," 1,499.52 ",LAR,80111600,Temporary personnel services
"Department for Levelling Up, Housing and Communities",Homes England,AGENCY STAFF,Cido,ALEXANDER MANN SOLUTIONS LIMITED,05/09/2023," 3,597.66 ",LAR,80111600,Temporary personnel services
"Department for Levelling Up, Housing and Communities",Homes England,AGENCY STAFF,Cido,ALEXANDER MANN SOLUTIONS LIMITED,05/09/2023," 1,499.52 ",LAR,80111600,Temporary personnel services
"Department for Levelling Up, Housing and Communities",Homes England,AGENCY STAFF,Cido,ALEXANDER MANN SOLUTIONS LIMITED,05/09/2023," 3,465.30 ",LAR,80111600,Temporary personnel services
"Department for Levelling Up, Housing and Communities",Homes England,AGENCY STAFF,Cido,ALEXANDER MANN SOLUTIONS LIMITED,05/09/2023," 3,465.30 ",LAR,80111600,Temporary personnel services
"Department for Levelling Up, Housing and Communities",Homes England,MISC PROFESSIONAL FEES,Chief Customer Office,ALEXANDER MANN SOLUTIONS LIMITED,05/09/2023," 9,715.56 ",LAR,80111600,Temporary personnel services
"Department for Levelling Up, Housing and Communities",Homes England,AGENCY STAFF,Cido,ALEXANDER MANN SOLUTIONS LIMITED,05/09/2023," 2,079.18 ",LAR,80111600,Temporary personnel services
"Department for Levelling Up, Housing and Communities",Homes England,AGENCY STAFF,Cido,ALEXANDER MANN SOLUTIONS LIMITED,05/09/2023," 3,408.72 ",LAR,80111600,Temporary personnel services
"Department for Levelling Up, Housing and Communities",Homes England,AGENCY STAFF,Cido,ALEXANDER MANN SOLUTIONS LIMITED,05/09/2023," 3,597.66 ",LAR,80111600,Temporary personnel services
"Department for Levelling Up, Housing and Communities",Homes England,AGENCY STAFF,Cido,ALEXANDER MANN SOLUTIONS LIMITED,05/09/2023," 1,499.52 ",LAR,80111600,Temporary personnel services
"Department for Levelling Up, Housing and Communities",Homes England,AGENCY STAFF,Cido,ALEXANDER MANN SOLUTIONS LIMITED,05/09/2023," 3,465.30 ",LAR,80111600,Temporary personnel services
"Department for Levelling Up, Housing and Communities",Homes England,AGENCY STAFF,Cido,ALEXANDER MANN SOLUTIONS LIMITED,05/09/2023," 3,465.30 ",LAR,80111600,Temporary personnel services
"Department for Levelling Up, Housing and Communities",Homes England,AGENCY STAFF,Chief Operating Officer,ALEXANDER MANN SOLUTIONS LIMITED,05/09/2023," 2,771.66 ",LAR,80111600,Temporary personnel services
"Department for Levelling Up, Housing and Communities",Homes England,AGENCY STAFF,Cido,ALEXANDER MANN SOLUTIONS LIMITED,05/09/2023, 693.06 ,LAR,80111600,Temporary personnel services
"Department for Levelling Up, Housing and Communities",Homes England,AGENCY STAFF,Cido,ALEXANDER MANN SOLUTIONS LIMITED,06/09/2023," 5,103.48 ",LAR,80111600,Temporary personnel services
"Department for Levelling Up, Housing and Communities",Homes England,AGENCY STAFF,Development,ALEXANDER MANN SOLUTIONS LIMITED,07/09/2023," 3,024.29 ",LAR,80111600,Temporary personnel services
"Department for Levelling Up, Housing and Communities",Homes England,MISC PROFESSIONAL FEES,Investment,ALEXANDER MANN SOLUTIONS LIMITED,07/09/2023," 2,520.24 ",LAR,80111600,Temporary personnel services
"Department for Levelling Up, Housing and Communities",Homes England,STAFF RECRUITMENT COSTS,Investment,ALEXANDER MANN SOLUTIONS LIMITED,08/09/2023," 4,410.42 ",LAR,80111600,Temporary personnel services
"Department for Levelling Up, Housing and Communities",Homes England,AGENCY STAFF,Cido,ALEXANDER MANN SOLUTIONS LIMITED,08/09/2023," 2,590.61 ",LAR,80111600,Temporary personnel services
"Department for Levelling Up, Housing and Communities",Homes England,AGENCY STAFF,Chief Operating Officer,ALEXANDER MANN SOLUTIONS LIMITED,08/09/2023," 3,150.30 ",LAR,80111600,Temporary personnel services
"Department for Levelling Up, Housing and Communities",Homes England,AGENCY STAFF,Chief Operating Officer,ALEXANDER MANN SOLUTIONS LIMITED,08/09/2023," 3,922.85 ",LAR,80111600,Temporary personnel services
"Department for Levelling Up, Housing and Communities",Homes England,AGENCY STAFF,Cido,ALEXANDER MANN SOLUTIONS LIMITED,08/09/2023," 2,999.66 ",LAR,80111600,Temporary personnel services
"Department for Levelling Up, Housing and Communities",Homes England,AGENCY STAFF,Chief Customer Office,ALEXANDER MANN SOLUTIONS LIMITED,08/09/2023," 3,024.29 ",LAR,80111600,Temporary personnel services
"Department for Levelling Up, Housing and Communities",Homes England,AGENCY STAFF,Cido,ALEXANDER MANN SOLUTIONS LIMITED,08/09/2023," 2,249.75 ",LAR,80111600,Temporary personnel services
"Department for Levelling Up, Housing and Communities",Homes England,AGENCY STAFF,Cido,ALEXANDER MANN SOLUTIONS LIMITED,08/09/2023," 2,556.54 ",LAR,80111600,Temporary personnel services
"Department for Levelling Up, Housing and Communities",Homes England,AGENCY STAFF,Cido,ALEXANDER MANN SOLUTIONS LIMITED,08/09/2023," 1,008.10 ",LAR,80111600,Temporary personnel services
"Department for Levelling Up, Housing and Communities",Homes England,AGENCY STAFF,"Markets, Partners & Places",ALEXANDER MANN SOLUTIONS LIMITED,08/09/2023," 1,844.48 ",LAR,80111600,Temporary personnel services
"Department for Levelling Up, Housing and Communities",Homes England,AGENCY STAFF,Chief Customer Office,ALEXANDER MANN SOLUTIONS LIMITED,08/09/2023," 1,857.74 ",LAR,80111600,Temporary personnel services
"Department for Levelling Up, Housing and Communities",Homes England,AGENCY STAFF,Chief Customer Office,ALEXANDER MANN SOLUTIONS LIMITED,08/09/2023," 4,179.92 ",LAR,80111600,Temporary personnel services
"Department for Levelling Up, Housing and Communities",Homes England,AGENCY STAFF,Chief Operating Officer,ALEXANDER MANN SOLUTIONS LIMITED,08/09/2023," 2,463.70 ",LAR,80111600,Temporary personnel services
"Department for Levelling Up, Housing and Communities",Homes England,AGENCY STAFF,Cido,ALEXANDER MANN SOLUTIONS LIMITED,08/09/2023," 2,520.24 ",LAR,80111600,Temporary personnel services
"Department for Levelling Up, Housing and Communities",Homes England,STAFF RECRUITMENT COSTS,Investment,ALEXANDER MANN SOLUTIONS LIMITED,08/09/2023," 4,410.42 ",LAR,80111600,Temporary personnel services
"Department for Levelling Up, Housing and Communities",Homes England,AGENCY STAFF,Cido,ALEXANDER MANN SOLUTIONS LIMITED,08/09/2023, 511.31 ,LAR,80111600,Temporary personnel services
"Department for Levelling Up, Housing and Communities",Homes England,AGENCY STAFF,Cido,ALEXANDER MANN SOLUTIONS LIMITED,11/09/2023," 8,180.93 ",LAR,80111600,Temporary personnel services
"Department for Levelling Up, Housing and Communities",Homes England,AGENCY STAFF,Cido,ALEXANDER MANN SOLUTIONS LIMITED,11/09/2023," 2,767.20 ",LAR,80111600,Temporary personnel services
"Department for Levelling Up, Housing and Communities",Homes England,AGENCY STAFF,Cido,ALEXANDER MANN SOLUTIONS LIMITED,11/09/2023," 2,878.13 ",LAR,80111600,Temporary personnel services
"Department for Levelling Up, Housing and Communities",Homes England,AGENCY STAFF,Cido,ALEXANDER MANN SOLUTIONS LIMITED,11/09/2023," 2,878.13 ",LAR,80111600,Temporary personnel services
"Department for Levelling Up, Housing and Communities",Homes England,AGENCY STAFF,Corporate Resources,ALEXANDER MANN SOLUTIONS LIMITED,11/09/2023, 663.48 ,LAR,80111600,Temporary personnel services
"Department for Levelling Up, Housing and Communities",Homes England,AGENCY STAFF,Cido,ALEXANDER MANN SOLUTIONS LIMITED,11/09/2023," 2,772.24 ",LAR,80111600,Temporary personnel services
"Department for Levelling Up, Housing and Communities",Homes England,AGENCY STAFF,Cido,ALEXANDER MANN SOLUTIONS LIMITED,11/09/2023," 2,767.20 ",LAR,80111600,Temporary personnel services
"Department for Levelling Up, Housing and Communities",Homes England,AGENCY STAFF,Chief Customer Office,ALEXANDER MANN SOLUTIONS LIMITED,11/09/2023," 6,237.54 ",LAR,80111600,Temporary personnel services
"Department for Levelling Up, Housing and Communities",Homes England,AGENCY STAFF,Cido,ALEXANDER MANN SOLUTIONS LIMITED,11/09/2023," 2,322.18 ",LAR,80111600,Temporary personnel services
"Department for Levelling Up, Housing and Communities",Homes England,AGENCY STAFF,Cido,ALEXANDER MANN SOLUTIONS LIMITED,12/09/2023," 26,996.90 ",LAR,80111600,Temporary personnel services
"Department for Levelling Up, Housing and Communities",Homes England,AGENCY STAFF,Cido,ALEXANDER MANN SOLUTIONS LIMITED,12/09/2023," 3,465.30 ",LAR,80111600,Temporary personnel services
"Department for Levelling Up, Housing and Communities",Homes England,AGENCY STAFF,Chief Operating Officer,ALEXANDER MANN SOLUTIONS LIMITED,12/09/2023," 2,463.72 ",LAR,80111600,Temporary personnel services
"Department for Levelling Up, Housing and Communities",Homes England,AGENCY STAFF,Cido,ALEXANDER MANN SOLUTIONS LIMITED,12/09/2023," 4,725.42 ",LAR,80111600,Temporary personnel services
"Department for Levelling Up, Housing and Communities",Homes England,AGENCY STAFF,Corporate Resources,ALEXANDER MANN SOLUTIONS LIMITED,12/09/2023," 6,634.80 ",LAR,80111600,Temporary personnel services
"Department for Levelling Up, Housing and Communities",Homes England,AGENCY STAFF,Cido,ALEXANDER MANN SOLUTIONS LIMITED,12/09/2023," 6,817.44 ",LAR,80111600,Temporary personnel services
"Department for Levelling Up, Housing and Communities",Homes England,AGENCY STAFF,Chief Operating Officer,ALEXANDER MANN SOLUTIONS LIMITED,12/09/2023," 3,780.36 ",LAR,80111600,Temporary personnel services
"Department for Levelling Up, Housing and Communities",Homes England,AGENCY STAFF,Cido,ALEXANDER MANN SOLUTIONS LIMITED,12/09/2023," 3,780.36 ",LAR,80111600,Temporary personnel services
"Department for Levelling Up, Housing and Communities",Homes England,AGENCY STAFF,Cido,ALEXANDER MANN SOLUTIONS LIMITED,12/09/2023," 4,725.42 ",LAR,80111600,Temporary personnel services
"Department for Levelling Up, Housing and Communities",Homes England,AGENCY STAFF,Cido,ALEXANDER MANN SOLUTIONS LIMITED,12/09/2023," 3,024.29 ",LAR,80111600,Temporary personnel services
"Department for Levelling Up, Housing and Communities",Homes England,AGENCY STAFF,Cido,ALEXANDER MANN SOLUTIONS LIMITED,12/09/2023," 2,665.14 ",LAR,80111600,Temporary personnel services
"Department for Levelling Up, Housing and Communities",Homes England,MISC PROFESSIONAL FEES,Investment,ALEXANDER MANN SOLUTIONS LIMITED,12/09/2023," 3,465.30 ",LAR,80111600,Temporary personnel services
"Department for Levelling Up, Housing and Communities",Homes England,AGENCY STAFF,Chief Operating Officer,ALEXANDER MANN SOLUTIONS LIMITED,12/09/2023," 3,024.29 ",LAR,80111600,Temporary personnel services
"Department for Levelling Up, Housing and Communities",Homes England,AGENCY STAFF,Cido,ALEXANDER MANN SOLUTIONS LIMITED,12/09/2023," 3,024.29 ",LAR,80111600,Temporary personnel services
"Department for Levelling Up, Housing and Communities",Homes England,AGENCY STAFF,Cido,ALEXANDER MANN SOLUTIONS LIMITED,12/09/2023," 3,780.34 ",LAR,80111600,Temporary personnel services
"Department for Levelling Up, Housing and Communities",Homes England,AGENCY STAFF,Cido,ALEXANDER MANN SOLUTIONS LIMITED,12/09/2023," 3,402.32 ",LAR,80111600,Temporary personnel services
"Department for Levelling Up, Housing and Communities",Homes England,AGENCY STAFF,Cido,ALEXANDER MANN SOLUTIONS LIMITED,12/09/2023," 12,407.81 ",LAR,80111600,Temporary personnel services
"Department for Levelling Up, Housing and Communities",Homes England,AGENCY STAFF,Cido,ALEXANDER MANN SOLUTIONS LIMITED,12/09/2023," 2,772.24 ",LAR,80111600,Temporary personnel services
"Department for Levelling Up, Housing and Communities",Homes England,AGENCY STAFF,Cido,ALEXANDER MANN SOLUTIONS LIMITED,12/09/2023," 2,772.24 ",LAR,80111600,Temporary personnel services
"Department for Levelling Up, Housing and Communities",Homes England,AGENCY STAFF,Chief Customer Office,ALEXANDER MANN SOLUTIONS LIMITED,12/09/2023," 2,747.04 ",LAR,80111600,Temporary personnel services
"Department for Levelling Up, Housing and Communities",Homes England,AGENCY STAFF,Cido,ALEXANDER MANN SOLUTIONS LIMITED,12/09/2023," 5,453.95 ",LAR,80111600,Temporary personnel services
"Department for Levelling Up, Housing and Communities",Homes England,AGENCY STAFF,Cido,ALEXANDER MANN SOLUTIONS LIMITED,12/09/2023," 7,362.79 ",LAR,80111600,Temporary personnel services
"Department for Levelling Up, Housing and Communities",Homes England,AGENCY STAFF,Cido,ALEXANDER MANN SOLUTIONS LIMITED,12/09/2023," 1,599.08 ",LAR,80111600,Temporary personnel services
"Department for Levelling Up, Housing and Communities",Homes England,AGENCY STAFF,Cido,ALEXANDER MANN SOLUTIONS LIMITED,14/09/2023," 3,465.30 ",LAR,80111600,Temporary personnel services
"Department for Levelling Up, Housing and Communities",Homes England,AGENCY STAFF,Cido,ALEXANDER MANN SOLUTIONS LIMITED,14/09/2023," 3,465.30 ",LAR,80111600,Temporary personnel services
"Department for Levelling Up, Housing and Communities",Homes England,AGENCY STAFF,Development,ALEXANDER MANN SOLUTIONS LIMITED,14/09/2023," 3,780.36 ",LAR,80111600,Temporary personnel services
"Department for Levelling Up, Housing and Communities",Homes England,AGENCY STAFF,Cido,ALEXANDER MANN SOLUTIONS LIMITED,14/09/2023," 1,260.12 ",LAR,80111600,Temporary personnel services
"Department for Levelling Up, Housing and Communities",Homes England,AGENCY STAFF,Cido,ALEXANDER MANN SOLUTIONS LIMITED,14/09/2023," 6,237.54 ",LAR,80111600,Temporary personnel services
"Department for Levelling Up, Housing and Communities",Homes England,AGENCY STAFF,Cido,ALEXANDER MANN SOLUTIONS LIMITED,15/09/2023," 8,316.79 ",LAR,80111600,Temporary personnel services
"Department for Levelling Up, Housing and Communities",Homes England,AGENCY STAFF,Cido,ALEXANDER MANN SOLUTIONS LIMITED,15/09/2023," 4,090.44 ",LAR,80111600,Temporary personnel services
"Department for Levelling Up, Housing and Communities",Homes England,MISC PROFESSIONAL FEES,Investment,ALEXANDER MANN SOLUTIONS LIMITED,15/09/2023," 2,079.18 ",LAR,80111600,Temporary personnel services
"Department for Levelling Up, Housing and Communities",Homes England,AGENCY STAFF,Cido,ALEXANDER MANN SOLUTIONS LIMITED,18/09/2023," 5,341.02 ",LAR,80111600,Temporary personnel services
"Department for Levelling Up, Housing and Communities",Homes England,AGENCY STAFF,Cido,ALEXANDER MANN SOLUTIONS LIMITED,18/09/2023," 6,804.65 ",LAR,80111600,Temporary personnel services
"Department for Levelling Up, Housing and Communities",Homes England,AGENCY STAFF,Cido,ALEXANDER MANN SOLUTIONS LIMITED,18/09/2023," 10,206.96 ",LAR,80111600,Temporary personnel services
"Department for Levelling Up, Housing and Communities",Homes England,AGENCY STAFF,Cido,ALEXANDER MANN SOLUTIONS LIMITED,18/09/2023," 1,393.31 ",LAR,80111600,Temporary personnel services
"Department for Levelling Up, Housing and Communities",Homes England,AGENCY STAFF,Cido,ALEXANDER MANN SOLUTIONS LIMITED,18/09/2023," 2,268.22 ",LAR,80111600,Temporary personnel services
"Department for Levelling Up, Housing and Communities",Homes England,AGENCY STAFF,Cido,ALEXANDER MANN SOLUTIONS LIMITED,18/09/2023," 1,512.14 ",LAR,80111600,Temporary personnel services
"Department for Levelling Up, Housing and Communities",Homes England,AGENCY STAFF,Cido,ALEXANDER MANN SOLUTIONS LIMITED,18/09/2023," 3,749.58 ",LAR,80111600,Temporary personnel services
"Department for Levelling Up, Housing and Communities",Homes England,AGENCY STAFF,Cido,ALEXANDER MANN SOLUTIONS LIMITED,18/09/2023," 2,268.22 ",LAR,80111600,Temporary personnel services
"Department for Levelling Up, Housing and Communities",Homes England,AGENCY STAFF,Cido,ALEXANDER MANN SOLUTIONS LIMITED,18/09/2023," 2,999.66 ",LAR,80111600,Temporary personnel services
"Department for Levelling Up, Housing and Communities",Homes England,AGENCY STAFF,Chief Customer Office,ALEXANDER MANN SOLUTIONS LIMITED,18/09/2023," 3,780.36 ",LAR,80111600,Temporary personnel services
"Department for Levelling Up, Housing and Communities",Homes England,AGENCY STAFF,Cido,ALEXANDER MANN SOLUTIONS LIMITED,18/09/2023," 3,024.29 ",LAR,80111600,Temporary personnel services
"Department for Levelling Up, Housing and Communities",Homes England,AGENCY STAFF,Cido,ALEXANDER MANN SOLUTIONS LIMITED,18/09/2023," 1,260.12 ",LAR,80111600,Temporary personnel services
"Department for Levelling Up, Housing and Communities",Homes England,AGENCY STAFF,Cido,ALEXANDER MANN SOLUTIONS LIMITED,18/09/2023," 10,498.82 ",LAR,80111600,Temporary personnel services
"Department for Levelling Up, Housing and Communities",Homes England,AGENCY STAFF,Chief Customer Office,ALEXANDER MANN SOLUTIONS LIMITED,18/09/2023," 3,433.80 ",LAR,80111600,Temporary personnel services
"Department for Levelling Up, Housing and Communities",Homes England,AGENCY STAFF,Corporate Resources,ALEXANDER MANN SOLUTIONS LIMITED,18/09/2023," 3,317.40 ",LAR,80111600,Temporary personnel services
"Department for Levelling Up, Housing and Communities",Homes England,AGENCY STAFF,Chief Customer Office,ALEXANDER MANN SOLUTIONS LIMITED,18/09/2023," 3,465.30 ",LAR,80111600,Temporary personnel services
"Department for Levelling Up, Housing and Communities",Homes England,AGENCY STAFF,Cido,ALEXANDER MANN SOLUTIONS LIMITED,18/09/2023," 3,749.58 ",LAR,80111600,Temporary personnel services
"Department for Levelling Up, Housing and Communities",Homes England,AGENCY STAFF,Cido,ALEXANDER MANN SOLUTIONS LIMITED,18/09/2023," 3,150.30 ",LAR,80111600,Temporary personnel services
"Department for Levelling Up, Housing and Communities",Homes England,AGENCY STAFF,Cido,ALEXANDER MANN SOLUTIONS LIMITED,18/09/2023," 5,113.08 ",LAR,80111600,Temporary personnel services
"Department for Levelling Up, Housing and Communities",Homes England,AGENCY STAFF,Cido,ALEXANDER MANN SOLUTIONS LIMITED,19/09/2023," 1,199.62 ",LAR,80111600,Temporary personnel services
"Department for Levelling Up, Housing and Communities",Homes England,AGENCY STAFF,Chief Operating Officer,ALEXANDER MANN SOLUTIONS LIMITED,19/09/2023," 1,890.18 ",LAR,80111600,Temporary personnel services
"Department for Levelling Up, Housing and Communities",Homes England,AGENCY STAFF,Chief Operating Officer,ALEXANDER MANN SOLUTIONS LIMITED,19/09/2023," 5,705.95 ",LAR,80111600,Temporary personnel services
"Department for Levelling Up, Housing and Communities",Homes England,AGENCY STAFF,Cido,ALEXANDER MANN SOLUTIONS LIMITED,19/09/2023," 3,459.00 ",LAR,80111600,Temporary personnel services
"Department for Levelling Up, Housing and Communities",Homes England,AGENCY STAFF,Cido,ALEXANDER MANN SOLUTIONS LIMITED,19/09/2023," 1,499.52 ",LAR,80111600,Temporary personnel services
"Department for Levelling Up, Housing and Communities",Homes England,AGENCY STAFF,Chief Operating Officer,ALEXANDER MANN SOLUTIONS LIMITED,19/09/2023," 3,079.62 ",LAR,80111600,Temporary personnel services
"Department for Levelling Up, Housing and Communities",Homes England,AGENCY STAFF,Cido,ALEXANDER MANN SOLUTIONS LIMITED,19/09/2023," 3,465.30 ",LAR,80111600,Temporary personnel services
"Department for Levelling Up, Housing and Communities",Homes England,AGENCY STAFF,Cido,ALEXANDER MANN SOLUTIONS LIMITED,19/09/2023," 3,459.00 ",LAR,80111600,Temporary personnel services
"Department for Levelling Up, Housing and Communities",Homes England,AGENCY STAFF,Development,ALEXANDER MANN SOLUTIONS LIMITED,20/09/2023," 3,024.29 ",LAR,80111600,Temporary personnel services
"Department for Levelling Up, Housing and Communities",Homes England,AGENCY STAFF,Cido,ALEXANDER MANN SOLUTIONS LIMITED,20/09/2023," 4,090.44 ",LAR,80111600,Temporary personnel services
"Department for Levelling Up, Housing and Communities",Homes England,AGENCY STAFF,Cido,ALEXANDER MANN SOLUTIONS LIMITED,21/09/2023," 4,499.52 ",LAR,80111600,Temporary personnel services
"Department for Levelling Up, Housing and Communities",Homes England,MISC PROFESSIONAL FEES,Chief Customer Office,ALEXANDER MANN SOLUTIONS LIMITED,21/09/2023," 6,747.95 ",LAR,80111600,Temporary personnel services
"Department for Levelling Up, Housing and Communities",Homes England,AGENCY STAFF,Cido,ALEXANDER MANN SOLUTIONS LIMITED,21/09/2023," 4,499.52 ",LAR,80111600,Temporary personnel services
"Department for Levelling Up, Housing and Communities",Homes England,AGENCY STAFF,Chief Risk Officer,ALEXANDER MANN SOLUTIONS LIMITED,21/09/2023," 9,930.42 ",LAR,80111600,Temporary personnel services
"Department for Levelling Up, Housing and Communities",Homes England,AGENCY STAFF,Cido,ALEXANDER MANN SOLUTIONS LIMITED,21/09/2023," 3,238.26 ",LAR,80111600,Temporary personnel services
"Department for Levelling Up, Housing and Communities",Homes England,AGENCY STAFF,Cido,ALEXANDER MANN SOLUTIONS LIMITED,21/09/2023," 3,749.58 ",LAR,80111600,Temporary personnel services
"Department for Levelling Up, Housing and Communities",Homes England,MISC PROFESSIONAL FEES,Chief Customer Office,ALEXANDER MANN SOLUTIONS LIMITED,21/09/2023," 3,748.86 ",LAR,80111600,Temporary personnel services
"Department for Levelling Up, Housing and Communities",Homes England,AGENCY STAFF,Cido,ALEXANDER MANN SOLUTIONS LIMITED,21/09/2023," 3,465.30 ",LAR,80111600,Temporary personnel services
"Department for Levelling Up, Housing and Communities",Homes England,AGENCY STAFF,Cido,ALEXANDER MANN SOLUTIONS LIMITED,21/09/2023," 3,465.30 ",LAR,80111600,Temporary personnel services
"Department for Levelling Up, Housing and Communities",Homes England,AGENCY STAFF,Cido,ALEXANDER MANN SOLUTIONS LIMITED,21/09/2023," 3,465.30 ",LAR,80111600,Temporary personnel services
"Department for Levelling Up, Housing and Communities",Homes England,AGENCY STAFF,Cido,ALEXANDER MANN SOLUTIONS LIMITED,21/09/2023," 4,499.52 ",LAR,80111600,Temporary personnel services
"Department for Levelling Up, Housing and Communities",Homes England,AGENCY STAFF,Cido,ALEXANDER MANN SOLUTIONS LIMITED,22/09/2023," 4,082.78 ",LAR,80111600,Temporary personnel services
"Department for Levelling Up, Housing and Communities",Homes England,STAFF RECRUITMENT COSTS,Investment,ALEXANDER MANN SOLUTIONS LIMITED,22/09/2023," 4,410.42 ",LAR,80111600,Temporary personnel services
"Department for Levelling Up, Housing and Communities",Homes England,AGENCY STAFF,Cido,ALEXANDER MANN SOLUTIONS LIMITED,25/09/2023," 9,817.09 ",LAR,80111600,Temporary personnel services
"Department for Levelling Up, Housing and Communities",Homes England,AGENCY STAFF,Chief Risk Officer,ALEXANDER MANN SOLUTIONS LIMITED,25/09/2023," 9,930.42 ",LAR,80111600,Temporary personnel services
"Department for Levelling Up, Housing and Communities",Homes England,AGENCY STAFF,Cido,ALEXANDER MANN SOLUTIONS LIMITED,25/09/2023," 3,238.26 ",LAR,80111600,Temporary personnel services
"Department for Levelling Up, Housing and Communities",Homes England,AGENCY STAFF,Cido,ALEXANDER MANN SOLUTIONS LIMITED,25/09/2023," 4,431.36 ",LAR,80111600,Temporary personnel services
"Department for Levelling Up, Housing and Communities",Homes England,AGENCY STAFF,Cido,ALEXANDER MANN SOLUTIONS LIMITED,25/09/2023," 2,249.75 ",LAR,80111600,Temporary personnel services
"Department for Levelling Up, Housing and Communities",Homes England,AGENCY STAFF,Chief Customer Office,ALEXANDER MANN SOLUTIONS LIMITED,25/09/2023," 3,024.29 ",LAR,80111600,Temporary personnel services
"Department for Levelling Up, Housing and Communities",Homes England,AGENCY STAFF,Cido,ALEXANDER MANN SOLUTIONS LIMITED,25/09/2023," 2,249.75 ",LAR,80111600,Temporary personnel services
"Department for Levelling Up, Housing and Communities",Homes England,AGENCY STAFF,Cido,ALEXANDER MANN SOLUTIONS LIMITED,25/09/2023," 4,260.90 ",LAR,80111600,Temporary personnel services
"Department for Levelling Up, Housing and Communities",Homes England,AGENCY STAFF,Cido,ALEXANDER MANN SOLUTIONS LIMITED,25/09/2023," 4,260.90 ",LAR,80111600,Temporary personnel services
"Department for Levelling Up, Housing and Communities",Homes England,AGENCY STAFF,Cido,ALEXANDER MANN SOLUTIONS LIMITED,25/09/2023," 1,260.12 ",LAR,80111600,Temporary personnel services
"Department for Levelling Up, Housing and Communities",Homes England,AGENCY STAFF,Cido,ALEXANDER MANN SOLUTIONS LIMITED,25/09/2023," 3,465.30 ",LAR,80111600,Temporary personnel services
"Department for Levelling Up, Housing and Communities",Homes England,AGENCY STAFF,Cido,ALEXANDER MANN SOLUTIONS LIMITED,25/09/2023," 3,465.30 ",LAR,80111600,Temporary personnel services
"Department for Levelling Up, Housing and Communities",Homes England,AGENCY STAFF,Cido,ALEXANDER MANN SOLUTIONS LIMITED,25/09/2023," 3,749.58 ",LAR,80111600,Temporary personnel services
"Department for Levelling Up, Housing and Communities",Homes England,AGENCY STAFF,Corporate Resources,ALEXANDER MANN SOLUTIONS LIMITED,25/09/2023," 3,317.40 ",LAR,80111600,Temporary personnel services
"Department for Levelling Up, Housing and Communities",Homes England,AGENCY STAFF,Cido,ALEXANDER MANN SOLUTIONS LIMITED,25/09/2023," 3,465.30 ",LAR,80111600,Temporary personnel services
"Department for Levelling Up, Housing and Communities",Homes England,AGENCY STAFF,Chief Customer Office,ALEXANDER MANN SOLUTIONS LIMITED,25/09/2023," 3,465.30 ",LAR,80111600,Temporary personnel services
"Department for Levelling Up, Housing and Communities",Homes England,AGENCY STAFF,Cido,ALEXANDER MANN SOLUTIONS LIMITED,25/09/2023," 4,499.52 ",LAR,80111600,Temporary personnel services
"Department for Levelling Up, Housing and Communities",Homes England,AGENCY STAFF,Cido,ALEXANDER MANN SOLUTIONS LIMITED,25/09/2023," 1,857.74 ",LAR,80111600,Temporary personnel services
"Department for Levelling Up, Housing and Communities",Homes England,AGENCY STAFF,Cido,ALEXANDER MANN SOLUTIONS LIMITED,25/09/2023," 3,150.30 ",LAR,80111600,Temporary personnel services
"Department for Levelling Up, Housing and Communities",Homes England,AGENCY STAFF,Cido,ALEXANDER MANN SOLUTIONS LIMITED,25/09/2023," 5,113.08 ",LAR,80111600,Temporary personnel services
"Department for Levelling Up, Housing and Communities",Homes England,MISC PROFESSIONAL FEES,Chief Customer Office,ALEXANDER MANN SOLUTIONS LIMITED,25/09/2023," 1,575.12 ",LAR,80111600,Temporary personnel services
"Department for Levelling Up, Housing and Communities",Homes England,AGENCY STAFF,Chief Operating Officer,ALEXANDER MANN SOLUTIONS LIMITED,26/09/2023," 7,132.44 ",LAR,80111600,Temporary personnel services
"Department for Levelling Up, Housing and Communities",Homes England,AGENCY STAFF,Cido,ALEXANDER MANN SOLUTIONS LIMITED,26/09/2023," 3,024.29 ",LAR,80111600,Temporary personnel services
"Department for Levelling Up, Housing and Communities",Homes England,AGENCY STAFF,Chief Operating Officer,ALEXANDER MANN SOLUTIONS LIMITED,26/09/2023," 3,079.62 ",LAR,80111600,Temporary personnel services
"Department for Levelling Up, Housing and Communities",Homes England,AGENCY STAFF,"Markets, Partners & Places",ALEXANDER MANN SOLUTIONS LIMITED,26/09/2023," 2,771.71 ",LAR,80111600,Temporary personnel services
"Department for Levelling Up, Housing and Communities",Homes England,AGENCY STAFF,Cido,ALEXANDER MANN SOLUTIONS LIMITED,26/09/2023," 3,374.63 ",LAR,80111600,Temporary personnel services
"Department for Levelling Up, Housing and Communities",Homes England,AGENCY STAFF,Chief Customer Office,ALEXANDER MANN SOLUTIONS LIMITED,27/09/2023," 2,322.18 ",LAR,80111600,Temporary personnel services
"Department for Levelling Up, Housing and Communities",Homes England,AGENCY STAFF,Development,ALEXANDER MANN SOLUTIONS LIMITED,27/09/2023," 3,780.36 ",LAR,80111600,Temporary personnel services
"Department for Levelling Up, Housing and Communities",Homes England,AGENCY STAFF,Cido,ALEXANDER MANN SOLUTIONS LIMITED,28/09/2023," 2,268.22 ",LAR,80111600,Temporary personnel services
"Department for Levelling Up, Housing and Communities",Homes England,AGENCY STAFF,Cido,ALEXANDER MANN SOLUTIONS LIMITED,28/09/2023," 4,090.44 ",LAR,80111600,Temporary personnel services
"Department for Levelling Up, Housing and Communities",Homes England,STAFF RECRUITMENT COSTS,Investment,ALEXANDER MANN SOLUTIONS LIMITED,28/09/2023," 3,528.34 ",LAR,80111600,Temporary personnel services
"Department for Levelling Up, Housing and Communities",Homes England,MISC PROFESSIONAL FEES,Investment,ALEXANDER MANN SOLUTIONS LIMITED,28/09/2023," 6,930.60 ",LAR,80111600,Temporary personnel services
"Department for Levelling Up, Housing and Communities",Homes England,CONTRACT WORKS,Development,AUSTIN WILKINSON DEMOLITION LTD,19/09/2023," 4,026.74 ",SMA,72141500,Land preparation services
"Department for Levelling Up, Housing and Communities",Homes England,VALUATION FEES,Development,ASPINALL VERDI LIMITED,07/09/2023," 6,279.60 ",SMA,80131800,Real estate management services
"Department for Levelling Up, Housing and Communities",Homes England,DISPOSAL FEES - PROPERTY AGENT,Development,ASPINALL VERDI LIMITED,19/09/2023," 5,129.80 ",SMA,80131600,Sale of property and building
"Department for Levelling Up, Housing and Communities",Homes England,LAND REMEDIATION,"Markets, Partners & Places",AURORA HEALTH PHYSICS SERVICES LTD,11/09/2023," 7,515.00 ",SMA,72141500,Land preparation services
"Department for Levelling Up, Housing and Communities",Homes England,LAND REMEDIATION,"Markets, Partners & Places",AURORA HEALTH PHYSICS SERVICES LTD,11/09/2023," 2,264.52 ",SMA,72141500,Land preparation services
"Department for Levelling Up, Housing and Communities",Homes England,AGENCY STAFF,Chief Customer Office,ALLEN LANE LIMITED,01/09/2023," 4,933.50 ",LAR,80111600,Temporary personnel services
"Department for Levelling Up, Housing and Communities",Homes England,AGENCY STAFF,Chief Customer Office,ALLEN LANE LIMITED,01/09/2023," 1,320.00 ",LAR,80111600,Temporary personnel services
"Department for Levelling Up, Housing and Communities",Homes England,AGENCY STAFF,Chief Customer Office,ALLEN LANE LIMITED,01/09/2023," 2,277.00 ",LAR,80111600,Temporary personnel services
"Department for Levelling Up, Housing and Communities",Homes England,AGENCY STAFF,Chief Customer Office,ALLEN LANE LIMITED,01/09/2023," 2,904.00 ",LAR,80111600,Temporary personnel services
"Department for Levelling Up, Housing and Communities",Homes England,AGENCY STAFF,Chief Customer Office,ALLEN LANE LIMITED,01/09/2023," 3,630.00 ",LAR,80111600,Temporary personnel services
"Department for Levelling Up, Housing and Communities",Homes England,AGENCY STAFF,Chief Customer Office,ALLEN LANE LIMITED,01/09/2023," 3,795.00 ",LAR,80111600,Temporary personnel services
"Department for Levelling Up, Housing and Communities",Homes England,AGENCY STAFF,Chief Customer Office,ALLEN LANE LIMITED,01/09/2023," 4,650.00 ",LAR,80111600,Temporary personnel services
"Department for Levelling Up, Housing and Communities",Homes England,AGENCY STAFF,Chief Customer Office,ALLEN LANE LIMITED,01/09/2023," 4,290.00 ",LAR,80111600,Temporary personnel services
"Department for Levelling Up, Housing and Communities",Homes England,AGENCY STAFF,Chief Customer Office,ALLEN LANE LIMITED,07/09/2023," 1,860.00 ",LAR,80111600,Temporary personnel services
"Department for Levelling Up, Housing and Communities",Homes England,AGENCY STAFF,Chief Customer Office,ALLEN LANE LIMITED,07/09/2023," 3,960.00 ",LAR,80111600,Temporary personnel services
"Department for Levelling Up, Housing and Communities",Homes England,AGENCY STAFF,Chief Customer Office,ALLEN LANE LIMITED,07/09/2023," 2,904.00 ",LAR,80111600,Temporary personnel services
"Department for Levelling Up, Housing and Communities",Homes England,AGENCY STAFF,Chief Customer Office,ALLEN LANE LIMITED,07/09/2023," 2,904.00 ",LAR,80111600,Temporary personnel services
"Department for Levelling Up, Housing and Communities",Homes England,AGENCY STAFF,Chief Customer Office,ALLEN LANE LIMITED,07/09/2023," 3,036.00 ",LAR,80111600,Temporary personnel services
"Department for Levelling Up, Housing and Communities",Homes England,AGENCY STAFF,Chief Customer Office,ALLEN LANE LIMITED,07/09/2023," 3,036.00 ",LAR,80111600,Temporary personnel services
"Department for Levelling Up, Housing and Communities",Homes England,AGENCY STAFF,Chief Customer Office,ALLEN LANE LIMITED,14/09/2023," 3,036.00 ",LAR,80111600,Temporary personnel services
"Department for Levelling Up, Housing and Communities",Homes England,AGENCY STAFF,Chief Customer Office,ALLEN LANE LIMITED,14/09/2023," 7,722.00 ",LAR,80111600,Temporary personnel services
"Department for Levelling Up, Housing and Communities",Homes England,AGENCY STAFF,Chief Customer Office,ALLEN LANE LIMITED,14/09/2023," 3,630.00 ",LAR,80111600,Temporary personnel services
"Department for Levelling Up, Housing and Communities",Homes England,AGENCY STAFF,Chief Customer Office,ALLEN LANE LIMITED,14/09/2023," 3,630.00 ",LAR,80111600,Temporary personnel services
"Department for Levelling Up, Housing and Communities",Homes England,AGENCY STAFF,Chief Customer Office,ALLEN LANE LIMITED,14/09/2023," 3,795.00 ",LAR,80111600,Temporary personnel services
"Department for Levelling Up, Housing and Communities",Homes England,AGENCY STAFF,Chief Customer Office,ALLEN LANE LIMITED,14/09/2023," 3,795.00 ",LAR,80111600,Temporary personnel services
"Department for Levelling Up, Housing and Communities",Homes England,AGENCY STAFF,Chief Customer Office,ALLEN LANE LIMITED,14/09/2023," 4,650.00 ",LAR,80111600,Temporary personnel services
"Department for Levelling Up, Housing and Communities",Homes England,AGENCY STAFF,Chief Customer Office,ALLEN LANE LIMITED,26/09/2023," 5,280.00 ",LAR,80111600,Temporary personnel services
"Department for Levelling Up, Housing and Communities",Homes England,AGENCY STAFF,Chief Customer Office,ALLEN LANE LIMITED,26/09/2023," 3,267.00 ",LAR,80111600,Temporary personnel services
"Department for Levelling Up, Housing and Communities",Homes England,AGENCY STAFF,Chief Customer Office,ALLEN LANE LIMITED,26/09/2023," 3,630.00 ",LAR,80111600,Temporary personnel services
"Department for Levelling Up, Housing and Communities",Homes England,AGENCY STAFF,Chief Customer Office,ALLEN LANE LIMITED,26/09/2023," 4,001.87 ",LAR,80111600,Temporary personnel services
"Department for Levelling Up, Housing and Communities",Homes England,AGENCY STAFF,Chief Customer Office,ALLEN LANE LIMITED,26/09/2023," 3,795.00 ",LAR,80111600,Temporary personnel services
"Department for Levelling Up, Housing and Communities",Homes England,AGENCY STAFF,Chief Customer Office,ALLEN LANE LIMITED,26/09/2023," 3,795.00 ",LAR,80111600,Temporary personnel services
"Department for Levelling Up, Housing and Communities",Homes England,AGENCY STAFF,Chief Customer Office,ALLEN LANE LIMITED,26/09/2023," 4,650.00 ",LAR,80111600,Temporary personnel services
"Department for Levelling Up, Housing and Communities",Homes England,AGENCY STAFF,Chief Customer Office,ALLEN LANE LIMITED,28/09/2023," 2,178.00 ",LAR,80111600,Temporary personnel services
"Department for Levelling Up, Housing and Communities",Homes England,AGENCY STAFF,Chief Customer Office,ALLEN LANE LIMITED,28/09/2023," 3,630.00 ",LAR,80111600,Temporary personnel services
"Department for Levelling Up, Housing and Communities",Homes England,AGENCY STAFF,Chief Customer Office,ALLEN LANE LIMITED,28/09/2023," 3,795.00 ",LAR,80111600,Temporary personnel services
"Department for Levelling Up, Housing and Communities",Homes England,AGENCY STAFF,Chief Customer Office,ALLEN LANE LIMITED,28/09/2023," 3,795.00 ",LAR,80111600,Temporary personnel services
"Department for Levelling Up, Housing and Communities",Homes England,AGENCY STAFF,Chief Customer Office,ALLEN LANE LIMITED,28/09/2023," 3,795.00 ",LAR,80111600,Temporary personnel services
"Department for Levelling Up, Housing and Communities",Homes England,AGENCY STAFF,Chief Customer Office,ALLEN LANE LIMITED,28/09/2023," 8,580.00 ",LAR,80111600,Temporary personnel services
"Department for Levelling Up, Housing and Communities",Homes England,ESTATE GENERAL MAINTENANCE,Development,AIREDALE FORESTRY,11/09/2023, 339.16 ,SMA,72101500,Building maintenance and repair services
"Department for Levelling Up, Housing and Communities",Homes England,ESTATE GENERAL MAINTENANCE,Development,AIREDALE FORESTRY,11/09/2023, 492.02 ,SMA,72101500,Building maintenance and repair services
"Department for Levelling Up, Housing and Communities",Homes England,ESTATE GENERAL MAINTENANCE,"Markets, Partners & Places",AIREDALE FORESTRY,11/09/2023, 653.28 ,SMA,72101500,Building maintenance and repair services
"Department for Levelling Up, Housing and Communities",Homes England,ESTATE GENERAL MAINTENANCE,Development,AIREDALE FORESTRY,11/09/2023, 902.53 ,SMA,72101500,Building maintenance and repair services
"Department for Levelling Up, Housing and Communities",Homes England,ESTATE GENERAL MAINTENANCE,Development,AIREDALE FORESTRY,28/09/2023," 1,255.26 ",SMA,72101500,Building maintenance and repair services
"Department for Levelling Up, Housing and Communities",Homes England,ESTATE GENERAL MAINTENANCE,Development,AIREDALE FORESTRY,29/09/2023, 663.23 ,SMA,72101500,Building maintenance and repair services
"Department for Levelling Up, Housing and Communities",Homes England,LUHBF Loans Additions,Investment,APPERLEY VIEW LTD,12/09/2023," 251,875.47 ",MIC,None,Loans
"Department for Levelling Up, Housing and Communities",Homes England,DISPOSAL FEES - LEGAL,Development,ASHFORDS,05/09/2023, 900.00 ,LAR,80121600,Business law services
"Department for Levelling Up, Housing and Communities",Homes England,DISPOSAL FEES - LEGAL,Development,ASHFORDS,07/09/2023," 2,162.40 ",LAR,80121600,Business law services
"Department for Levelling Up, Housing and Communities",Homes England,LEGAL FEES (PROGRAMME - RDEL),Development,ASHFORDS,12/09/2023, 600.00 ,LAR,80121600,Business law services
"Department for Levelling Up, Housing and Communities",Homes England,LEGAL FEES (PROGRAMME - CDEL),Development,ASHFORDS,12/09/2023, 600.00 ,LAR,80121600,Business law services
"Department for Levelling Up, Housing and Communities",Homes England,LEGAL FEES (PROGRAMME - CDEL),Development,ASHFORDS,12/09/2023," 1,296.19 ",LAR,80121600,Business law services
"Department for Levelling Up, Housing and Communities",Homes England,DISPOSAL FEES - LEGAL,Development,ASHFORDS,22/09/2023, 851.40 ,LAR,80121600,Business law services
"Department for Levelling Up, Housing and Communities",Homes England,LEGAL FEES (PROGRAMME - CDEL),"Markets, Partners & Places",ASHFORDS,22/09/2023," 14,100.00 ",LAR,80121600,Business law services
"Department for Levelling Up, Housing and Communities",Homes England,DISPOSAL FEES - LEGAL,"Markets, Partners & Places",ASHFORDS,27/09/2023, 889.20 ,LAR,80121600,Business law services
"Department for Levelling Up, Housing and Communities",Homes England,MISC PROFESSIONAL FEES,"Markets, Partners & Places",DESIGN MIDLANDS LIMITED,28/09/2023," 3,600.00 ",SMA,80131800,Real estate management services
"Department for Levelling Up, Housing and Communities",Homes England,CAR LEASING - HIRE CHARGES,Corporate Allocations,ARNOLD CLARK FINANCE LIMITED,06/09/2023, 157.63 ,LAR,25101500,Passenger motor vehicles
"Department for Levelling Up, Housing and Communities",Homes England,CAR LEASING - HIRE CHARGES,Corporate Allocations,ARNOLD CLARK FINANCE LIMITED,06/09/2023, 175.87 ,LAR,25101500,Passenger motor vehicles
"Department for Levelling Up, Housing and Communities",Homes England,CAR LEASING - HIRE CHARGES,Corporate Allocations,ARNOLD CLARK FINANCE LIMITED,06/09/2023, 117.74 ,LAR,25101500,Passenger motor vehicles
"Department for Levelling Up, Housing and Communities",Homes England,CAR LEASING - HIRE CHARGES,Corporate Allocations,ARNOLD CLARK FINANCE LIMITED,06/09/2023, 163.35 ,LAR,25101500,Passenger motor vehicles
"Department for Levelling Up, Housing and Communities",Homes England,CAR LEASING - HIRE CHARGES,Corporate Allocations,ARNOLD CLARK FINANCE LIMITED,06/09/2023, 162.29 ,LAR,25101500,Passenger motor vehicles
"Department for Levelling Up, Housing and Communities",Homes England,CAR LEASING - HIRE CHARGES,Corporate Allocations,ARNOLD CLARK FINANCE LIMITED,06/09/2023, 233.69 ,LAR,25101500,Passenger motor vehicles
"Department for Levelling Up, Housing and Communities",Homes England,CAR LEASING - HIRE CHARGES,Corporate Allocations,ARNOLD CLARK FINANCE LIMITED,06/09/2023, 155.41 ,LAR,25101500,Passenger motor vehicles
"Department for Levelling Up, Housing and Communities",Homes England,CAR LEASING - HIRE CHARGES,Corporate Allocations,ARNOLD CLARK FINANCE LIMITED,06/09/2023, 187.65 ,LAR,25101500,Passenger motor vehicles
"Department for Levelling Up, Housing and Communities",Homes England,CAR LEASING - HIRE CHARGES,Corporate Allocations,ARNOLD CLARK FINANCE LIMITED,07/09/2023, 230.89 ,LAR,25101500,Passenger motor vehicles
"Department for Levelling Up, Housing and Communities",Homes England,CAR LEASING - HIRE CHARGES,Corporate Allocations,ARNOLD CLARK FINANCE LIMITED,07/09/2023, 272.82 ,LAR,25101500,Passenger motor vehicles
"Department for Levelling Up, Housing and Communities",Homes England,CAR LEASING - HIRE CHARGES,Corporate Allocations,ARNOLD CLARK FINANCE LIMITED,08/09/2023, 191.17 ,LAR,25101500,Passenger motor vehicles
"Department for Levelling Up, Housing and Communities",Homes England,CAR LEASING - HIRE CHARGES,Corporate Allocations,ARNOLD CLARK FINANCE LIMITED,08/09/2023, 218.00 ,LAR,25101500,Passenger motor vehicles
"Department for Levelling Up, Housing and Communities",Homes England,CAR LEASING - HIRE CHARGES,Corporate Allocations,ARNOLD CLARK FINANCE LIMITED,08/09/2023, 189.65 ,LAR,25101500,Passenger motor vehicles
"Department for Levelling Up, Housing and Communities",Homes England,CAR LEASING - HIRE CHARGES,Corporate Allocations,ARNOLD CLARK FINANCE LIMITED,08/09/2023, 231.76 ,LAR,25101500,Passenger motor vehicles
"Department for Levelling Up, Housing and Communities",Homes England,CAR LEASING - HIRE CHARGES,Corporate Allocations,ARNOLD CLARK FINANCE LIMITED,08/09/2023, 164.14 ,LAR,25101500,Passenger motor vehicles
"Department for Levelling Up, Housing and Communities",Homes England,CAR LEASING - HIRE CHARGES,Corporate Allocations,ARNOLD CLARK FINANCE LIMITED,08/09/2023, 204.81 ,LAR,25101500,Passenger motor vehicles
"Department for Levelling Up, Housing and Communities",Homes England,CAR LEASING - HIRE CHARGES,Corporate Allocations,ARNOLD CLARK FINANCE LIMITED,11/09/2023, 222.12 ,LAR,25101500,Passenger motor vehicles
"Department for Levelling Up, Housing and Communities",Homes England,CAR LEASING - HIRE CHARGES,Corporate Allocations,ARNOLD CLARK FINANCE LIMITED,11/09/2023, 280.81 ,LAR,25101500,Passenger motor vehicles
"Department for Levelling Up, Housing and Communities",Homes England,CAR LEASING - HIRE CHARGES,Corporate Allocations,ARNOLD CLARK FINANCE LIMITED,11/09/2023, 229.18 ,LAR,25101500,Passenger motor vehicles
"Department for Levelling Up, Housing and Communities",Homes England,CAR LEASING - HIRE CHARGES,Corporate Allocations,ARNOLD CLARK FINANCE LIMITED,11/09/2023, 305.50 ,LAR,25101500,Passenger motor vehicles
"Department for Levelling Up, Housing and Communities",Homes England,CAR LEASING - HIRE CHARGES,Corporate Allocations,ARNOLD CLARK FINANCE LIMITED,20/09/2023,-298.40 ,LAR,25101500,Passenger motor vehicles
"Department for Levelling Up, Housing and Communities",Homes England,CAR LEASING - HIRE CHARGES,Corporate Allocations,ARNOLD CLARK FINANCE LIMITED,20/09/2023,-239.13 ,LAR,25101500,Passenger motor vehicles
"Department for Levelling Up, Housing and Communities",Homes England,CAR LEASING - HIRE CHARGES,Corporate Allocations,ARNOLD CLARK FINANCE LIMITED,20/09/2023, 137.38 ,LAR,25101500,Passenger motor vehicles
"Department for Levelling Up, Housing and Communities",Homes England,CAR LEASING - HIRE CHARGES,Corporate Allocations,ARNOLD CLARK FINANCE LIMITED,20/09/2023, 174.91 ,LAR,25101500,Passenger motor vehicles
"Department for Levelling Up, Housing and Communities",Homes England,CAR LEASING - HIRE CHARGES,Corporate Allocations,ARNOLD CLARK FINANCE LIMITED,20/09/2023," 5,163.55 ",LAR,25101500,Passenger motor vehicles
"Department for Levelling Up, Housing and Communities",Homes England,CAR LEASING - HIRE CHARGES,Corporate Allocations,ARNOLD CLARK FINANCE LIMITED,21/09/2023, 182.59 ,LAR,25101500,Passenger motor vehicles
"Department for Levelling Up, Housing and Communities",Homes England,CAR LEASING - HIRE CHARGES,Corporate Allocations,ARNOLD CLARK FINANCE LIMITED,21/09/2023, 203.55 ,LAR,25101500,Passenger motor vehicles
"Department for Levelling Up, Housing and Communities",Homes England,LEGAL FEES (PROGRAMME - CDEL),"Markets, Partners & Places",BERWIN LEIGHTON PAISNER,04/09/2023," 4,468.20 ",LAR,80121600,Business law services
"Department for Levelling Up, Housing and Communities",Homes England,LEGAL FEES (PROGRAMME - RDEL),Investment,BERWIN LEIGHTON PAISNER,04/09/2023," 5,400.00 ",LAR,80121600,Business law services
"Department for Levelling Up, Housing and Communities",Homes England,LEGAL FEES (PROGRAMME - CDEL),Development,BERWIN LEIGHTON PAISNER,25/09/2023," 8,494.56 ",LAR,80121600,Business law services
"Department for Levelling Up, Housing and Communities",Homes England,LEGAL FEES (PROGRAMME - RDEL),Development,BERWIN LEIGHTON PAISNER,25/09/2023," 6,798.60 ",LAR,80121600,Business law services
"Department for Levelling Up, Housing and Communities",Homes England,LEGAL FEES (PROGRAMME - RDEL),Investment,BERWIN LEIGHTON PAISNER,25/09/2023," 1,800.00 ",LAR,80121600,Business law services
"Department for Levelling Up, Housing and Communities",Homes England,DISPOSAL FEES - LEGAL,"Markets, Partners & Places",BERWIN LEIGHTON PAISNER,28/09/2023," 1,915.20 ",LAR,80121600,Business law services
"Department for Levelling Up, Housing and Communities",Homes England,PROF FEES LOANS CAPITALISED,Investment,BROWNE JACOBSON LLP,04/09/2023," 21,480.00 ",LAR,80121600,Business law services
"Department for Levelling Up, Housing and Communities",Homes England,DISPOSAL FEES - LEGAL,"Markets, Partners & Places",BROWNE JACOBSON LLP,04/09/2023," 2,520.00 ",LAR,80121600,Business law services
"Department for Levelling Up, Housing and Communities",Homes England,LEGAL FEES (PROGRAMME - RDEL),"Markets, Partners & Places",BROWNE JACOBSON LLP,07/09/2023," 2,400.00 ",LAR,80121600,Business law services
"Department for Levelling Up, Housing and Communities",Homes England,LEGAL FEES (PROGRAMME - RDEL),Development,BROWNE JACOBSON LLP,07/09/2023, 720.00 ,LAR,80121600,Business law services
"Department for Levelling Up, Housing and Communities",Homes England,LEGAL FEES (PROGRAMME - RDEL),Development,BROWNE JACOBSON LLP,08/09/2023," 3,000.00 ",LAR,80121600,Business law services
"Department for Levelling Up, Housing and Communities",Homes England,LEGAL FEES (PROGRAMME - CDEL),Development,BROWNE JACOBSON LLP,11/09/2023," 3,183.05 ",LAR,80121600,Business law services
"Department for Levelling Up, Housing and Communities",Homes England,DISPOSAL FEES - LEGAL,"Markets, Partners & Places",BROWNE JACOBSON LLP,11/09/2023," 1,536.00 ",LAR,80121600,Business law services
"Department for Levelling Up, Housing and Communities",Homes England,DISPOSAL FEES - LEGAL,Development,BROWNE JACOBSON LLP,12/09/2023," 8,700.00 ",LAR,80121600,Business law services
"Department for Levelling Up, Housing and Communities",Homes England,LEGAL FEES (PROGRAMME - CDEL),Development,BROWNE JACOBSON LLP,12/09/2023," 1,200.00 ",LAR,80121600,Business law services
"Department for Levelling Up, Housing and Communities",Homes England,LEGAL FEES (PROGRAMME - CDEL),Development,BROWNE JACOBSON LLP,13/09/2023," 20,000.00 ",LAR,80121600,Business law services
"Department for Levelling Up, Housing and Communities",Homes England,DISPOSAL FEES - LEGAL,Development,BROWNE JACOBSON LLP,20/09/2023," 8,400.00 ",LAR,80121600,Business law services
"Department for Levelling Up, Housing and Communities",Homes England,LEGAL FEES (PROGRAMME - RDEL),Development,BROWNE JACOBSON LLP,22/09/2023, 4.00 ,LAR,80121600,Business law services
"Department for Levelling Up, Housing and Communities",Homes England,LEGAL FEES (PROGRAMME - RDEL),Development,BROWNE JACOBSON LLP,22/09/2023," 17,392.01 ",LAR,80121600,Business law services
"Department for Levelling Up, Housing and Communities",Homes England,MISC PROFESSIONAL FEES,Development,BROWNE JACOBSON LLP,26/09/2023," 2,640.00 ",LAR,80121600,Business law services
"Department for Levelling Up, Housing and Communities",Homes England,MISC PROFESSIONAL FEES,Development,BROWNE JACOBSON LLP,26/09/2023," 10,200.00 ",LAR,80121600,Business law services
"Department for Levelling Up, Housing and Communities",Homes England,LEGAL FEES (PROGRAMME - RDEL),Development,BROWNE JACOBSON LLP,29/09/2023, 552.00 ,LAR,80121600,Business law services
"Department for Levelling Up, Housing and Communities",Homes England,LEGAL FEES (PROGRAMME - RDEL),"Markets, Partners & Places",BROWNE JACOBSON LLP,29/09/2023," 1,380.00 ",LAR,80121600,Business law services
"Department for Levelling Up, Housing and Communities",Homes England,LEGAL FEES (PROGRAMME - CDEL),Development,BROWNE JACOBSON LLP,29/09/2023," 2,392.75 ",LAR,80121600,Business law services
"Department for Levelling Up, Housing and Communities",Homes England,MASTERPLANNING FEES,"Markets, Partners & Places",BUILDING DESIGN PARTNERSHIP,04/09/2023," 1,188.00 ",LAR,81101500,Civil Engineering
"Department for Levelling Up, Housing and Communities",Homes England,RI - MONIITORING SURVEYOR FEES,Investment,BUILDING DESIGN PARTNERSHIP,12/09/2023," 2,310.00 ",LAR,81101500,Civil Engineering
"Department for Levelling Up, Housing and Communities",Homes England,RI - MONIITORING SURVEYOR FEES,Investment,BUILDING DESIGN PARTNERSHIP,12/09/2023," 2,310.00 ",LAR,81101500,Civil Engineering
"Department for Levelling Up, Housing and Communities",Homes England,PROF FEES LOANS CAPITALISED,Investment,BUILDING DESIGN PARTNERSHIP,12/09/2023," 2,760.00 ",LAR,81101500,Civil Engineering
"Department for Levelling Up, Housing and Communities",Homes England,RI - MONIITORING SURVEYOR FEES,Investment,BUILDING DESIGN PARTNERSHIP,13/09/2023," 2,112.00 ",LAR,81101500,Civil Engineering
"Department for Levelling Up, Housing and Communities",Homes England,OTHER PROFESSIONAL FEES,Development,BUILDING DESIGN PARTNERSHIP,25/09/2023," 8,628.78 ",LAR,81101500,Civil Engineering
"Department for Levelling Up, Housing and Communities",Homes England,LUHBF Loans Additions,Investment,BLUEOAK ESTATES (CHESHIRE) LIMITED,05/09/2023," 2,176.68 ",MIC,None,Loans
"Department for Levelling Up, Housing and Communities",Homes England,PROJECT MANAGEMENT,Development,STANTEC UK LIMITED,05/09/2023," 34,668.00 ",LAR,80101600,Project management
"Department for Levelling Up, Housing and Communities",Homes England,PLANNING APPLICATIONS,"Markets, Partners & Places",STANTEC UK LIMITED,14/09/2023," 28,920.00 ",LAR,80131800,Real estate management services
"Department for Levelling Up, Housing and Communities",Homes England,OTHER PROFESSIONAL FEES,Development,STANTEC UK LIMITED,19/09/2023," 2,040.00 ",LAR,81101500,Civil Engineering
"Department for Levelling Up, Housing and Communities",Homes England,OTHER PROFESSIONAL FEES,"Markets, Partners & Places",STANTEC UK LIMITED,21/09/2023," 1,800.00 ",LAR,80101600,Project management
"Department for Levelling Up, Housing and Communities",Homes England,OTHER PROFESSIONAL FEES,Development,STANTEC UK LIMITED,29/09/2023," 91,900.80 ",LAR,80131800,Real estate management services
"Department for Levelling Up, Housing and Communities",Homes England,AGENCY STAFF,Cido,BADENOCH & CLARK,04/09/2023," 4,114.26 ",LAR,80111600,Temporary personnel services
"Department for Levelling Up, Housing and Communities",Homes England,AGENCY STAFF,Cido,BADENOCH & CLARK,07/09/2023," 3,291.41 ",LAR,80111600,Temporary personnel services
"Department for Levelling Up, Housing and Communities",Homes England,AGENCY STAFF,Cido,BADENOCH & CLARK,20/09/2023," 4,114.26 ",LAR,80111600,Temporary personnel services
"Department for Levelling Up, Housing and Communities",Homes England,AGENCY STAFF,Cido,BADENOCH & CLARK,28/09/2023," 4,114.26 ",LAR,80111600,Temporary personnel services
"Department for Levelling Up, Housing and Communities",Homes England,AGENCY STAFF,Cido,BADENOCH & CLARK,28/09/2023," 4,114.26 ",LAR,80111600,Temporary personnel services
"Department for Levelling Up, Housing and Communities",Homes England,RI - MONIITORING SURVEYOR FEES,Investment,RIDER LEVETT BUCKNALL UK LTD,01/09/2023," 1,170.00 ",LAR,81101500,Civil Engineering
"Department for Levelling Up, Housing and Communities",Homes England,RI - MONIITORING SURVEYOR FEES,Investment,RIDER LEVETT BUCKNALL UK LTD,01/09/2023," 1,569.60 ",LAR,81101500,Civil Engineering
"Department for Levelling Up, Housing and Communities",Homes England,DISPOSAL FEES - PROPERTY AGENT,"Markets, Partners & Places",RIDER LEVETT BUCKNALL UK LTD,04/09/2023," 1,440.00 ",LAR,80131600,Sale of property and building
"Department for Levelling Up, Housing and Communities",Homes England,RI - MONIITORING SURVEYOR FEES,Investment,RIDER LEVETT BUCKNALL UK LTD,04/09/2023," 1,260.00 ",LAR,81101500,Civil Engineering
"Department for Levelling Up, Housing and Communities",Homes England,RI - MONIITORING SURVEYOR FEES,Investment,RIDER LEVETT BUCKNALL UK LTD,05/09/2023," 1,260.00 ",LAR,81101500,Civil Engineering
"Department for Levelling Up, Housing and Communities",Homes England,RI - MONIITORING SURVEYOR FEES,Investment,RIDER LEVETT BUCKNALL UK LTD,13/09/2023," 1,680.00 ",LAR,81101500,Civil Engineering
"Department for Levelling Up, Housing and Communities",Homes England,PROF FEES LOANS CAPITALISED,Investment,RIDER LEVETT BUCKNALL UK LTD,18/09/2023," 1,500.00 ",LAR,81101500,Civil Engineering
"Department for Levelling Up, Housing and Communities",Homes England,RI - MONIITORING SURVEYOR FEES,Investment,RIDER LEVETT BUCKNALL UK LTD,19/09/2023," 2,880.00 ",LAR,81101500,Civil Engineering
"Department for Levelling Up, Housing and Communities",Homes England,PROF FEES LOANS CAPITALISED,Investment,RIDER LEVETT BUCKNALL UK LTD,25/09/2023," 1,380.00 ",LAR,81101500,Civil Engineering
"Department for Levelling Up, Housing and Communities",Homes England,RI - MONIITORING SURVEYOR FEES,Investment,RIDER LEVETT BUCKNALL UK LTD,25/09/2023," 1,500.00 ",LAR,81101500,Civil Engineering
"Department for Levelling Up, Housing and Communities",Homes England,DISPOSAL FEES - PROPERTY AGENT,"Markets, Partners & Places",RIDER LEVETT BUCKNALL UK LTD,25/09/2023," 1,440.00 ",LAR,80131600,Sale of property and building
"Department for Levelling Up, Housing and Communities",Homes England,RI - MONIITORING SURVEYOR FEES,Investment,RIDER LEVETT BUCKNALL UK LTD,29/09/2023," 1,170.00 ",LAR,81101500,Civil Engineering
"Department for Levelling Up, Housing and Communities",Homes England,HOME WORKERS,Cido,BRITISH TELECOMMUNICATIONS PLC,29/09/2023," 1,028.13 ",LAR,83111500,Local and long distance telephone communications
"Department for Levelling Up, Housing and Communities",Homes England,PRINTING & STATIONERY,Chief Operating Officer,BANNER,18/09/2023, 926.16 ,LAR,44121600,Desk supplies
"Department for Levelling Up, Housing and Communities",Homes England,PRINTING & STATIONERY,Chief Operating Officer,BANNER,18/09/2023," 1,881.12 ",LAR,44121600,Desk supplies
"Department for Levelling Up, Housing and Communities",Homes England,PRINTING & STATIONERY,Chief Operating Officer,BANNER,26/09/2023, 144.66 ,LAR,44121600,Desk supplies
"Department for Levelling Up, Housing and Communities",Homes England,PRINTING & STATIONERY,Chief Operating Officer,BANNER,26/09/2023, 128.77 ,LAR,44121600,Desk supplies
"Department for Levelling Up, Housing and Communities",Homes England,ST FUND LOANS ADDITIONS,Investment,BALLYMORE DEANSTON LIMITED,01/09/2023," 1,703,977.90 ",SMA,None,Loans
"Department for Levelling Up, Housing and Communities",Homes England,MISC PROFESSIONAL FEES,Development,BIG OLD HOUSE,07/09/2023," 6,483.18 ",MIC,80131800,Real estate management services
"Department for Levelling Up, Housing and Communities",Homes England,ESTATE GENERAL MAINTENANCE,Development,BRYAN LECOCHE LTD,07/09/2023, 875.40 ,SMA,72101500,Building maintenance and repair services
"Department for Levelling Up, Housing and Communities",Homes England,MISC PROFESSIONAL FEES,Development,BIDWELLS,22/09/2023," 4,258.20 ",LAR,80121600,Business law services
"Department for Levelling Up, Housing and Communities",Homes England,CAP GRNTS TO LOCAL AUTHORITIES,Investment,BRISTOL CITY COUNCIL,27/09/2023," 405,360.97 ",PUB,None,Grants
"Department for Levelling Up, Housing and Communities",Homes England,ENGINEERING FEES,Development,BALFOUR BEATTY,26/09/2023, 849.83 ,LAR,81101500,Civil Engineering
"Department for Levelling Up, Housing and Communities",Homes England,OTHER LTF LOAN ADDITIONS,Investment,BRITISH LAND,27/09/2023," 1,288,651.53 ",SMA,None,Loans
"Department for Levelling Up, Housing and Communities",Homes England,LUHBF Loans Additions,Investment,BUNNYHOMES EAST ROAD KILKHAMPTON LTD,27/09/2023," 162,482.00 ",MIC,None,Loans
"Department for Levelling Up, Housing and Communities",Homes England,1ST PT COST/FEE INC UNINS LOSS,Development,BC LEGAL (OFFICE ACCOUNT),04/09/2023," 1,411.20 ",SMA,80121600,Business law services
"Department for Levelling Up, Housing and Communities",Homes England,1ST PT COST/FEE INC UNINS LOSS,Development,BC LEGAL (OFFICE ACCOUNT),04/09/2023, 691.20 ,SMA,80121600,Business law services
"Department for Levelling Up, Housing and Communities",Homes England,PACKAGE MAINTENANCE & SUBSCRIP,Corporate Resources,BYTES SOFTWARE SERVICES LTD,28/09/2023," 1,748.74 ",LAR,43231500,Business function specific software
"Department for Levelling Up, Housing and Communities",Homes England,LUHBF Loans Additions,Investment,BROADFIELD ROCHESTER DEVELOPMENT LIMITED,07/09/2023," 173,252.39 ",LAR,None,Loans
"Department for Levelling Up, Housing and Communities",Homes England,RI - MONIITORING SURVEYOR FEES,Investment,BNP PARIBAS REAL ESTATE,01/09/2023," 1,080.00 ",LAR,81101500,Civil Engineering
"Department for Levelling Up, Housing and Communities",Homes England,RI - MONIITORING SURVEYOR FEES,Investment,BNP PARIBAS REAL ESTATE,04/09/2023," 1,020.00 ",LAR,81101500,Civil Engineering
"Department for Levelling Up, Housing and Communities",Homes England,VALUATION FEES,Development,BNP PARIBAS REAL ESTATE,12/09/2023," 4,800.00 ",LAR,80131800,Real estate management services
"Department for Levelling Up, Housing and Communities",Homes England,CONTRACT WORKS,Development,BNP PARIBAS REAL ESTATE,13/09/2023," 11,994.00 ",LAR,81121500,Economic analysis
"Department for Levelling Up, Housing and Communities",Homes England,RI - MONIITORING SURVEYOR FEES,Investment,BNP PARIBAS REAL ESTATE,25/09/2023, 840.00 ,LAR,81101500,Civil Engineering
"Department for Levelling Up, Housing and Communities",Homes England,PROF FEES LOANS CAPITALISED,Investment,BNP PARIBAS REAL ESTATE,25/09/2023, 840.00 ,LAR,81101500,Civil Engineering
"Department for Levelling Up, Housing and Communities",Homes England,RI - MONIITORING SURVEYOR FEES,Investment,BNP PARIBAS REAL ESTATE,25/09/2023, 840.00 ,LAR,81101500,Civil Engineering
"Department for Levelling Up, Housing and Communities",Homes England,RI - MONIITORING SURVEYOR FEES,Investment,BNP PARIBAS REAL ESTATE,25/09/2023, 840.00 ,LAR,81101500,Civil Engineering
"Department for Levelling Up, Housing and Communities",Homes England,RI - MONIITORING SURVEYOR FEES,Investment,BNP PARIBAS REAL ESTATE,25/09/2023, 840.00 ,LAR,81101500,Civil Engineering
"Department for Levelling Up, Housing and Communities",Homes England,VALUATION FEES,"Markets, Partners & Places",BNP PARIBAS REAL ESTATE,29/09/2023," 3,000.00 ",LAR,80131800,Real estate management services
"Department for Levelling Up, Housing and Communities",Homes England,ESTATE GENERAL MAINTENANCE,"Markets, Partners & Places",BROOKFIELD CONTRACTING & FARMING LTD,07/09/2023," 2,142.50 ",SMA,72101500,Building maintenance and repair services
"Department for Levelling Up, Housing and Communities",Homes England,ESTATE GENERAL MAINTENANCE,"Markets, Partners & Places",BROOKFIELD CONTRACTING & FARMING LTD,07/09/2023," 1,728.00 ",SMA,72101500,Building maintenance and repair services
"Department for Levelling Up, Housing and Communities",Homes England,ESTATE GENERAL MAINTENANCE,Development,BROOKFIELD CONTRACTING & FARMING LTD,15/09/2023," 2,088.00 ",SMA,72101500,Building maintenance and repair services
"Department for Levelling Up, Housing and Communities",Homes England,ESTATE GENERAL MAINTENANCE,Development,BROOKFIELD CONTRACTING & FARMING LTD,15/09/2023," 2,112.00 ",SMA,72101500,Building maintenance and repair services
"Department for Levelling Up, Housing and Communities",Homes England,ESTATE GENERAL MAINTENANCE,"Markets, Partners & Places",BROOKFIELD CONTRACTING & FARMING LTD,25/09/2023, 888.00 ,SMA,72101500,Building maintenance and repair services
"Department for Levelling Up, Housing and Communities",Homes England,LANDSCAPE MAINT-BUILT ESTATE,"Markets, Partners & Places",BROOKFIELD CONTRACTING & FARMING LTD,25/09/2023, 520.39 ,SMA,72102900,Facility maintenance and repair services
"Department for Levelling Up, Housing and Communities",Homes England,ESTATE GENERAL MAINTENANCE,Development,BROOKFIELD CONTRACTING & FARMING LTD,25/09/2023," 1,392.00 ",SMA,72101500,Building maintenance and repair services
"Department for Levelling Up, Housing and Communities",Homes England,ESTATE GENERAL MAINTENANCE,Development,BROOKFIELD CONTRACTING & FARMING LTD,29/09/2023," 7,718.40 ",SMA,72101500,Building maintenance and repair services
"Department for Levelling Up, Housing and Communities",Homes England,LEGAL FEES (PROGRAMME - CDEL),"Markets, Partners & Places",BOND DICKINSON LLP,01/09/2023," 4,093.20 ",LAR,80121600,Business law services
"Department for Levelling Up, Housing and Communities",Homes England,LEGAL FEES (PROGRAMME - RDEL),Investment,BOND DICKINSON LLP,04/09/2023, 930.96 ,LAR,80121600,Business law services
"Department for Levelling Up, Housing and Communities",Homes England,LEGAL FEES (PROGRAMME - RDEL),Investment,BOND DICKINSON LLP,11/09/2023," 1,796.40 ",LAR,80121600,Business law services
"Department for Levelling Up, Housing and Communities",Homes England,LEGAL FEES (PROGRAMME - RDEL),Investment,BOND DICKINSON LLP,11/09/2023," 6,042.00 ",LAR,80121600,Business law services
"Department for Levelling Up, Housing and Communities",Homes England,LEGAL FEES (PROGRAMME - RDEL),"Markets, Partners & Places",BOND DICKINSON LLP,12/09/2023," 1,380.00 ",LAR,80121600,Business law services
"Department for Levelling Up, Housing and Communities",Homes England,LEGAL FEES (PROGRAMME - RDEL),Investment,BOND DICKINSON LLP,14/09/2023," 6,044.40 ",LAR,80121600,Business law services
"Department for Levelling Up, Housing and Communities",Homes England,DISPOSAL FEES - LEGAL,Development,BOND DICKINSON LLP,15/09/2023," 4,237.20 ",LAR,80121600,Business law services
"Department for Levelling Up, Housing and Communities",Homes England,LEGAL FEES (PROGRAMME - RDEL),Investment,BOND DICKINSON LLP,21/09/2023," 2,937.60 ",LAR,80121600,Business law services
"Department for Levelling Up, Housing and Communities",Homes England,AHP HOMEBUY AGENTS FEES,Investment,BOND DICKINSON LLP,27/09/2023," 4,800.00 ",LAR,80121600,Business law services
"Department for Levelling Up, Housing and Communities",Homes England,LEGAL FEES (PROGRAMME - RDEL),Development,BOND DICKINSON LLP,29/09/2023," 5,018.52 ",LAR,80121600,Business law services
"Department for Levelling Up, Housing and Communities",Homes England,ESTATE GENERAL MAINTENANCE,Development,G BURLEY & SONS LTD,29/09/2023, 587.33 ,LAR,72101500,Building maintenance and repair services
"Department for Levelling Up, Housing and Communities",Homes England,CAP GRNTS PUB SECTOR EXCL L A,Investment,RESIDENTIAL MANAGEMENT GROUP LTD,21/09/2023," 997,713.61 ",LAR,None,Grants
"Department for Levelling Up, Housing and Communities",Homes England,CAP GRNTS TO PRIVATE SECTOR,Investment,ISLINGTON GATES MANAGEMENT COMPANY LIMITED,28/09/2023," 497,034.35 ",MIC,None,Grants
"Department for Levelling Up, Housing and Communities",Homes England,CAP GRNTS TO PRIVATE SECTOR,Investment,LIGHTHOUSE (MANCHESTER) MANAGEMENT LTD,01/09/2023," 75,586.95 ",SMA,None,Grants
"Department for Levelling Up, Housing and Communities",Homes England,CAP GRNTS TO PRIVATE SECTOR,Investment,TRINITY ONE (LEEDS) MANAGEMENT COMPANY LTD,21/09/2023," 572,986.56 ",MIC,None,Grants
"Department for Levelling Up, Housing and Communities",Homes England,CAP GRNTS TO PRIVATE SECTOR,Investment,INSPIRED PROPERTY MANAGEMENT,01/09/2023," 1,280,761.09 ",MED,None,Grants
"Department for Levelling Up, Housing and Communities",Homes England,CAP GRNTS TO PRIVATE SECTOR,Investment,PARK LANE PLAZA (LIVERPOOL) MANAGEMENT CO LTD,12/09/2023," 1,751,411.74 ",MIC,None,Grants
"Department for Levelling Up, Housing and Communities",Homes England,CAP GRNTS TO PRIVATE SECTOR,Investment,BURTON PLACE (MANCHESTER) MANAGEMENT LTD,18/09/2023," 520,425.24 ",MIC,None,Grants
"Department for Levelling Up, Housing and Communities",Homes England,CAP GRNTS TO PRIVATE SECTOR,Investment,URBAN EVOLUTION PROPERTY MANAGEMENT LTD,13/09/2023," 906,914.00 ",MED,None,Grants
"Department for Levelling Up, Housing and Communities",Homes England,CAP GRNTS TO PRIVATE SECTOR,Investment,ANDREWS & LETTINGS MANAGEMENT,19/09/2023," 863,923.47 ",MED,None,Grants
"Department for Levelling Up, Housing and Communities",Homes England,CAP GRNTS TO PRIVATE SECTOR,Investment,SCANLANS PROPERTY MANAGEMENT LLP,18/09/2023," 100,528.06 ",SMA,None,Grants
"Department for Levelling Up, Housing and Communities",Homes England,CAP GRNTS TO PRIVATE SECTOR,Investment,CITY POINT 2 MANAGEMENT COMPANY LTD,06/09/2023," 5,829,139.93 ",SMA,None,Grants
"Department for Levelling Up, Housing and Communities",Homes England,CAP GRNTS TO PRIVATE SECTOR,Investment,METROPM,08/09/2023," 246,319.78 ",SMA,None,Grants
"Department for Levelling Up, Housing and Communities",Homes England,CAP GRNTS TO PRIVATE SECTOR,Investment,ADVENT 1 MANAGEMENT COMPANY LIMITED,13/09/2023," 2,379,188.55 ",SMA,None,Grants
"Department for Levelling Up, Housing and Communities",Homes England,CAP GRNTS PUB SECTOR EXCL L A,Investment,BOURNEMOUTH CHRISTCHURCH AND POOLE COUNCIL,01/09/2023," 603,102.56 ",PUB,None,Grants
"Department for Levelling Up, Housing and Communities",Homes England,CAP GRNTS TO PRIVATE SECTOR,Investment,LANDSWOOD DE COY,05/09/2023," 24,060.13 ",MIC,None,Grants
"Department for Levelling Up, Housing and Communities",Homes England,CAP GRNTS TO PRIVATE SECTOR,Investment,RENDALL AND RITTNER LIMITED,18/09/2023," 832,957.65 ",LAR,None,Grants
"Department for Levelling Up, Housing and Communities",Homes England,CAP GRNTS TO PRIVATE SECTOR,Investment,THE HABITAT MANAGEMENT RTM LTD,01/09/2023," 78,591.36 ",MIC,None,Grants
"Department for Levelling Up, Housing and Communities",Homes England,CAP GRNTS TO PRIVATE SECTOR,Investment,ALEXANDER MAY PROPERTY LIMITED,20/09/2023," 597,225.60 ",SMA,None,Grants
"Department for Levelling Up, Housing and Communities",Homes England,CAP GRNTS TO PRIVATE SECTOR,Investment,WHITHAM WHARF MANAGEMENT COMPANY LIMITED,05/09/2023," 518,463.73 ",MIC,None,Grants
"Department for Levelling Up, Housing and Communities",Homes England,CAP GRNTS TO PRIVATE SECTOR,Investment,Centrick Limited,28/09/2023," 359,215.08 ",SMA,None,Grants
"Department for Levelling Up, Housing and Communities",Homes England,CAP GRNTS TO PRIVATE SECTOR,Investment,ASPECT 3 APARTMENTS LIMITED,27/09/2023," 1,184,818.00 ",SMA,None,Grants
"Department for Levelling Up, Housing and Communities",Homes England,CAP GRNTS TO PRIVATE SECTOR,Investment,LIV Group Limited,07/09/2023," 171,137.28 ",MED,None,Grants
"Department for Levelling Up, Housing and Communities",Homes England,CAP GRNTS TO PRIVATE SECTOR,Investment,Trinity Estates (The Chimes),27/09/2023," 156,885.00 ",LAR,None,Grants
"Department for Levelling Up, Housing and Communities",Homes England,CAP GRNTS TO PRIVATE SECTOR,Investment,NORFOLK HOUSE PHASE 1 LIVERPOOL RTM COMPANY L,01/09/2023," 448,500.00 ",MIC,None,Grants
"Department for Levelling Up, Housing and Communities",Homes England,CAP GRNTS TO PRIVATE SECTOR,Investment,NORFOLK HOUSE PHASE 2 RTM COMPANY LIMITED,01/09/2023," 462,300.00 ",MIC,None,Grants
"Department for Levelling Up, Housing and Communities",Homes England,CAP GRNTS TO PRIVATE SECTOR,Investment,WARWICKGATE FREEHOLD COMPANY LTD,15/09/2023," 367,324.80 ",MIC,None,Grants
"Department for Levelling Up, Housing and Communities",Homes England,ENGINEERING FEES,Development,CAMPBELL REITH,04/09/2023," 1,440.00 ",MED,81101500,Civil Engineering
"Department for Levelling Up, Housing and Communities",Homes England,OTHER PROFESSIONAL FEES,Development,CAMPBELL REITH,05/09/2023," 2,551.20 ",MED,77101500,Environmental auditing
"Department for Levelling Up, Housing and Communities",Homes England,RI - MONIITORING SURVEYOR FEES,Investment,CAMPBELL REITH,05/09/2023," 1,740.00 ",MED,81101500,Civil Engineering
"Department for Levelling Up, Housing and Communities",Homes England,RI - MONIITORING SURVEYOR FEES,Investment,CAMPBELL REITH,08/09/2023," 1,320.00 ",MED,81101500,Civil Engineering
"Department for Levelling Up, Housing and Communities",Homes England,OTHER PROFESSIONAL FEES,Development,CAMPBELL REITH,12/09/2023, 477.11 ,MED,77101500,Environmental auditing
"Department for Levelling Up, Housing and Communities",Homes England,VALUATION FEES,"Markets, Partners & Places",CAMPBELL REITH,12/09/2023," 10,828.80 ",MED,80131800,Real estate management services
"Department for Levelling Up, Housing and Communities",Homes England,ENGINEERING CONSULTANTS,Development,CAMPBELL REITH,13/09/2023," 7,800.00 ",MED,81101500,Civil Engineering
"Department for Levelling Up, Housing and Communities",Homes England,MASTERPLANNING FEES,"Markets, Partners & Places",CAMPBELL REITH,14/09/2023, 615.31 ,MED,81101500,Civil Engineering
"Department for Levelling Up, Housing and Communities",Homes England,ENGINEERING FEES,Development,CAMPBELL REITH,15/09/2023," 1,200.00 ",MED,81101500,Civil Engineering
"Department for Levelling Up, Housing and Communities",Homes England,MASTERPLANNING FEES,Development,CAMPBELL REITH,19/09/2023," 69,175.76 ",MED,81101500,Civil Engineering
"Department for Levelling Up, Housing and Communities",Homes England,OTHER PROFESSIONAL FEES,"Markets, Partners & Places",CAMPBELL REITH,19/09/2023," 5,341.78 ",MED,81101500,Civil Engineering
"Department for Levelling Up, Housing and Communities",Homes England,OTHER PROFESSIONAL FEES,"Markets, Partners & Places",CAMPBELL REITH,19/09/2023," 5,465.53 ",MED,81101500,Civil Engineering
"Department for Levelling Up, Housing and Communities",Homes England,ENGINEERING FEES,Development,CAMPBELL REITH,26/09/2023," 5,400.00 ",MED,81101500,Civil Engineering
"Department for Levelling Up, Housing and Communities",Homes England,MISC PROFESSIONAL FEES,"Markets, Partners & Places",CAMPBELL REITH,26/09/2023," 1,260.00 ",MED,77101500,Environmental auditing
"Department for Levelling Up, Housing and Communities",Homes England,MISC PROFESSIONAL FEES,"Markets, Partners & Places",CAMPBELL REITH,26/09/2023," 1,500.00 ",MED,77101500,Environmental auditing
"Department for Levelling Up, Housing and Communities",Homes England,OTHER PROFESSIONAL FEES,"Markets, Partners & Places",CAMPBELL REITH,28/09/2023," 3,446.58 ",MED,80131800,Real estate management services
"Department for Levelling Up, Housing and Communities",Homes England,PLANNING APPLICATIONS,Development,CAMPBELL REITH,28/09/2023," 64,372.92 ",MED,80131800,Real estate management services
"Department for Levelling Up, Housing and Communities",Homes England,VALUATION FEES,Development,CARTER JONAS,01/09/2023," 9,000.00 ",LAR,80131800,Real estate management services
"Department for Levelling Up, Housing and Communities",Homes England,PROPERTY SERVICES,Development,CARTER JONAS,01/09/2023," 3,600.00 ",LAR,80131800,Real estate management services
"Department for Levelling Up, Housing and Communities",Homes England,MARKET RESEARCH FEES,"Markets, Partners & Places",CARTER JONAS,01/09/2023," 4,200.00 ",LAR,80141500,Market research
"Department for Levelling Up, Housing and Communities",Homes England,VALUATION FEES,Development,CARTER JONAS,04/09/2023," 3,540.00 ",LAR,80131800,Real estate management services
"Department for Levelling Up, Housing and Communities",Homes England,MISC PROFESSIONAL FEES,Development,CARTER JONAS,06/09/2023," 11,512.80 ",LAR,77101500,Environmental auditing
"Department for Levelling Up, Housing and Communities",Homes England,VALUATION FEES,Development,CARTER JONAS,07/09/2023," 1,104.00 ",LAR,80131800,Real estate management services
"Department for Levelling Up, Housing and Communities",Homes England,PROPERTY SERVICES,Development,CARTER JONAS,07/09/2023," 2,057.16 ",LAR,80131800,Real estate management services
"Department for Levelling Up, Housing and Communities",Homes England,MISC PROFESSIONAL FEES,Development,CARTER JONAS,12/09/2023," 2,060.82 ",LAR,80131800,Real estate management services
"Department for Levelling Up, Housing and Communities",Homes England,MISC PROFESSIONAL FEES,Cido,CARTER JONAS,19/09/2023," 4,326.00 ",LAR,80131800,Real estate management services
"Department for Levelling Up, Housing and Communities",Homes England,MISC PROFESSIONAL FEES,Cido,CARTER JONAS,19/09/2023," 14,580.00 ",LAR,80131800,Real estate management services
"Department for Levelling Up, Housing and Communities",Homes England,VALUATION FEES,Development,CARTER JONAS,25/09/2023, 576.00 ,LAR,80131800,Real estate management services
"Department for Levelling Up, Housing and Communities",Homes England,VALUATION FEES,Development,CARTER JONAS,27/09/2023, 960.00 ,LAR,80131800,Real estate management services
"Department for Levelling Up, Housing and Communities",Homes England,EXTERNAL BUILDING MAINTENANCE,"Markets, Partners & Places",CONCEPT DOMESTIC FLOORS LTD,07/09/2023," 1,830.00 ",SMA,72101500,Building maintenance and repair services
"Department for Levelling Up, Housing and Communities",Homes England,DATA CENTRE,Cido,CROWN HOSTING DATA CENTRES LIMITED,11/09/2023," 3,725.75 ",SMA,81112000,Data Services
"Department for Levelling Up, Housing and Communities",Homes England,L&OD STRATEGIC - HR USE ONLY,Chief Operating Officer,CATH BROWN CONSULTANCY,14/09/2023," 1,200.00 ",SMA,86101800,In service training and manpower development
"Department for Levelling Up, Housing and Communities",Homes England,ESTATE GENERAL MAINTENANCE,Development,CHAFFIN WORKS,14/09/2023, 768.00 ,MED,72101500,Building maintenance and repair services
"Department for Levelling Up, Housing and Communities",Homes England,ESTATE GENERAL MAINTENANCE,Development,CHAFFIN WORKS,15/09/2023, 436.80 ,MED,72101500,Building maintenance and repair services
"Department for Levelling Up, Housing and Communities",Homes England,DRAINS & SEWERS,Development,CLEANSING SERVICES GROUP LTD,04/09/2023, 474.00 ,LAR,72101500,Building maintenance and repair services
"Department for Levelling Up, Housing and Communities",Homes England,CAP GRNTS TO LOCAL AUTHORITIES,Investment,CUMBERLAND COUNCIL,29/09/2023," 3,566,217.06 ",PUB,None,Grants
"Department for Levelling Up, Housing and Communities",Homes England,PROPERTY SERVICES,Development,COLLIERS INTERNATIONAL PROPERTY CONSULTANTS,05/09/2023," 3,000.00 ",LAR,80131800,Real estate management services
"Department for Levelling Up, Housing and Communities",Homes England,PACKAGE MAINTENANCE & SUBSCRIP,Cido,CORESTREAM,19/09/2023," 28,800.00 ",SMA,43231500,Business function specific software
"Department for Levelling Up, Housing and Communities",Homes England,CONTRACT WORKS,"Markets, Partners & Places",COGNITION LAND & WATER,08/09/2023," 306,509.28 ",SMA,72141500,Land preparation services
"Department for Levelling Up, Housing and Communities",Homes England,CONTRACT WORKS,"Markets, Partners & Places",COGNITION LAND & WATER,11/09/2023," 372,016.68 ",SMA,72141500,Land preparation services
"Department for Levelling Up, Housing and Communities",Homes England,LEGAL FEES (PROGRAMME - RDEL),Investment,CLARKE WILLMOTT LLP,11/09/2023, 733.20 ,LAR,80121600,Business law services
"Department for Levelling Up, Housing and Communities",Homes England,LEGAL FEES (PROGRAMME - RDEL),Development,CLARKE WILLMOTT LLP,14/09/2023," 1,950.00 ",LAR,80121600,Business law services
"Department for Levelling Up, Housing and Communities",Homes England,LEGAL FEES (PROGRAMME - RDEL),Development,CLARKE WILLMOTT LLP,14/09/2023," 1,953.60 ",LAR,80121600,Business law services
"Department for Levelling Up, Housing and Communities",Homes England,LEGAL FEES (PROGRAMME - RDEL),Investment,CLARKE WILLMOTT LLP,28/09/2023, 493.20 ,LAR,80121600,Business law services
"Department for Levelling Up, Housing and Communities",Homes England,LUHBF Equity Additions,Investment,CLARKE WILLMOTT LLP,29/09/2023," 1,206.60 ",LAR,80121600,Business law services
"Department for Levelling Up, Housing and Communities",Homes England,LUHBF Equity Additions,Investment,CLARKE WILLMOTT LLP,29/09/2023, 840.00 ,LAR,80121600,Business law services
"Department for Levelling Up, Housing and Communities",Homes England,CLEANING,Chief Operating Officer,CHURCHILL CONTRACT SERVICES LTD,05/09/2023,"-1,977.08 ",SMA,76111500,General building and office cleaining and maintenance services
"Department for Levelling Up, Housing and Communities",Homes England,CLEANING,Chief Operating Officer,CHURCHILL CONTRACT SERVICES LTD,05/09/2023," 1,880.77 ",SMA,76111500,General building and office cleaining and maintenance services
"Department for Levelling Up, Housing and Communities",Homes England,CLEANING,Chief Operating Officer,CHURCHILL CONTRACT SERVICES LTD,11/09/2023," 1,880.77 ",SMA,76111500,General building and office cleaining and maintenance services
"Department for Levelling Up, Housing and Communities",Homes England,TRAINING COURSES & CONFERENCES,Investment,CHARTERED INSTITUTE OF HOUSING,04/09/2023," 3,275.00 ",MED,86101800,In service training and manpower development
"Department for Levelling Up, Housing and Communities",Homes England,CAP GRNTS TO LOCAL AUTHORITIES,Investment,CENTRAL BEDFORDSHIRE COUNCIL,12/09/2023," 4,193,205.49 ",PUB,None,Grants
"Department for Levelling Up, Housing and Communities",Homes England,ESTATE GENERAL MAINTENANCE,Development,C.M.A. (NEMESIS) LTD,25/09/2023, 414.00 ,SMA,72101500,Building maintenance and repair services
"Department for Levelling Up, Housing and Communities",Homes England,PROPERTY SERVICES,Development,Compass Building Consultancy,28/09/2023," 1,620.00 ",MIC,80131800,Real estate management services
"Department for Levelling Up, Housing and Communities",Homes England,LUHBF Loans Additions,Investment,94 CHINBROOK ROAD LIMITED,06/09/2023," 73,916.67 ",MIC,None,Loans
"Department for Levelling Up, Housing and Communities",Homes England,PACKAGE MAINTENANCE & SUBSCRIP,Cido,CODE SOFTWARE UK LTD,05/09/2023," 8,220.00 ",SMA,43231500,Business function specific software
"Department for Levelling Up, Housing and Communities",Homes England,OTHER PROFESSIONAL FEES,Development,CWC GROUP,26/09/2023," 373,573.15 ",MED,None,Contributions
